{"text_format":"1","workbook":"xlsx","n_sheets":38,"sheets":["modListProv","Инструкция","Лог обновления","Титульный","Раздел I. А","Раздел I. Б","Раздел I. В","Раздел II. А","Раздел II. Б","Раздел III","Раздел IV","Комментарии","Проверка","Statistic","TEHSHEET","et_union","AllSheetsInThisWorkbook","mod_00","mod_01","mod_11","mod_12","mod_13","mod_21","mod_22","mod_31","mod_41","modComm","modButton","REESTR_ORG","modfrmCheckUpdates","REESTR_MO","modfrmRegion","modfrmReestr","modReestr","modUpdTemplMain","modDoubleClick","modHyperlink","modfrmDateChoose"],"not_rendered":{"charts":0,"images":17,"macros":1,"external_links":0,"defined_names":95,"comments":1,"pivot_tables":0},"unopened":[],"bounds":{"document_bytes":16777216,"sheet_cells":100000,"rows_first":2000,"rows_last":500,"rows_between":2000,"halvings":0,"cell_chars":16384,"cell_head_chars":4096},"cells_cut":0,"cells_raw":0,"read":"whole","date_system":"1900"}

{"sheet":"modListProv","index":0,"n_rows":0,"n_cols":0,"rows_kept":0,"cut":false,"hidden":true,"merged":[]}

{"sheet":"Инструкция","index":1,"n_rows":170,"n_cols":27,"rows_kept":170,"cut":false,"hidden":false,"merged":[[149,4,149,9],[149,10,149,23],[150,4,150,9],[150,10,150,23],[141,4,141,23],[142,4,142,23],[148,4,148,6],[148,7,148,23],[151,4,151,9],[151,10,151,23],[167,5,167,18],[169,5,169,23],[165,4,165,23],[133,4,133,23],[134,4,134,23],[135,4,135,23],[136,4,136,23],[140,4,140,23],[129,4,129,23],[130,4,130,23],[137,4,137,23],[138,4,138,23],[145,4,145,23],[139,4,139,23],[144,4,144,23],[131,4,131,23],[128,4,128,23],[118,4,118,23],[119,4,119,23],[120,4,120,23],[143,4,143,23],[91,4,91,23],[92,4,92,23],[93,4,93,23],[114,4,114,23],[108,4,108,23],[109,4,109,23],[110,4,110,23],[111,4,111,23],[58,4,58,9],[58,10,58,23],[59,4,59,9],[59,10,59,23],[95,4,95,23],[81,4,81,23],[82,4,82,23],[83,4,83,23],[84,4,84,23],[94,4,94,23],[45,4,56,23],[79,4,79,23],[80,4,80,23],[60,7,60,23],[71,4,71,23],[57,4,57,6],[57,7,57,23],[73,4,73,23],[74,4,74,23],[1,1,1,6],[2,1,2,2],[4,1,4,24],[6,4,18,23],[20,5,20,12],[20,15,20,23],[39,4,39,17],[39,18,39,23],[90,4,90,23],[21,5,21,12],[21,15,21,23],[75,4,75,23],[76,4,76,23],[77,4,77,23],[78,4,78,23],[34,4,38,23],[40,4,44,23],[72,4,72,23],[102,4,102,23],[103,4,103,23],[104,4,104,23],[105,4,105,23],[96,4,96,23],[85,4,85,23],[86,4,86,23],[87,4,87,23],[88,4,88,23],[89,4,89,23],[127,4,127,23],[107,4,107,23],[123,4,123,23],[112,4,112,23],[113,4,113,23],[97,4,97,23],[98,4,98,23],[99,4,99,23],[100,4,100,23],[101,4,101,23],[121,4,121,23],[122,4,122,23],[125,4,125,23],[126,4,126,23],[132,4,132,23],[106,4,106,23],[115,4,115,23],[116,4,116,23],[117,4,117,23],[124,4,124,23]]}
[null,null,null,null,null,null,null,null,null,null,null,null,null,null,null,null,null,null,null,null,null,null,null,null,null,null," (требуется обновление)"]
[null,{"$f":"\"Код шаблона: \" & GetCode()","v":"Код шаблона: 46EE.ST"}]
[null,{"$f":"\"Версия \" & Getversion()","v":"Версия 2.1"}]
[]
[null,"Cведения о полезном отпуске (продаже) электрической энергии и мощности отдельным категориям потребителей\nПриказ Росстата: Об утверждении формы  от  03.07.2013 № 257"]
[]
[null,null,null,null,"• На рабочем месте должен быть установлен MS Office 2003 SP3, 2007 SP3, 2010 с полной версией MS Excel\n\n• Макросы во время работы должны быть включены (!)\n\n• Для корректной работы отчёта требуется выбрать низкий уровень безопасности\n(В меню MS Excel 2003: Сервис | Макрос | Безопасность | выбрать пункт «Низкая безопасность» | OK)\n(В меню MS Excel 2007/2010: Параметры Excel | Центр управления безопасностью | Параметры центра управления безопасностью | Параметры макросов | Включить все макросы | ОК)\n\n• Если Вы работаете в табличном процессоре MS Excel 2007 и выше, то можете использовать для работы формат XLSM (Книга Excel с поддержкой макросов). При работе в формате XLSM заметно быстрее происходит сохранение файла, а также уменьшается размер по сравнению с форматом XLS\n\n• Не рекомендуется снимать защиту с листов и каким-либо образом модифицировать защищаемые формулы и расчётные поля, в противном случае, отчёт будет отклонён системой\n\n• При сохранении не следует выбирать формат XLSX (Книга Excel), так как в указанном формате макросы, необходимые для работы отчёта, безвозвратно удаляются"]
[]
[]
[]
[]
[]
[]
[]
[]
[]
[]
[]
[]
[]
[null,null,null,null,"A"," - предназначенные для заполнения",null,null,null,null,null,null,null,null,"A"," - обязательные для заполнения поля"]
[null,null,null,null,"A"," - с формулами и константами",null,null,null,null,null,null,null,null,"A"," - незаполняемые поля"]
[]
[]
[]
[]
[]
[]
[]
[]
[]
[]
[]
[]
[null,null,null,null,"Если в предложенном Вам списке необходимая организация, МР/МО отсутствуют, обновите реестры с помощью кнопок\n\nВ результате синхронизации с базой данных список организаций (МР/МО) будет заменён актуальным (механизм синхронизации требует подключения к сети Интернет и основан на использовании протокола HTTPS (TCP порт 443))\n\nЕсли после обновления Вам не удалось найти необходимую организацию в списке, обратитесь к ответственному за поддержание реестра Вашего региона. Информация о региональных органах регулирования доступна по ссылке:"]
[]
[]
[]
[]
[null,null,null,null,"http://www.fstrf.ru/regions/region/showlist"]
[null,null,null,null,"• Работа с отчётом начинается с выбора наименования субъекта Российской Федерации\n\n• После выбора субъекта производится обновление реестра муниципальных образований, также за одно нажатие можно обновить реестры организаций по всем сферам деятельности\n\n• Отображение и скрытие группы листов, а также автозаполнение листов, производится с помощью кнопок, либо при нажатии на ОКТМО, либо номер муниципального образования, все действия, манипуляции, вызов форм ввода на листах осуществляются двойным щелчком мыши"]
[]
[]
[]
[]
[null,null,null,null,"• При сохранении шаблона осуществляется проверка корректности данных, в том числе на наличие значений в ячейках, обязательных для заполнения\n\n• Если какая-то ячейка не удовлетворяет условию проверки, на лист «Проверка» добавляется гиперссылка на данную ячейку и указывается причина ошибки\n\n• В колонке «Статус» для каждого сообщения возможны 2 значения: ошибка и предупреждение\n\n• При наличии сообщений со статусом «Ошибка» шаблон будет отклонён системой и не будет загружен в хранилище данных, сообщения со статусом «Предупреждение» носят информационный характер, и такой шаблон будет принят системой"]
[]
[]
[]
[]
[]
[]
[]
[]
[]
[]
[]
[]
[null,null,null,null,"Консультации:",null,null,null,null,null,"Обратиться за помощью"]
[null,null,null,null,"Дистрибутивы:",null,null,null,null,null,"Перейти"]
[]
[]
[]
[]
[]
[]
[]
[]
[]
[null,null,null,null,"Указания по заполнению формы федерального статистического наблюдения"]
[]
[null,null,null,null,"1. По форме № 46-ЭЭ (полезный отпуск) отчитываются юридические лица - поставщики электрической энергии (мощности) оптового и розничного рынков электроэнергии (мощности); гарантирующие поставщики электрической энергии (мощности); потребители-субъекты оптового рынка электроэнергии (мощности); энергосбытовые и энергоснабжающие организации; участники оптового рынка электроэнергии (мощности), в отношении которых не приняты балансовые решения."]
[null,null,null,null,"Поставщики электрической энергии (мощности) оптового и розничного рынков электроэнергии (мощности) - это организации, осуществляющие коммерческую деятельность независимо от организационно-правовой формы по производству и продаже (поставке) электрической энергии (мощности) и (или) тепловой энергии (мощности) на оптовый или розничные рынки для дальнейшего преобразования, передачи, распределения и продажи (поставки) потребителям*."]
[null,null,null,null,"Гарантирующие поставщики электрической энергии (мощности) - коммерческие организации, обязанные в соответствии с действующим законодательством или добровольно принятыми обязательствами заключить договор купли-продажи электрической энергии с любым обратившимся к ним потребителем либо с лицом, действующим от имени и в интересах потребителя и желающим приобрести электрическую энергию (ст. 3 Федерального закона от 26.03.2003 № 35-ФЗ «Об электроэнергетике»)."]
[null,null,null,null,"Субъекты оптового рынка - юридические лица, получившие в установленном Федеральным законом порядке право участвовать"]
[null,null,null,null,"в отношениях, связанных с обращением электрической энергии и (или) мощности на оптовом рынке, в соответствии с утверждаемыми Правительством Российской Федерации правилами оптового рынка (ст. 3 Федерального закона от 26.03.2003 № 35-ФЗ «Об электроэнергетике»)."]
[null,null,null,null,"Энергосбытовые организации - организации, осуществляющие в качестве основного вида деятельности продажу другим лицам произведенной или приобретенной электрической энергии (ст. 3 Федерального закона от 26.03.2003 № 35-ФЗ «Об электроэнергетике»)."]
[null,null,null,null,"Энергоснабжающие организации – коммерческие организации независимо от организационно-правовой формы, осуществляющие продажу потребителям произведенной или купленной электрической энергии и (или) тепловой энергии*."]
[null,null,null,null,"Потребители электрической энергии - лица, приобретающие электрическую энергию для собственных бытовых и (или) производственных нужд (ст. 3 Федерального закона от 26.03.2003 № 35-ФЗ «Об электроэнергетике»."]
[null,null,null,null,"Покупатель - покупатель электрической энергии, приобретающий электрическую энергию (мощность) в целях ее дальнейшей продажи*."]
[null,null,null,null,"Участники оптового рынка электроэнергии (мощности), в отношении которых не приняты балансовые решения - субъекты электроэнергетики, которые не вошли в сводный прогнозный (плановый) баланс производства и поставок электрической энергии (мощности) в рамках Единой энергетической системы России по субъектам Российской Федерации и субъектам оптового рынка, утверждаемый Федеральной службой по тарифам на основании пункта 5.3.5 Положения о Федеральной службе по тарифам, утвержденного постановлением Правительства Российской Федерации от 30.06.2004 № 332 «Об утверждении положения о Федеральной службе по тарифам»."]
[null,null,null,null,"2. Юридическое лицо заполняет настоящую форму и предоставляет ее в Федеральную службу по тарифам в установленной форме (в электронном виде через ЕИАС ФСТ России), а также территориальному органу Росстата в субъекте Российской Федерации по установленному им адресу."]
[null,null,null,null,"При наличии у юридического лица обособленных подразделений настоящая форма заполняется как по каждому обособленному подразделению, так и по юридическому лицу без этих обособленных подразделений."]
[null,null,null,null,"Юридическое лицо заполняет настоящую форму и предоставляет ее в Федеральную службу по тарифам (в электронном виде) и в территориальный орган Росстата по месту нахождения соответствующего обособленного подразделения (по обособленному подразделению) и по месту нахождения юридического лица (без обособленных подразделений). В случае, когда юридическое лицо (его обособленное подразделение) не осуществляет деятельность по месту своего нахождения, форма предоставляется по месту фактического осуществления им деятельности."]
[null,null,null,null,"Руководитель юридического лица назначает должностных лиц, уполномоченных предоставлять статистическую информацию от имени юридического лица."]
[null,null,null,null,"В адресной части указывается полное наименование отчитывающейся организации в соответствии с учредительными документами, зарегистрированными в установленном порядке, а затем в скобках - краткое наименование. На бланке формы, содержащей сведения по обособленному подразделению юридического лица, указывается наименование обособленного подразделения и юридического лица, к которому оно относится."]
[null,null,null,null,"По строке «Почтовый адрес» указывается наименование субъекта Российской Федерации, юридический адрес с почтовым индексом; если фактический адрес не совпадает с юридическим, то указывается также фактический почтовый адрес. Для обособленных подразделений, не имеющих юридического адреса, указывается почтовый адрес с почтовым индексом."]
[null,null,null,null,"Юридическое лицо проставляет в кодовой части формы в обязательном порядке код объекта отчета – субъекта (района) муниципального образования по Общероссийскому классификатору территориальных муниципальных образований (ОКТМО) на основании Уведомления о присвоении кодов, направляемого (выдаваемого) организациям территориальными органами Росстата."]
[null,null,null,null,"Кроме того, в свободных графах кодовой части формы проставляются:"]
[null,null,null,null,"  - ИНН (идентификационный номер налогоплательщика), присваиваемый при регистрации в налоговом органе;"]
[null,null,null,null,"  - код причины постановки на учет (КПП)."]
[null,null,null,null,"По территориально-обособленным подразделениям юридического лица указывается идентификационный номер, который устанавливается территориальным органом Росстата по месту расположения территориально-обособленного подразделения."]
[null,null,null,null,"Раздел I. Полезный отпуск электроэнергии и мощности, реализуемой по регулируемым тарифам (ценам)"]
[null,null,null,null,"1. В настоящем разделе отражаются сведения об объемах полезного отпуска электрической энергии и мощности, реализуемых на розничном рынке по регулируемым тарифам (ценам) и определенных по группам потребителей, а также стоимости электроэнергии и мощности."]
[null,null,null,null,"2. Подраздел А заполняется по объемам и стоимости потребленной энергии (мощности) по  потребителям, оплачивающим электрическую энергию (мощность) по договорам энергоснабжения."]
[null,null,null,null,"3. Подраздел Б заполняется аналогично подразделу А, при этом указываются объемы и стоимость потребленной энергии (мощности) по  потребителям, оплачивающим электрическую энергию (мощность) по договорам купли-продажи."]
[null,null,null,null,"4. Cведения об объемах полезного отпуска электроэнергии и мощности конечным потребителям отражаются в соответствии с показаниями технических средств измерения по подгруппам. В случае отсутствия технических средств измерения допускается определение полезного отпуска электрической энергии за отчетный период по представленным платежным документам. "]
[null,null,null,null,"5. Сведения о стоимости электрической энергии и мощности приводятся без НДС, по подразделу В сведения о стоимости электрической энергии приводятся с НДС и без НДС, и определяются на основании данных об объемах фактически оказанных за отчетный период услуг по тарифам, утвержденным в установленном порядке. Отдельно выделяются объемы поставляемые сверх социальной нормы потребления, принятой органами исполнительной власти субъектов Российской Федерации."]
[null,null,null,null,"6. В графах 3 - 9, 17 – 23, 31 – 37, 45 – 51, 59 – 65, 73 – 79, 80 - 86  (подраздела А) отражается информация по всем потребителям. При этом в графах 45 – 51 указываются данные о потребителях, оплачивающих электроэнергию по трехставочным тарифам, в том числе объем мощности, определяемой в соответствии с Правилами недискриминационного доступа к услугам по передаче электрической энергии и оказания этих услуг."]
[null,null,null,null,"7. В строке 600 отражаются суммарные величины полезного отпуска и стоимости электроэнергии или мощности (сумма строк 111 - 171, 211 - 271, 311 - 371, 411 - 471)."]
[null,null,null,null,"Раздел II. Полезный отпуск электроэнергии и мощности, реализуемой по нерегулируемым ценам"]
[null,null,null,null,"1. В настоящем разделе отражаются сведения об объемах полезного отпуска электрической энергии и мощности, реализуемых на розничном рынке по нерегулируемым ценам и определенных по группам потребителей, а также стоимости электроэнергии и мощности."]
[null,null,null,null,"2. Раздел II заполняется аналогично Разделу I, по ценовым категориям, выбранным потребителями в соответствии с Основными положениями функционирования розничных рынков, утвержденными Постановлением Правительства Российской Федерации от 04.05.2012"]
[null,null,null,null,"№ 442 «О функционировании розничных рынков электрической энергии, полном и (или) частичном ограничении режима потребления электрической энергии»."]
[null,null,null,null,"Раздел III. Продажа электрической энергии и мощности"]
[null,null,null,null,"1. В настоящем разделе в графе 3 отражаются сведения об объемах электрической энергии, реализованной на оптовом рынке электрической энергии, а также экспортных поставках. В графе 5 отражаются сведения о величине проданной электрической мощности."]
[null,null,null,null,"2. В графах 4, 6 отражаются сведения о стоимости электрической энергии и мощности, полученные на основании счетов, поступивших от ОАО «Администратор торговой системы оптового рынка электроэнергии» (ЗАО «Центр финансовых расчетов»), далее – ОАО «АТС» (ЗАО «ЦФР»)."]
[null,null,null,null,"3. В графе 7 отражаются сведения о стоимости без дифференциации на энергию и мощность."]
[null,null,null,null,"4. В строке 300 отражаются суммарные объем и стоимость проданной электроэнергии и мощности (сумма строк 301 - 313)."]
[null,null,null,null,"5. В строке 301 «В обеспечение СД» отражаются сведения об объемах и стоимости реализованной электрической энергии и мощности в обеспечение свободных договоров."]
[null,null,null,null,"6. В строке 302 «В обеспечение РД» отражаются сведения об объемах и стоимости реализованной электрической энергии и мощности в обеспечение регулируемых договоров."]
[null,null,null,null,"7. В строке 303 «В обеспечение биржевых СДМ» отражаются сведения об объемах и стоимости реализованной электрической энергии и мощности в обеспечение биржевых свободных договоров купли-продажи электроэнергии и мощности."]
[null,null,null,null,"8. В строке 304 «В обеспечение внебиржевых СДМ» отражаются сведения об объемах и стоимости реализованной электрической энергии и мощности в обеспечение внебиржевых свободных договоров купли-продажи электроэнергии и мощности."]
[null,null,null,null,"9. В строке 305 «По договорам предоставления мощности ДПМ» отражаются сведения об объемах и стоимости реализованной электрической энергии и мощности в обеспечение договоров предоставления мощности."]
[null,null,null,null,"10. В строке 306 «По ценам РСВ» отражаются сведения об объемах и стоимости реализованной электрической энергии по результатам отбора ценовых заявок на сутки вперед."]
[null,null,null,null,"11. В строке 307 «БР» отражаются сведения об объемах и стоимости продажи электрической энергии по результатам конкурентного отбора ценовых заявок балансирующей системы (балансирующий рынок)."]
[null,null,null,null,"12. В строке 308 «Экспортно-импортная и приграничная торговля» организации, осуществляющие продажу электроэнергии и мощности в приграничные районы сопредельных государств на основе соглашений о торговле и платежах, отражают сведения об объемах и стоимости реализованной электрической энергии и мощности. В случае, если организации реализуют электрическую энергию и мощность по экспортным договорам, сведения отражаются также в строке 308."]
[null,null,null,null,"13. В строке 309 «По результатам КОМ» отражаются сведения о величине и стоимости продажи мощности по результатам конкурентного отбора мощности."]
[null,null,null,null,"14. В строке 310 «На оптовом рынке по регулируемым ценам» отражаются сведения об объемах и стоимости отпуска электрической энергии и мощности, реализуемых на оптовом рынке по регулируемым ценам."]
[null,null,null,null,"15. В строке 311 «На оптовом рынке по нерегулируемым ценам» отражаются сведения об объемах и стоимости полезного отпуска электрической энергии и мощности, реализуемых на оптовом рынке по нерегулируемым ценам."]
[null,null,null,null,"16. В строке 312 «На розничном рынке по регулируемым тарифам (ценам)» отражаются сведения об объемах и стоимости полезного отпуска электрической энергии и мощности, реализуемых на розничном рынке по регулируемым ценам, и рассчитываются как сумма объемов продажи по всем категориям потребителей."]
[null,null,null,null,"17. В строке 313 «На розничном рынке по свободным (нерегулируемым) ценам» отражаются сведения об объемах и стоимости полезного отпуска электрической энергии и мощности, реализуемых на розничном рынке по свободным (нерегулируемым) ценам, и рассчитываются как сумма объемов продажи по всем категориям потребителей."]
[null,null,null,null,"18. В строке 400 «Собственное производство» указываются объемы электроэнергии и мощности, произведенной электрическими станциями, находящимися в собственности отчитывающейся организации или аренде, или эксплуатируемыми на ином законном основании."]
[null,null,null,null,"19. В строке 500 «Мощность, заявленная на КОМ» указываются сведения о мощности, заявленной на конкурентный отбор."]
[null,null,null,null,"20. В строке 600 «Аттестованная мощность» указываются сведения о величине аттестованной мощности."]
[null,null,null,null,"21. В строке 700 «Штрафные санкции ЦФР» указывается величина мощности и стоимость штрафных санкций, устанавливаемая ЗАО «ЦФР»."]
[null,null,null,null,"Раздел IV. Покупка электрической энергии и мощности"]
[null,null,null,null,"1. В настоящем разделе в графе 3 отражаются сведения об объемах электрической энергии, приобретенной на оптовом и розничном рынках электрической энергии и мощности, а также по импорту, с учетом нагрузочных потерь. В графе 5 отражаются сведения о величине купленной электрической мощности."]
[null,null,null,null,"2. В графах 4, 6 отражаются сведения о стоимости электрической энергии и мощности, полученные на основании выставляемых счетов ОАО «АТС» (ЗАО «ЦФР»)."]
[null,null,null,null,"3. В графе 7 отражаются сведения о стоимости без дифференциации на энергию и мощность."]
[null,null,null,null,"4. В строке 100 отражаются суммарные объем и стоимость приобретенной электроэнергии и мощности (сумма строк 101 - 113)."]
[null,null,null,null,"5. В строке 101 «В обеспечение СД» отражаются сведения об объемах и стоимости приобретенной электрической энергии и мощности в обеспечение свободных договоров."]
[null,null,null,null,"6. В строке 102 «В обеспечение РД» отражаются сведения об объемах и стоимости приобретенной электрической энергии и мощности в обеспечение регулируемых договоров."]
[null,null,null,null,"7. В строке 103 «В обеспечение биржевых СДМ» отражаются сведения об объемах и стоимости приобретенной электрической энергии и мощности в обеспечение биржевых свободных договоров купли-продажи электроэнергии и мощности."]
[null,null,null,null,"8. В строке 104 «В обеспечение внебиржевых СДМ» отражаются сведения об объемах и стоимости приобретенной электрической энергии и мощности в обеспечение внебиржевых свободных договоров купли-продажи электроэнергии и мощности."]
[null,null,null,null,"9. В строке 105 «По договорам предоставления мощности ДПМ» отражаются сведения об объемах и стоимости приобретаемой электрической энергии и мощности в обеспечение договоров предоставления мощности."]
[null,null,null,null,"10. В строке 106 «По ценам РСВ» отражаются сведения об объемах и стоимости приобретенной электрической энергии по результатам отбора ценовых заявок на сутки вперед."]
[null,null,null,null,"11. В строке 107 «БР» отражаются сведения об объемах и стоимости покупки электрической энергии по результатам конкурентного отбора ценовых заявок балансирующей системы (балансирующий рынок)."]
[null,null,null,null,"12. В строке 108 «Экспортно-импортная и приграничная торговля» организации, осуществляющие покупку электроэнергии и мощности в приграничных районах сопредельных государств на основе соглашений о торговле и платежах, отражают сведения об объемах и стоимости приобретенной электрической энергии и мощности. В случае, если организации приобретают электрическую энергию и мощность по импортным договорам, сведения отражаются также в строке 108."]
[null,null,null,null,"13. В строке 109 «По результатам КОМ» отражаются сведения о величине и стоимости покупки мощности по результатам конкурентного отбора мощности."]
[null,null,null,null,"14. В строке 110 «На оптовом рынке по регулируемым ценам» отражаются сведения об объемах и стоимости электрической энергии и мощности, приобретаемой на оптовом рынке по регулируемым ценам, и рассчитываются как сумма объемов продажи по всем категориям потребителей."]
[null,null,null,null,"15. В строке 111 «На оптовом рынке по нерегулируемым ценам» отражаются сведения об объемах и стоимости электрической энергии и мощности, приобретаемой на оптовом рынке по нерегулируемым ценам, и рассчитываются как сумма объемов продажи по всем категориям потребителей."]
[null,null,null,null,"16. В строке 112 «На розничном рынке по регулируемым ценам» отражаются сведения об объемах электрической энергии и мощности, приобретаемых на розничном рынке по регулируемым ценам, а также стоимости электроэнергии и мощности."]
[null,null,null,null,"17. В строке 113 «На розничном рынке по свободным (нерегулируемым) ценам» отражаются сведения об объемах и стоимости электрической энергии и мощности, приобретаемых на розничном рынке по свободным (нерегулируемым) ценам, и рассчитываются как сумма объемов продажи по всем категориям потребителей."]
[null,null,null,null,"18. В строке 114 «Итого покупка с учетом продажи» отражается разность между суммарной покупкой электрической энергии и мощности и продажей электрической энергии и мощности. Строка 114 = разности строк 100 (раздела IV) и 300 (раздела III)."]
[null,null,null,null,"19. В строке 200 «Собственное потребление» указывается весь объем электроэнергии, потребляемой отчитывающейся организацией на собственные нужды."]
[]
[null,null,null,null,"* Данное понятие применяется только для целей заполнения данной формы"]
[]
[null,null,null,null,"Сопровождение:",null,null,null,null,null,"Обратиться за помощью"]
[null,null,null,null,"Отчётные формы:",null,null,null,null,null,"Перейти"]
[null,null,null,null,"Хранилище документов:",null,null,null,null,null,"Руководство по загрузке документов"]
[]
[]
[]
[]
[]
[]
[]
[]
[]
[]
[]
[]
[]
[null,null,null,null,"При наличии подключения к Интернет, можно автоматически проверять наличие доступных обновлений. Выберите способ оповещения о наличии обновлений для отчёта:"]
[]
[null,null,null,null,null,"проверять доступные обновления (рекомендуется)",null,null,null,null,null,null,null,null,null,null,null,null,null,null,null,null,null,null,null,null,"y"]
[]
[null,null,null,null,null,"никогда не проверять наличие обновлений (не рекомендуется)"]

{"sheet":"Лог обновления","index":2,"n_rows":18,"n_cols":4,"rows_kept":18,"cut":false,"hidden":true,"merged":[]}
[]
["3/17/2012  12:12:41 AM","Дата/Время","Сообщение","Статус"]
[null,"2015-02-09T09:13:51","Проверка доступных обновлений...","Информация"]
[null,"2015-02-09T09:13:53","Версия шаблона 2.1 актуальна, обновление не требуется","Информация"]
[null,"2015-02-09T11:30:17","Проверка доступных обновлений...","Информация"]
[null,"2015-02-09T11:30:19","Версия шаблона 2.1 актуальна, обновление не требуется","Информация"]
[null,"2015-03-19T15:44:21","Проверка доступных обновлений...","Информация"]
[null,"2015-03-19T15:44:25","Версия шаблона 2.1 актуальна, обновление не требуется","Информация"]
[null,"2015-04-14T08:55:04","Проверка доступных обновлений...","Информация"]
[null,"2015-04-14T08:55:08","Версия шаблона 2.1 актуальна, обновление не требуется","Информация"]
[null,"2015-07-20T11:03:55","Проверка доступных обновлений...","Информация"]
[null,"2015-07-20T11:03:56","Версия шаблона 2.1 актуальна, обновление не требуется","Информация"]
[null,"2015-10-20T13:15:17","Проверка доступных обновлений...","Информация"]
[null,"2015-10-20T13:16:37","Версия шаблона 2.1 актуальна, обновление не требуется","Информация"]
[null,"2015-11-18T11:56:30","Проверка доступных обновлений...","Информация"]
[null,"2015-11-18T11:56:40","Версия шаблона 2.1 актуальна, обновление не требуется","Информация"]
[null,"2016-02-04T16:02:06","Проверка доступных обновлений...","Информация"]
[null,"2016-02-04T16:02:23","Версия шаблона 2.1 актуальна, обновление не требуется","Информация"]

{"sheet":"Титульный","index":3,"n_rows":51,"n_cols":7,"rows_kept":51,"cut":false,"hidden":false,"merged":[]}
[]
[]
[]
[]
[]
[]
[null,null,null,null,null,null,{"$f":"version","v":"Версия 2.1"}]
[null,null,null,null,"Cведения о полезном отпуске (продаже) электрической энергии и мощности отдельным категориям потребителей"]
[]
[]
[null,null,null,null,null,"Субъект РФ","Приморский край"]
[null,null,null,null,null,null,"Отчетный период"]
[null,null,null,null,null,"Год",2015]
[null,null,null,null,null,"Месяц","год"]
[null,null,null,null,null,"Срок предоставления отчета истек","Нет"]
[null,null,null,null,null,"Ссылка на обосновывающие материалы"]
[]
[null,null,null,null,null,"Наименование организации","ОАО \"Международный аэропорт Владивосток\" "]
[null,null,null,null,null,"ИНН","2502035642"]
[null,null,null,null,null,"КПП","250201001"]
[null,null,null,null,null,"Вид деятельности","ЭСО"]
[]
[null,null,null,null,null,"Муниципальный район","Артемовский городской округ"]
[]
[null,null,null,null,null,"Муниципальное образование","Артемовский городской округ"]
[]
[null,null,null,null,null,"ОКТМО","05705000"]
[]
[null,null,null,null,null,"Гарантирующий поставщик","Нет"]
[]
[null,null,null,null,null,"Способ приобретения электроэнергии","от ГП первого уровня "]
[]
[null,null,null,null,null,"Плательщик НДС","Да"]
[]
[null,null,null,null,null,null,"Адрес организации"]
[null,null,null,null,null,"Юридический адрес:","692706, Приморский край, г.Артем, ул.Портовая 41"]
[null,null,null,null,null,"Почтовый адрес:","692706, Приморский край, г.Артем, ул.Портовая 41"]
[]
[null,null,null,null,null,null,"Руководитель"]
[null,null,null,null,null,"Фамилия, имя, отчество","Лукишин Игорь Геннадьевич"]
[null,null,null,null,null,"(код) номер телефона","8(423)2306-999"]
[]
[null,null,null,null,null,null,"Главный бухгалтер"]
[null,null,null,null,null,"Фамилия, имя, отчество","Важанова Ольга Сергеевна"]
[null,null,null,null,null,"(код) номер телефона","8(423)2306-999"]
[]
[null,null,null,null,null,null,"Должностное лицо, ответственное за составление формы"]
[null,null,null,null,null,"Фамилия, имя, отчество","Аксенов Владимир Васильевич"]
[null,null,null,null,null,"Должность","Начальник службы ЭСТОП"]
[null,null,null,null,null,"(код) номер телефона","8(423)2306-940"]
[null,null,null,null,null,"e-mail","AksenovVV@vvo.aero"]

{"sheet":"Раздел I. А","index":4,"n_rows":60,"n_cols":89,"rows_kept":60,"cut":false,"hidden":false,"merged":[[59,4,59,6],[51,4,51,7],[51,9,51,10],[52,4,52,7],[52,9,52,10],[55,4,55,5],[56,4,56,5],[56,7,56,9],[56,11,56,12],[58,4,58,6],[12,82,13,82],[12,83,12,88],[12,48,12,53],[12,54,13,54],[12,55,12,60],[12,61,13,61],[55,7,55,9],[12,69,12,74],[12,75,13,75],[12,76,12,81],[12,62,12,67],[12,68,13,68],[12,27,12,32],[12,33,13,33],[12,34,12,39],[12,40,13,40],[12,41,12,46],[12,47,13,47],[11,68,11,74],[11,75,11,81],[11,82,11,88],[12,5,13,5],[12,6,12,11],[12,12,13,12],[12,13,12,18],[12,19,13,19],[12,20,12,25],[12,26,13,26],[11,54,11,60],[11,61,11,67],[11,12,11,18],[11,19,11,25],[11,26,11,32],[11,33,11,39],[10,3,10,10],[11,3,13,3],[11,4,13,4],[11,5,11,11],[11,40,11,46],[11,47,11,53]]}
[]
[]
[]
[]
[]
[]
[]
[null,null,null,"Раздел I. Полезный отпуск электроэнергии и мощности, реализуемой по регулируемым тарифам (ценам)"]
[null,null,null,"А. Полезный отпуск электроэнергии и мощности, реализуемой по регулируемым тарифам (ценам) по Договору энергоснабжения"]
[null,null,null,{"$f":"IF(org=\"\",\"Не определено\",org)","v":"ОАО \"Международный аэропорт Владивосток\" "}]
[null,null,null,null,null,null,null,null,null,null,null,null,null,null,null,null,null,null,null,null,null,null,null,null,null,null,null,null,null,null,null,null,null,null,null,null,null,null,null,null,null,null,null,null,null,null,null,null,null,null,null,null,null,null,null,null,null,null,null,null,null,null,null,null,null,null,null,null,null,null,null,null,null,null,null,null,null,null,null,null,null,null,null,null,null,null,null,null,"Коды по ОКЕИ: 1000 киловатт-часов – 246, мегаватт – 215, тысяча рублей – 384"]
[null,null,null,"Потребители","Код строки","Объем электрической энергии потребителей, осуществляющих оплату по одноставочным тарифам (ценам) за отчетный месяц (год), тыс кВт ч",null,null,null,null,null,null,"Стоимость электрической энергии потребителей, осуществляющих оплату по одноставочным тарифам (ценам) за отчетный месяц (год) без НДС, тыс руб",null,null,null,null,null,null,"Объем электрической энергии потребителей, осуществляющих оплату по зонным тарифам (ценам) за отчетный месяц (год), \nтыс кВт ч",null,null,null,null,null,null,"Стоимость электрической энергии потребителей, осуществляющих оплату по зонным тарифам (ценам) за отчетный месяц (год) без НДС, тыс руб",null,null,null,null,null,null,"Объем электрической энергии потребителей, осуществляющих оплату по трехставочным тарифам (ценам) за отчетный месяц (год), тыс кВт ч",null,null,null,null,null,null,"Стоимость электрической энергии потребителей, осуществляющих оплату по трехставочным тарифам (ценам) за отчетный месяц (год) без НДС, тыс руб",null,null,null,null,null,null,"Объем электрической мощности потребителей, осуществляющих оплату услуг по передаче электрической энергии по трехставочным ценам \nза отчетный месяц (год), МВт",null,null,null,null,null,null,"Стоимость электрической мощности потребителей, осуществляющих оплату услуг по передаче электрической энергии по трехставочным ценам \nза отчетный месяц (год) без НДС, тыс руб",null,null,null,null,null,null,"Объем электрической энергии за отчетный месяц (год), \nтыс кВт ч",null,null,null,null,null,null,"Стоимость электрической энергии за отчетный месяц (год) без НДС, тыс руб",null,null,null,null,null,null,"Стоимость электрической энергии (мощности) без учета стоимости отклонений за отчетный месяц (год) без НДС, по двухставочным тарифам (ценам) \nза отчетный месяц (год) без НДС, тыс руб",null,null,null,null,null,null,"Стоимость отклонений фактических объемов потребления электрической энергии от плановых (договорных) значений за отчетный  месяц (год) без НДС, тыс руб"]
[null,null,null,null,null,"всего","в том числе:",null,null,null,null,null,"всего","в том числе:",null,null,null,null,null,"всего","в том числе:",null,null,null,null,null,"всего","в том числе:",null,null,null,null,null,"всего","в том числе:",null,null,null,null,null,"всего","в том числе:",null,null,null,null,null,"всего","в том числе:",null,null,null,null,null,"всего","в том числе:",null,null,null,null,null,"всего","в том числе:",null,null,null,null,null,"всего","в том числе:",null,null,null,null,null,"всего","в том числе:",null,null,null,null,null,"всего","в том числе:"]
[null,null,null,null,null,null,"ВН","СН1","СН2","НН","ФСК","ГН",null,"ВН","СН1","СН2","НН","ФСК","ГН",null,"ВН","СН1","СН2","НН","ФСК","ГН",null,"ВН","СН1","СН2","НН","ФСК","ГН",null,"ВН","СН1","СН2","НН","ФСК","ГН",null,"ВН","СН1","СН2","НН","ФСК","ГН",null,"ВН","СН1","СН2","НН","ФСК","ГН",null,"ВН","СН1","СН2","НН","ФСК","ГН",null,"ВН","СН1","СН2","НН","ФСК","ГН",null,"ВН","СН1","СН2","НН","ФСК","ГН",null,"ВН","СН1","СН2","НН","ФСК","ГН",null,"ВН","СН1","СН2","НН","ФСК","ГН"]
[null,null,null,1,2,3,4,5,6,7,8,9,10,11,12,13,14,15,16,17,18,19,20,21,22,23,24,25,26,27,28,29,30,31,32,33,34,35,36,37,38,39,40,41,42,43,44,45,46,47,48,49,50,51,52,53,54,55,56,57,58,59,60,61,62,63,64,65,66,67,68,69,70,71,72,73,74,75,76,77,78,79,80,81,82,83,84,85,86]
[null,null,null,"Потребители с максимальной мощностью принадлежащих им энергопринимающих устройств от 10 МВт",100,{"$f":"SUM(F17:F23)","v":0},{"$f":"SUM(G17:G23)","v":0},0,0,0,0,0,0,0,0,0,0,0,0,0,0,0,0,0,0,0,0,0,0,0,0,0,0,0,0,0,0,0,0,0,0,0,0,0,0,0,0,0,0,0,0,0,0,0,0,0,0,0,0,0,0,0,0,0,0,0,0,0,0,0,{"$f":"SUM(BS17:BS23)","v":0},0,0,0,0,0,0,0,0,0,0,0,0,0,0,0,0,0,0]
[null,null,null,"Промышленные и приравненные к ним потребители",111,{"$f":"SUM(G17:L17)","v":0},null,null,null,null,null,null,{"$f":"SUM(N17:S17)","v":0},null,null,null,null,null,null,{"$f":"SUM(U17:Z17)","v":0},null,null,null,null,null,null,{"$f":"SUM(AB17:AG17)","v":0},null,null,null,null,null,null,{"$f":"SUM(AI17:AN17)","v":0},null,null,null,null,null,null,{"$f":"SUM(AP17:AU17)","v":0},null,null,null,null,null,null,{"$f":"SUM(AW17:BB17)","v":0},null,null,null,null,null,null,{"$f":"SUM(BD17:BI17)","v":0},null,null,null,null,null,null,{"$f":"SUM(BK17:BP17)","v":0},{"$f":"AI17+U17+G17","v":0},{"$f":"AJ17+V17+H17","v":0},0,0,0,0,{"$f":"SUM(BR17:BW17)","v":0},{"$f":"AP17+AB17+N17","v":0},0,0,0,0,0,{"$f":"SUM(BY17:CD17)","v":0},null,null,null,null,null,null,{"$f":"SUM(CF17:CK17)","v":0}]
[null,null,null,"Электрифицированный железнодорожный транспорт",121,{"$f":"SUM(G18:L18)","v":0},null,null,null,null,null,null,{"$f":"SUM(N18:S18)","v":0},null,null,null,null,null,null,{"$f":"SUM(U18:Z18)","v":0},null,null,null,null,null,null,{"$f":"SUM(AB18:AG18)","v":0},null,null,null,null,null,null,{"$f":"SUM(AI18:AN18)","v":0},null,null,null,null,null,null,{"$f":"SUM(AP18:AU18)","v":0},null,null,null,null,null,null,{"$f":"SUM(AW18:BB18)","v":0},null,null,null,null,null,null,{"$f":"SUM(BD18:BI18)","v":0},null,null,null,null,null,null,{"$f":"SUM(BK18:BP18)","v":0},{"$f":"AI18+U18+G18","v":0},0,0,0,0,0,{"$f":"SUM(BR18:BW18)","v":0},0,0,0,0,0,0,{"$f":"SUM(BY18:CD18)","v":0},null,null,null,null,null,null,{"$f":"SUM(CF18:CK18)","v":0}]
[null,null,null,"Электрифицированный городской транспорт",131,0,null,null,null,null,null,null,0,null,null,null,null,null,null,0,null,null,null,null,null,null,0,null,null,null,null,null,null,0,null,null,null,null,null,null,0,null,null,null,null,null,null,0,null,null,null,null,null,null,0,null,null,null,null,null,null,0,0,0,0,0,0,0,0,0,0,0,0,0,0,0,null,null,null,null,null,null,0]
[null,null,null,"Непромышленные потребители",141,0,null,null,null,null,null,null,0,null,null,null,null,null,null,0,null,null,null,null,null,null,0,null,null,null,null,null,null,0,null,null,null,null,null,null,0,null,null,null,null,null,null,0,null,null,null,null,null,null,0,null,null,null,null,null,null,0,0,0,0,0,0,0,0,0,0,0,0,0,0,0,null,null,null,null,null,null,0]
[null,null,null,"Сельскохозяйственные товаропроизводители",151,0,null,null,null,null,null,null,0,null,null,null,null,null,null,0,null,null,null,null,null,null,0,null,null,null,null,null,null,0,null,null,null,null,null,null,0,null,null,null,null,null,null,0,null,null,null,null,null,null,0,null,null,null,null,null,null,0,{"$f":"AI21+U21+G21","v":0},0,0,0,0,0,0,0,0,0,0,0,0,0,null,null,null,null,null,null,0]
[null,null,null,"Бюджетные потребители",161,0,null,null,null,null,null,null,0,null,null,null,null,null,null,0,null,null,null,null,null,null,0,null,null,null,null,null,null,0,null,null,null,null,null,null,0,null,null,null,null,null,null,0,null,null,null,null,null,null,0,null,null,null,null,null,null,0,0,0,0,0,0,0,0,0,0,0,0,0,0,0,null,null,null,null,null,null,0]
[null,null,null,"Другие энергоснабжающие организации",171,0,null,null,null,null,null,null,0,null,null,null,null,null,null,0,null,null,null,null,null,null,0,null,null,null,null,null,null,0,null,null,null,null,null,null,0,null,null,null,null,null,null,0,null,null,null,null,null,null,0,null,null,null,null,null,null,0,0,0,0,0,0,0,0,0,0,0,0,0,0,0,null,null,null,null,null,null,0]
[null,null,null,"Потребители с максимальной мощностью принадлежащих им энергопринимающих устройств от 670 кВт до 10 МВт",200,{"$f":"SUM(F25:F31)","v":0},0,0,0,0,0,0,0,0,0,0,0,0,0,0,0,0,0,0,0,0,0,0,0,0,0,0,0,0,0,0,0,{"$f":"SUM(AL25:AL31)","v":0},0,0,0,0,0,0,0,0,0,0,0,0,0,0,0,0,0,0,0,0,0,0,0,0,0,0,0,0,0,0,0,{"$f":"SUM(BR25:BR31)","v":0},0,0,0,0,0,0,0,0,0,0,0,0,0,0,0,0,0,0,0]
[null,null,null,"Промышленные и приравненные к ним потребители",211,{"$f":"SUM(G25:L25)","v":0},null,null,null,null,null,null,{"$f":"SUM(N25:S25)","v":0},null,null,null,null,null,null,{"$f":"SUM(U25:Z25)","v":0},null,null,null,null,null,null,{"$f":"SUM(AB25:AG25)","v":0},null,null,null,null,null,null,{"$f":"SUM(AI25:AN25)","v":0},null,null,null,null,null,null,{"$f":"SUM(AP25:AU25)","v":0},null,null,null,null,null,null,{"$f":"SUM(AW25:BB25)","v":0},null,null,null,null,null,null,{"$f":"SUM(BD25:BI25)","v":0},null,null,null,null,null,null,{"$f":"SUM(BK25:BP25)","v":0},{"$f":"AI25+U25+G25","v":0},{"$f":"AJ25+V25+H25","v":0},{"$f":"AK25+W25+I25","v":0},{"$f":"AL25+X25+J25","v":0},{"$f":"AM25+Y25+K25","v":0},{"$f":"AN25+Z25+L25","v":0},{"$f":"SUM(BR25:BW25)","v":0},{"$f":"AP25+AB25+N25","v":0},{"$f":"AQ25+AC25+O25","v":0},{"$f":"AR25+AD25+P25","v":0},{"$f":"AS25+AE25+Q25","v":0},{"$f":"AT25+AF25+R25","v":0},{"$f":"AU25+AG25+S25","v":0},{"$f":"SUM(BY25:CD25)","v":0},null,null,null,null,null,null,{"$f":"SUM(CF25:CK25)","v":0}]
[null,null,null,"Электрифицированный железнодорожный транспорт",221,{"$f":"SUM(G26:L26)","v":0},null,null,null,null,null,null,{"$f":"SUM(N26:S26)","v":0},null,null,null,null,null,null,{"$f":"SUM(U26:Z26)","v":0},null,null,null,null,null,null,{"$f":"SUM(AB26:AG26)","v":0},null,null,null,null,null,null,{"$f":"SUM(AI26:AN26)","v":0},null,null,null,null,null,null,{"$f":"SUM(AP26:AU26)","v":0},null,null,null,null,null,null,{"$f":"SUM(AW26:BB26)","v":0},null,null,null,null,null,null,{"$f":"SUM(BD26:BI26)","v":0},null,null,null,null,null,null,{"$f":"SUM(BK26:BP26)","v":0},0,0,0,0,0,0,{"$f":"SUM(BR26:BW26)","v":0},0,0,0,0,0,0,{"$f":"SUM(BY26:CD26)","v":0},null,null,null,null,null,null,{"$f":"SUM(CF26:CK26)","v":0}]
[null,null,null,"Электрифицированный городской транспорт",231,0,null,null,null,null,null,null,0,null,null,null,null,null,null,0,null,null,null,null,null,null,0,null,null,null,null,null,null,0,null,null,null,null,null,null,0,null,null,null,null,null,null,0,null,null,null,null,null,null,0,null,null,null,null,null,null,0,0,0,0,0,0,0,0,0,0,0,0,0,0,0,null,null,null,null,null,null,0]
[null,null,null,"Непромышленные потребители",241,0,null,null,null,null,null,null,0,null,null,null,null,null,null,0,null,null,null,null,null,null,0,null,null,null,null,null,null,0,null,null,null,null,null,null,0,null,null,null,null,null,null,0,null,null,null,null,null,null,0,null,null,null,null,null,null,0,0,0,0,0,0,0,0,0,0,0,0,0,0,0,null,null,null,null,null,null,0]
[null,null,null,"Сельскохозяйственные товаропроизводители",251,0,null,null,null,null,null,null,0,null,null,null,null,null,null,0,null,null,null,null,null,null,0,null,null,null,null,null,null,0,null,null,null,null,null,null,0,null,null,null,null,null,null,0,null,null,null,null,null,null,0,null,null,null,null,null,null,0,0,0,0,0,0,0,0,0,0,0,0,0,0,0,null,null,null,null,null,null,0]
[null,null,null,"Бюджетные потребители",261,0,null,null,null,null,null,null,0,null,null,null,null,null,null,0,null,null,null,null,null,null,0,null,null,null,null,null,null,0,null,null,null,null,null,null,0,null,null,null,null,null,null,0,null,null,null,null,null,null,0,null,null,null,null,null,null,0,0,0,0,0,0,0,0,0,0,0,0,0,0,0,null,null,null,null,null,null,0]
[null,null,null,"Другие энергоснабжающие организации",271,0,null,null,null,null,null,null,0,null,null,null,null,null,null,0,null,null,null,null,null,null,0,null,null,null,null,null,null,0,null,null,null,null,null,null,0,null,null,null,null,null,null,0,null,null,null,null,null,null,0,null,null,null,null,null,null,0,0,0,0,0,0,0,0,0,0,0,0,0,0,0,null,null,null,null,null,null,0]
[null,null,null,"Потребители с максимальной мощностью принадлежащих им энергопринимающих устройств от 150 кВт до 670 кВт",300,{"$f":"SUM(F33:F39)","v":2820.5881300000001},0,0,0,2820.5881300000001,0,0,12029.07,0,0,0,12029.07,0,0,0,0,0,0,0,0,0,0,0,0,0,0,0,0,0,0,0,0,{"$f":"SUM(AL33:AL39)","v":0},0,0,0,0,0,0,0,0,0,0,0,0,0,0,0,0,0,0,0,0,0,0,0,2820.5881300000001,0,0,0,2820.5881300000001,0,0,12029.07,{"$f":"SUM(BR33:BR39)","v":0},0,0,12029.07,0,0,0,0,0,0,0,0,0,739.85059999999999,0,0,0,739.85059999999999,0,0]
[null,null,null,"Промышленные и приравненные к ним потребители",311,{"$f":"SUM(G33:L33)","v":0},null,null,null,null,null,null,{"$f":"SUM(N33:S33)","v":0},null,null,null,null,null,null,{"$f":"SUM(U33:Z33)","v":0},null,null,null,null,null,null,{"$f":"SUM(AB33:AG33)","v":0},null,null,null,null,null,null,{"$f":"SUM(AI33:AN33)","v":0},null,null,null,null,null,null,{"$f":"SUM(AP33:AU33)","v":0},null,null,null,null,null,null,{"$f":"SUM(AW33:BB33)","v":0},null,null,null,null,null,null,{"$f":"SUM(BD33:BI33)","v":0},null,null,null,null,null,null,{"$f":"SUM(BK33:BP33)","v":0},{"$f":"AI33+U33+G33","v":0},{"$f":"AJ33+V33+H33","v":0},{"$f":"AK33+W33+I33","v":0},{"$f":"AL33+X33+J33","v":0},{"$f":"AM33+Y33+K33","v":0},{"$f":"AN33+Z33+L33","v":0},{"$f":"SUM(BR33:BW33)","v":0},{"$f":"AP33+AB33+N33","v":0},{"$f":"AQ33+AC33+O33","v":0},{"$f":"AR33+AD33+P33","v":0},{"$f":"AS33+AE33+Q33","v":0},{"$f":"AT33+AF33+R33","v":0},{"$f":"AU33+AG33+S33","v":0},{"$f":"SUM(BY33:CD33)","v":0},null,null,null,null,null,null,{"$f":"SUM(CF33:CK33)","v":0}]
[null,null,null,"Электрифицированный железнодорожный транспорт",321,{"$f":"SUM(G34:L34)","v":0},null,null,null,null,null,null,{"$f":"SUM(N34:S34)","v":0},null,null,null,null,null,null,{"$f":"SUM(U34:Z34)","v":0},null,null,null,null,null,null,{"$f":"SUM(AB34:AG34)","v":0},null,null,null,null,null,null,{"$f":"SUM(AI34:AN34)","v":0},null,null,null,null,null,null,{"$f":"SUM(AP34:AU34)","v":0},null,null,null,null,null,null,{"$f":"SUM(AW34:BB34)","v":0},null,null,null,null,null,null,{"$f":"SUM(BD34:BI34)","v":0},null,null,null,null,null,null,{"$f":"SUM(BK34:BP34)","v":0},0,0,0,0,0,0,{"$f":"SUM(BR34:BW34)","v":0},0,0,0,0,0,0,{"$f":"SUM(BY34:CD34)","v":0},null,null,null,null,null,null,{"$f":"SUM(CF34:CK34)","v":0}]
[null,null,null,"Электрифицированный городской транспорт",331,0,null,null,null,null,null,null,0,null,null,null,null,null,null,0,null,null,null,null,null,null,0,null,null,null,null,null,null,0,null,null,null,null,null,null,0,null,null,null,null,null,null,0,null,null,null,null,null,null,0,null,null,null,null,null,null,0,0,0,0,0,0,0,0,0,0,0,0,0,0,0,null,null,null,null,null,null,0]
[null,null,null,"Непромышленные потребители",341,2498.3300300000001,null,null,null,2498.3300300000001,null,null,10685.4136,null,null,null,10685.4136,null,null,0,null,null,null,null,null,null,0,null,null,null,null,null,null,0,null,null,null,null,null,null,0,null,null,null,null,null,null,0,null,null,null,null,null,null,0,null,null,null,null,null,null,2498.3300300000001,0,0,0,2498.3300300000001,0,0,10685.4136,0,0,0,10685.4136,0,0,0,null,null,null,null,null,null,-71.748199999999997,null,null,null,-71.748199999999997]
[null,null,null,"Сельскохозяйственные товаропроизводители",351,0,null,null,null,null,null,null,0,null,null,null,null,null,null,0,null,null,null,null,null,null,0,null,null,null,null,null,null,0,null,null,null,null,null,null,0,null,null,null,null,null,null,0,null,null,null,null,null,null,0,null,null,null,null,null,null,0,0,0,0,0,0,0,0,0,0,0,0,0,0,0,null,null,null,null,null,null,0]
[null,null,null,"Бюджетные потребители",361,322.25810000000001,null,null,null,322.25810000000001,null,null,1343.6564000000001,null,null,null,1343.6564000000001,null,null,0,null,null,null,null,null,null,0,null,null,null,null,null,null,0,null,null,null,null,null,null,0,null,null,null,null,null,null,0,null,null,null,null,null,null,0,null,null,null,null,null,null,322.25810000000001,0,0,0,322.25810000000001,0,0,1343.6564000000001,0,0,0,1343.6564000000001,0,0,0,null,null,null,null,null,null,811.59879999999998,null,null,null,811.59879999999998]
[null,null,null,"Другие энергоснабжающие организации",371,0,null,null,null,null,null,null,0,null,null,null,null,null,null,0,null,null,null,null,null,null,0,null,null,null,null,null,null,0,null,null,null,null,null,null,0,null,null,null,null,null,null,0,null,null,null,null,null,null,0,null,null,null,null,null,null,0,0,0,0,0,0,0,0,0,0,0,0,0,0,0,null,null,null,null,null,null,0]
[null,null,null,"Потребители с максимальной мощностью принадлежащих им энергопринимающих устройств до 150 кВт",400,{"$f":"SUM(F41:F47)","v":1844.8615},0,0,0,1844.8615,0,0,7994.1698000000006,0,0,0,7994.1698000000006,0,0,41.145400000000002,0,0,0,41.145400000000002,0,0,219.66730000000001,0,0,0,219.66730000000001,0,0,0,0,0,0,{"$f":"SUM(AL41:AL47)","v":0},0,0,0,0,0,0,0,0,0,0,0,0,0,0,0,0,0,0,0,0,0,0,0,1886.0068999999999,0,0,0,1886.0068999999999,0,0,8213.8371000000006,{"$f":"SUM(BR41:BR47)","v":0},0,0,8213.8371000000006,0,0,0,0,0,0,0,0,0,865.07817999999997,0,0,0,865.07817999999997,0,0]
[null,null,null,"Промышленные и приравненные к ним потребители",411,{"$f":"SUM(G41:L41)","v":0},null,null,null,null,null,null,{"$f":"SUM(N41:S41)","v":0},null,null,null,null,null,null,{"$f":"SUM(U41:Z41)","v":0},null,null,null,null,null,null,{"$f":"SUM(AB41:AG41)","v":0},null,null,null,null,null,null,{"$f":"SUM(AI41:AN41)","v":0},null,null,null,null,null,null,{"$f":"SUM(AP41:AU41)","v":0},null,null,null,null,null,null,{"$f":"SUM(AW41:BB41)","v":0},null,null,null,null,null,null,{"$f":"SUM(BD41:BI41)","v":0},null,null,null,null,null,null,{"$f":"SUM(BK41:BP41)","v":0},{"$f":"AI41+U41+G41","v":0},{"$f":"AJ41+V41+H41","v":0},{"$f":"AK41+W41+I41","v":0},{"$f":"AL41+X41+J41","v":0},{"$f":"AM41+Y41+K41","v":0},{"$f":"AN41+Z41+L41","v":0},{"$f":"SUM(BR41:BW41)","v":0},{"$f":"AP41+AB41+N41","v":0},{"$f":"AQ41+AC41+O41","v":0},{"$f":"AR41+AD41+P41","v":0},{"$f":"AS41+AE41+Q41","v":0},{"$f":"AT41+AF41+R41","v":0},{"$f":"AU41+AG41+S41","v":0},{"$f":"SUM(BY41:CD41)","v":0},null,null,null,null,null,null,{"$f":"SUM(CF41:CK41)","v":0}]
[null,null,null,"Электрифицированный железнодорожный транспорт",421,{"$f":"SUM(G42:L42)","v":0},null,null,null,null,null,null,{"$f":"SUM(N42:S42)","v":0},null,null,null,null,null,null,{"$f":"SUM(U42:Z42)","v":0},null,null,null,null,null,null,{"$f":"SUM(AB42:AG42)","v":0},null,null,null,null,null,null,{"$f":"SUM(AI42:AN42)","v":0},null,null,null,null,null,null,{"$f":"SUM(AP42:AU42)","v":0},null,null,null,null,null,null,{"$f":"SUM(AW42:BB42)","v":0},null,null,null,null,null,null,{"$f":"SUM(BD42:BI42)","v":0},null,null,null,null,null,null,{"$f":"SUM(BK42:BP42)","v":0},0,0,0,0,0,0,{"$f":"SUM(BR42:BW42)","v":0},0,0,0,0,0,0,{"$f":"SUM(BY42:CD42)","v":0},null,null,null,null,null,null,{"$f":"SUM(CF42:CK42)","v":0}]
[null,null,null,"Электрифицированный городской транспорт",431,0,null,null,null,null,null,null,0,null,null,null,null,null,null,0,null,null,null,null,null,null,0,null,null,null,null,null,null,0,null,null,null,null,null,null,0,null,null,null,null,null,null,0,null,null,null,null,null,null,0,null,null,null,null,null,null,0,0,0,0,0,0,0,0,0,0,0,0,0,0,0,null,null,null,null,null,null,0]
[null,null,null,"Непромышленные потребители",441,1834.3915999999999,null,null,null,1834.3915999999999,null,null,7948.8787000000002,null,null,null,7948.8787000000002,null,null,0,null,null,null,null,null,null,0,null,null,null,null,null,null,0,null,null,null,null,null,null,0,null,null,null,null,null,null,0,null,null,null,null,null,null,0,null,null,null,null,null,null,1834.3915999999999,0,0,0,1834.3915999999999,0,0,7948.8787000000002,0,0,0,7948.8787000000002,0,0,0,null,null,null,null,null,null,822.79809999999998,null,null,null,822.79809999999998]
[null,null,null,"Сельскохозяйственные товаропроизводители",451,0,null,null,null,null,null,null,0,null,null,null,null,null,null,0,null,null,null,null,null,null,0,null,null,null,null,null,null,0,null,null,null,null,null,null,0,null,null,null,null,null,null,0,null,null,null,null,null,null,0,null,null,null,null,null,null,0,0,0,0,0,0,0,0,0,0,0,0,0,0,0,null,null,null,null,null,null,0]
[null,null,null,"Бюджетные потребители",461,10.469900000000001,null,null,null,10.469900000000001,null,null,45.2911,null,null,null,45.2911,null,null,41.145400000000002,null,null,null,41.145400000000002,null,null,219.66730000000001,null,null,null,219.66730000000001,null,null,0,null,null,null,null,null,null,0,null,null,null,null,null,null,0,null,null,null,null,null,null,0,null,null,null,null,null,null,51.615300000000005,0,0,0,51.615300000000005,0,0,264.95839999999998,0,0,0,264.95839999999998,0,0,0,null,null,null,null,null,null,42.280079999999998,null,null,null,42.280079999999998]
[null,null,null,"Другие энергоснабжающие организации",471,0,null,null,null,null,null,null,0,null,null,null,null,null,null,0,null,null,null,null,null,null,0,null,null,null,null,null,null,0,null,null,null,null,null,null,0,null,null,null,null,null,null,0,null,null,null,null,null,null,0,null,null,null,null,null,null,0,0,0,0,0,0,0,0,0,0,0,0,0,0,0,null,null,null,null,null,null,0]
[null,null,null,"Компенсация расхода электрической энергии на передачу сетевыми организациями",500,0,null,null,null,null,null,null,0,null,null,null,null,null,null,0,null,null,null,null,null,null,0,null,null,null,null,null,null,0,null,null,null,null,null,null,0,null,null,null,null,null,null,0,null,null,null,null,null,null,0,null,null,null,null,null,null,0,0,{"$f":"AJ48+V48+H48","v":0},{"$f":"AK48+W48+I48","v":0},{"$f":"AL48+X48+J48","v":0},{"$f":"AM48+Y48+K48","v":0},{"$f":"AN48+Z48+L48","v":0},0,{"$f":"AP48+AB48+N48","v":0},0,0,0,0,0,0,null,null,null,null,null,null,0]
[null,null,null,"Полезный отпуск - всего ",600,{"$f":"SUM(F17:F23)+SUM(F25:F31)+SUM(F33:F39)+SUM(F41:F47)","v":4665.4496300000001},{"$f":"SUM(G17:G23)+SUM(G25:G31)+SUM(G33:G39)+SUM(G41:G47)","v":0},0,0,4665.4496300000001,0,0,20023.239799999999,0,0,0,20023.239799999999,0,0,41.145400000000002,0,0,0,41.145400000000002,0,0,219.66730000000001,0,0,0,219.66730000000001,0,0,0,0,0,0,0,0,0,0,0,0,0,0,0,0,0,0,0,0,0,0,0,0,0,0,0,0,0,0,4706.5950300000004,0,0,0,4706.5950300000004,0,0,20242.9071,0,{"$f":"SUM(BS17:BS23)+SUM(BS25:BS31)+SUM(BS33:BS39)+SUM(BS41:BS47)","v":0},0,20242.9071,0,0,0,0,0,0,0,0,0,1604.92878,0,0,0,1604.92878,0,0]
[]
[]
[null,null,null,"Руководитель организации",{"$f":"IF(Титульный!$G$40=\"\",\"\",Титульный!$G$40)","v":"Лукишин Игорь Геннадьевич"}]
[null,null,null,null,"(Ф.И.О.)",null,null,null,null,"(подпись)"]
[]
[]
[null,null,null,"Должностное лицо,",{"$f":"IF(Титульный!$G$49=\"\",\"\",Титульный!$G$49)","v":"Начальник службы ЭСТОП"},null,null,{"$f":"IF(Титульный!$G$48=\"\",\"\",Титульный!$G$48)","v":"Аксенов Владимир Васильевич"}]
[null,null,null," ответственное за","(должность)",null,null,"(Ф.И.О.)",null,null,null,"(подпись)"]
[null,null,null,"составление формы"]
[null,null,null,null,{"$f":"IF(Титульный!$G$50=\"\",\"\",Титульный!$G$50)","v":"8(423)2306-940"},null,null,null,"«____» _________20__ год"]
[null,null,null,null,"(номер контактного телефона)",null,null,null,"(дата составления документа)"]

{"sheet":"Раздел I. Б","index":5,"n_rows":60,"n_cols":75,"rows_kept":60,"cut":false,"hidden":false,"merged":[[59,4,59,6],[51,4,51,7],[51,9,51,10],[52,4,52,7],[52,9,52,10],[55,4,55,5],[56,4,56,5],[56,7,56,9],[56,11,56,12],[58,4,58,6],[55,7,55,9],[12,68,13,68],[12,69,12,74],[12,34,12,39],[12,40,13,40],[12,41,12,46],[12,47,13,47],[12,48,12,53],[11,40,11,46],[11,47,11,53],[11,54,11,60],[12,54,13,54],[11,26,11,32],[11,33,11,39],[11,68,11,74],[12,5,13,5],[12,6,12,11],[12,12,13,12],[12,13,12,18],[12,19,13,19],[12,20,12,25],[12,26,13,26],[12,61,13,61],[12,62,12,67],[11,61,11,67],[12,33,13,33],[10,3,10,10],[11,3,13,3],[11,4,13,4],[11,5,11,11],[12,27,12,32],[12,55,12,60],[11,12,11,18],[11,19,11,25]]}
[]
[]
[]
[]
[]
[]
[]
[null,null,null,"Раздел I. Полезный отпуск электроэнергии и мощности, реализуемой по регулируемым тарифам (ценам)"]
[null,null,null,"Б. Полезный отпуск электроэнергии и мощности, реализуемой по регулируемым тарифам (ценам) по Договору купли-продажи"]
[null,null,null,{"$f":"IF(org=\"\",\"Не определено\",org)","v":"ОАО \"Международный аэропорт Владивосток\" "}]
[null,null,null,null,null,null,null,null,null,null,null,null,null,null,null,null,null,null,null,null,null,null,null,null,null,null,null,null,null,null,null,null,null,null,null,null,null,null,null,null,null,null,null,null,null,null,null,null,null,null,null,null,null,null,null,null,null,null,null,null,null,null,null,null,null,null,null,null,null,null,null,null,null,null,"Коды по ОКЕИ: 1000 киловатт-часов – 246, мегаватт – 215, тысяча рублей – 384"]
[null,null,null,"Потребители","Код строки","Объем электрической энергии потребителей, осуществляющих оплату по одноставочным тарифам (ценам) за отчетный месяц (год), тыс кВт ч",null,null,null,null,null,null,"Стоимость электрической энергии потребителей, осуществляющих оплату по одноставочным тарифам (ценам) за отчетный месяц (год) \nбез НДС, тыс руб",null,null,null,null,null,null,"Объем электрической энергии потребителей, осуществляющих оплату по зонным тарифам (ценам) за отчетный месяц (год), \nтыс кВт ч",null,null,null,null,null,null,"Стоимость электрической энергии потребителей, осуществляющих оплату по зонным тарифам (ценам) за отчетный месяц (год) без НДС, тыс руб",null,null,null,null,null,null,"Объем электрической энергии потребителей, осуществляющих оплату по трехставочным тарифам (ценам) за отчетный месяц (год), тыс кВт ч",null,null,null,null,null,null,"Стоимость электрической энергии потребителей, осуществляющих оплату по трехставочным тарифам (ценам) за отчетный месяц (год) без НДС, тыс руб",null,null,null,null,null,null,"Объем электрической энергии за отчетный месяц (год), \nтыс кВт ч",null,null,null,null,null,null,"Стоимость электрической энергии за отчетный месяц (год) \nбез НДС, тыс руб",null,null,null,null,null,null,"Стоимость электрической энергии (мощности) без учета стоимости отклонений за отчетный месяц (год) без НДС, по двухставочным тарифам (ценам) за отчетный месяц (год) без НДС, тыс руб",null,null,null,null,null,null,"Стоимость отклонений фактических объемов потребления электрической энергии от плановых (договорных) значений за отчетный месяц (год) \nбез НДС, тыс руб"]
[null,null,null,null,null,"всего","в том числе:",null,null,null,null,null,"всего","в том числе:",null,null,null,null,null,"всего","в том числе:",null,null,null,null,null,"всего","в том числе:",null,null,null,null,null,"всего","в том числе:",null,null,null,null,null,"всего","в том числе:",null,null,null,null,null,"всего","в том числе:",null,null,null,null,null,"всего","в том числе:",null,null,null,null,null,"всего","в том числе:",null,null,null,null,null,"всего","в том числе:"]
[null,null,null,null,null,null,"ВН","СН1","СН2","НН","ФСК","ГН",null,"ВН","СН1","СН2","НН","ФСК","ГН",null,"ВН","СН1","СН2","НН","ФСК","ГН",null,"ВН","СН1","СН2","НН","ФСК","ГН",null,"ВН","СН1","СН2","НН","ФСК","ГН",null,"ВН","СН1","СН2","НН","ФСК","ГН",null,"ВН","СН1","СН2","НН","ФСК","ГН",null,"ВН","СН1","СН2","НН","ФСК","ГН",null,"ВН","СН1","СН2","НН","ФСК","ГН",null,"ВН","СН1","СН2","НН","ФСК","ГН"]
[null,null,null,1,2,3,4,5,6,7,8,9,10,11,12,13,14,15,16,17,18,19,20,21,22,23,24,25,26,27,28,29,30,31,32,33,34,35,36,37,38,39,40,41,42,43,44,45,46,47,48,49,50,51,52,53,54,55,56,57,58,59,60,61,62,63,64,65,66,67,68,69,70,71,72]
[null,null,null,"Потребители с максимальной мощностью принадлежащих им энергопринимающих устройств от 10 МВт",100,{"$f":"SUM(F17:F23)","v":0},{"$f":"SUM(G17:G23)","v":0},0,0,0,0,0,{"$f":"SUM(M17:M23)","v":0},0,0,0,0,0,0,0,0,0,0,0,0,0,0,0,0,0,0,0,0,0,0,0,0,0,0,0,0,0,0,0,{"$f":"SUM(AS17:AS23)","v":0},0,0,0,0,0,0,0,0,0,0,0,0,0,0,0,0,0,0,0,0,0,0,0,0,0,0,0,0,0,0]
[null,null,null,"Промышленные и приравненные к ним потребители",111,{"$f":"SUM(G17:L17)","v":0},null,null,null,null,null,null,{"$f":"SUM(N17:S17)","v":0},null,null,null,null,null,null,{"$f":"SUM(U17:Z17)","v":0},null,null,null,null,null,null,{"$f":"SUM(AB17:AG17)","v":0},null,null,null,null,null,null,{"$f":"SUM(AI17:AN17)","v":0},null,null,null,null,null,null,{"$f":"SUM(AP17:AU17)","v":0},null,null,null,null,null,null,{"$f":"SUM(AW17:BB17)","v":0},{"$f":"AI17+U17+G17","v":0},0,0,0,0,0,{"$f":"SUM(BD17:BI17)","v":0},{"$f":"AP17+AB17+N17","v":0},0,0,0,0,0,{"$f":"SUM(BK17:BP17)","v":0},null,null,null,null,null,null,{"$f":"SUM(BR17:BW17)","v":0}]
[null,null,null,"Электрифицированный железнодорожный транспорт",121,{"$f":"SUM(G18:L18)","v":0},null,null,null,null,null,null,{"$f":"SUM(N18:S18)","v":0},null,null,null,null,null,null,{"$f":"SUM(U18:Z18)","v":0},null,null,null,null,null,null,{"$f":"SUM(AB18:AG18)","v":0},null,null,null,null,null,null,{"$f":"SUM(AI18:AN18)","v":0},null,null,null,null,null,null,{"$f":"SUM(AP18:AU18)","v":0},null,null,null,null,null,null,{"$f":"SUM(AW18:BB18)","v":0},0,0,0,0,0,0,{"$f":"SUM(BD18:BI18)","v":0},0,0,0,0,0,{"$f":"AU18+AG18+S18","v":0},{"$f":"SUM(BK18:BP18)","v":0},null,null,null,null,null,null,{"$f":"SUM(BR18:BW18)","v":0}]
[null,null,null,"Электрифицированный городской транспорт",131,0,null,null,null,null,null,null,0,null,null,null,null,null,null,0,null,null,null,null,null,null,0,null,null,null,null,null,null,0,null,null,null,null,null,null,0,null,null,null,null,null,null,0,0,0,0,0,0,0,0,0,0,0,0,0,0,0,null,null,null,null,null,null,0]
[null,null,null,"Непромышленные потребители",141,0,null,null,null,null,null,null,0,null,null,null,null,null,null,0,null,null,null,null,null,null,0,null,null,null,null,null,null,0,null,null,null,null,null,null,0,null,null,null,null,null,null,0,0,0,0,0,0,0,0,0,0,0,0,0,0,0,null,null,null,null,null,null,0]
[null,null,null,"Сельскохозяйственные товаропроизводители",151,0,null,null,null,null,null,null,0,null,null,null,null,null,null,0,null,null,null,null,null,null,0,null,null,null,null,null,null,0,null,null,null,null,null,null,0,null,null,null,null,null,null,0,0,0,0,0,0,0,0,0,0,0,0,0,0,0,null,null,null,null,null,null,0]
[null,null,null,"Бюджетные потребители",161,0,null,null,null,null,null,null,0,null,null,null,null,null,null,0,null,null,null,null,null,null,0,null,null,null,null,null,null,0,null,null,null,null,null,null,0,null,null,null,null,null,null,0,0,0,0,0,0,0,0,0,0,0,0,0,0,0,null,null,null,null,null,null,0]
[null,null,null,"Другие энергоснабжающие организации",171,0,null,null,null,null,null,null,0,null,null,null,null,null,null,0,null,null,null,null,null,null,0,null,null,null,null,null,null,0,null,null,null,null,null,null,0,null,null,null,null,null,null,0,0,0,0,0,0,0,0,0,0,0,0,0,0,0,null,null,null,null,null,null,0]
[null,null,null,"Потребители с максимальной мощностью принадлежащих им энергопринимающих устройств от 670 кВт до 10 МВт",200,{"$f":"SUM(F25:F31)","v":0},{"$f":"SUM(G25:G31)","v":0},0,0,0,0,0,{"$f":"SUM(M25:M31)","v":0},0,0,0,0,0,0,0,0,0,0,0,0,0,0,0,0,0,0,0,0,0,0,0,0,0,0,0,0,0,0,0,{"$f":"SUM(AS25:AS31)","v":0},0,0,0,0,0,0,0,0,0,0,0,0,0,0,0,0,0,0,0,0,0,0,0,0,0,0,0,0,0,0]
[null,null,null,"Промышленные и приравненные к ним потребители",211,{"$f":"SUM(G25:L25)","v":0},null,null,null,null,null,null,{"$f":"SUM(N25:S25)","v":0},null,null,null,null,null,null,{"$f":"SUM(U25:Z25)","v":0},null,null,null,null,null,null,{"$f":"SUM(AB25:AG25)","v":0},null,null,null,null,null,null,{"$f":"SUM(AI25:AN25)","v":0},null,null,null,null,null,null,{"$f":"SUM(AP25:AU25)","v":0},null,null,null,null,null,null,{"$f":"SUM(AW25:BB25)","v":0},{"$f":"AI25+U25+G25","v":0},{"$f":"AJ25+V25+H25","v":0},{"$f":"AK25+W25+I25","v":0},{"$f":"AL25+X25+J25","v":0},{"$f":"AM25+Y25+K25","v":0},{"$f":"AN25+Z25+L25","v":0},{"$f":"SUM(BD25:BI25)","v":0},{"$f":"AP25+AB25+N25","v":0},{"$f":"AQ25+AC25+O25","v":0},{"$f":"AR25+AD25+P25","v":0},{"$f":"AS25+AE25+Q25","v":0},{"$f":"AT25+AF25+R25","v":0},{"$f":"AU25+AG25+S25","v":0},{"$f":"SUM(BK25:BP25)","v":0},null,null,null,null,null,null,{"$f":"SUM(BR25:BW25)","v":0}]
[null,null,null,"Электрифицированный железнодорожный транспорт",221,{"$f":"SUM(G26:L26)","v":0},null,null,null,null,null,null,{"$f":"SUM(N26:S26)","v":0},null,null,null,null,null,null,{"$f":"SUM(U26:Z26)","v":0},null,null,null,null,null,null,{"$f":"SUM(AB26:AG26)","v":0},null,null,null,null,null,null,{"$f":"SUM(AI26:AN26)","v":0},null,null,null,null,null,null,{"$f":"SUM(AP26:AU26)","v":0},null,null,null,null,null,null,{"$f":"SUM(AW26:BB26)","v":0},0,0,0,0,0,0,{"$f":"SUM(BD26:BI26)","v":0},0,0,0,0,0,0,{"$f":"SUM(BK26:BP26)","v":0},null,null,null,null,null,null,{"$f":"SUM(BR26:BW26)","v":0}]
[null,null,null,"Электрифицированный городской транспорт",231,0,null,null,null,null,null,null,0,null,null,null,null,null,null,0,null,null,null,null,null,null,0,null,null,null,null,null,null,0,null,null,null,null,null,null,0,null,null,null,null,null,null,0,0,0,0,0,0,0,0,0,0,0,0,0,0,0,null,null,null,null,null,null,0]
[null,null,null,"Непромышленные потребители",241,0,null,null,null,null,null,null,0,null,null,null,null,null,null,0,null,null,null,null,null,null,0,null,null,null,null,null,null,0,null,null,null,null,null,null,0,null,null,null,null,null,null,0,0,0,0,0,0,0,0,0,0,0,0,0,0,0,null,null,null,null,null,null,0]
[null,null,null,"Сельскохозяйственные товаропроизводители",251,0,null,null,null,null,null,null,0,null,null,null,null,null,null,0,null,null,null,null,null,null,0,null,null,null,null,null,null,0,null,null,null,null,null,null,0,null,null,null,null,null,null,0,0,0,0,0,0,0,0,0,0,0,0,0,0,0,null,null,null,null,null,null,0]
[null,null,null,"Бюджетные потребители",261,0,null,null,null,null,null,null,0,null,null,null,null,null,null,0,null,null,null,null,null,null,0,null,null,null,null,null,null,0,null,null,null,null,null,null,0,null,null,null,null,null,null,0,0,0,0,0,0,0,0,0,0,0,0,0,0,0,null,null,null,null,null,null,0]
[null,null,null,"Другие энергоснабжающие организации",271,0,null,null,null,null,null,null,0,null,null,null,null,null,null,0,null,null,null,null,null,null,0,null,null,null,null,null,null,0,null,null,null,null,null,null,0,null,null,null,null,null,null,0,0,0,0,0,0,0,0,0,0,0,0,0,0,0,null,null,null,null,null,null,0]
[null,null,null,"Потребители с максимальной мощностью принадлежащих им энергопринимающих устройств от 150 кВт до 670 кВт",300,{"$f":"SUM(F33:F39)","v":0},{"$f":"SUM(G33:G39)","v":0},0,0,0,0,0,{"$f":"SUM(M33:M39)","v":0},0,0,0,0,0,0,0,0,0,0,0,0,0,0,0,0,0,0,0,0,0,0,0,0,0,0,0,0,0,0,0,{"$f":"SUM(AS33:AS39)","v":0},0,0,0,0,0,0,0,0,0,0,0,0,0,0,0,0,0,0,0,0,0,0,0,0,0,0,0,0,0,0]
[null,null,null,"Промышленные и приравненные к ним потребители",311,{"$f":"SUM(G33:L33)","v":0},null,null,null,null,null,null,{"$f":"SUM(N33:S33)","v":0},null,null,null,null,null,null,{"$f":"SUM(U33:Z33)","v":0},null,null,null,null,null,null,{"$f":"SUM(AB33:AG33)","v":0},null,null,null,null,null,null,{"$f":"SUM(AI33:AN33)","v":0},null,null,null,null,null,null,{"$f":"SUM(AP33:AU33)","v":0},null,null,null,null,null,null,{"$f":"SUM(AW33:BB33)","v":0},{"$f":"AI33+U33+G33","v":0},{"$f":"AJ33+V33+H33","v":0},{"$f":"AK33+W33+I33","v":0},{"$f":"AL33+X33+J33","v":0},{"$f":"AM33+Y33+K33","v":0},{"$f":"AN33+Z33+L33","v":0},{"$f":"SUM(BD33:BI33)","v":0},{"$f":"AP33+AB33+N33","v":0},{"$f":"AQ33+AC33+O33","v":0},{"$f":"AR33+AD33+P33","v":0},{"$f":"AS33+AE33+Q33","v":0},{"$f":"AT33+AF33+R33","v":0},{"$f":"AU33+AG33+S33","v":0},{"$f":"SUM(BK33:BP33)","v":0},null,null,null,null,null,null,{"$f":"SUM(BR33:BW33)","v":0}]
[null,null,null,"Электрифицированный железнодорожный транспорт",321,{"$f":"SUM(G34:L34)","v":0},null,null,null,null,null,null,{"$f":"SUM(N34:S34)","v":0},null,null,null,null,null,null,{"$f":"SUM(U34:Z34)","v":0},null,null,null,null,null,null,{"$f":"SUM(AB34:AG34)","v":0},null,null,null,null,null,null,{"$f":"SUM(AI34:AN34)","v":0},null,null,null,null,null,null,{"$f":"SUM(AP34:AU34)","v":0},null,null,null,null,null,null,{"$f":"SUM(AW34:BB34)","v":0},0,0,0,0,0,0,{"$f":"SUM(BD34:BI34)","v":0},0,0,0,0,0,0,{"$f":"SUM(BK34:BP34)","v":0},null,null,null,null,null,null,{"$f":"SUM(BR34:BW34)","v":0}]
[null,null,null,"Электрифицированный городской транспорт",331,0,null,null,null,null,null,null,0,null,null,null,null,null,null,0,null,null,null,null,null,null,0,null,null,null,null,null,null,0,null,null,null,null,null,null,0,null,null,null,null,null,null,0,0,0,0,0,0,0,0,0,0,0,0,0,0,0,null,null,null,null,null,null,0]
[null,null,null,"Непромышленные потребители",341,0,null,null,null,null,null,null,0,null,null,null,null,null,null,0,null,null,null,null,null,null,0,null,null,null,null,null,null,0,null,null,null,null,null,null,0,null,null,null,null,null,null,0,0,0,0,0,0,0,0,0,0,0,0,0,0,0,null,null,null,null,null,null,0]
[null,null,null,"Сельскохозяйственные товаропроизводители",351,0,null,null,null,null,null,null,0,null,null,null,null,null,null,0,null,null,null,null,null,null,0,null,null,null,null,null,null,0,null,null,null,null,null,null,0,null,null,null,null,null,null,0,0,0,0,0,0,0,0,0,0,0,0,0,0,0,null,null,null,null,null,null,0]
[null,null,null,"Бюджетные потребители",361,0,null,null,null,null,null,null,0,null,null,null,null,null,null,0,null,null,null,null,null,null,0,null,null,null,null,null,null,0,null,null,null,null,null,null,0,null,null,null,null,null,null,0,0,0,0,0,0,0,0,0,0,0,0,0,0,0,null,null,null,null,null,null,0]
[null,null,null,"Другие энергоснабжающие организации",371,0,null,null,null,null,null,null,0,null,null,null,null,null,null,0,null,null,null,null,null,null,0,null,null,null,null,null,null,0,null,null,null,null,null,null,0,null,null,null,null,null,null,0,0,0,0,0,0,0,0,0,0,0,0,0,0,0,null,null,null,null,null,null,0]
[null,null,null,"Потребители с максимальной мощностью принадлежащих им энергопринимающих устройств до 150 кВт",400,{"$f":"SUM(F41:F47)","v":0},{"$f":"SUM(G41:G47)","v":0},0,0,0,0,0,{"$f":"SUM(M41:M47)","v":0},0,0,0,0,0,0,0,0,0,0,0,0,0,0,0,0,0,0,0,0,0,0,0,0,0,0,0,0,0,0,0,{"$f":"SUM(AS41:AS47)","v":0},0,0,0,0,0,0,0,0,0,0,0,0,0,0,0,0,0,0,0,0,0,0,0,0,0,0,0,0,0,0]
[null,null,null,"Промышленные и приравненные к ним потребители",411,{"$f":"SUM(G41:L41)","v":0},null,null,null,null,null,null,{"$f":"SUM(N41:S41)","v":0},null,null,null,null,null,null,{"$f":"SUM(U41:Z41)","v":0},null,null,null,null,null,null,{"$f":"SUM(AB41:AG41)","v":0},null,null,null,null,null,null,{"$f":"SUM(AI41:AN41)","v":0},null,null,null,null,null,null,{"$f":"SUM(AP41:AU41)","v":0},null,null,null,null,null,null,{"$f":"SUM(AW41:BB41)","v":0},{"$f":"AI41+U41+G41","v":0},{"$f":"AJ41+V41+H41","v":0},{"$f":"AK41+W41+I41","v":0},{"$f":"AL41+X41+J41","v":0},{"$f":"AM41+Y41+K41","v":0},{"$f":"AN41+Z41+L41","v":0},{"$f":"SUM(BD41:BI41)","v":0},{"$f":"AP41+AB41+N41","v":0},{"$f":"AQ41+AC41+O41","v":0},{"$f":"AR41+AD41+P41","v":0},{"$f":"AS41+AE41+Q41","v":0},{"$f":"AT41+AF41+R41","v":0},{"$f":"AU41+AG41+S41","v":0},{"$f":"SUM(BK41:BP41)","v":0},null,null,null,null,null,null,{"$f":"SUM(BR41:BW41)","v":0}]
[null,null,null,"Электрифицированный железнодорожный транспорт",421,{"$f":"SUM(G42:L42)","v":0},null,null,null,null,null,null,{"$f":"SUM(N42:S42)","v":0},null,null,null,null,null,null,{"$f":"SUM(U42:Z42)","v":0},null,null,null,null,null,null,{"$f":"SUM(AB42:AG42)","v":0},null,null,null,null,null,null,{"$f":"SUM(AI42:AN42)","v":0},null,null,null,null,null,null,{"$f":"SUM(AP42:AU42)","v":0},null,null,null,null,null,null,{"$f":"SUM(AW42:BB42)","v":0},0,0,0,0,0,0,{"$f":"SUM(BD42:BI42)","v":0},0,0,0,0,0,0,{"$f":"SUM(BK42:BP42)","v":0},null,null,null,null,null,null,{"$f":"SUM(BR42:BW42)","v":0}]
[null,null,null,"Электрифицированный городской транспорт",431,0,null,null,null,null,null,null,0,null,null,null,null,null,null,0,null,null,null,null,null,null,0,null,null,null,null,null,null,0,null,null,null,null,null,null,0,null,null,null,null,null,null,0,0,0,0,0,0,0,0,0,0,0,0,0,0,0,null,null,null,null,null,null,0]
[null,null,null,"Непромышленные потребители",441,0,null,null,null,null,null,null,0,null,null,null,null,null,null,0,null,null,null,null,null,null,0,null,null,null,null,null,null,0,null,null,null,null,null,null,0,null,null,null,null,null,null,0,0,0,0,0,0,0,0,0,0,0,0,0,0,0,null,null,null,null,null,null,0]
[null,null,null,"Сельскохозяйственные товаропроизводители",451,0,null,null,null,null,null,null,0,null,null,null,null,null,null,0,null,null,null,null,null,null,0,null,null,null,null,null,null,0,null,null,null,null,null,null,0,null,null,null,null,null,null,0,0,0,0,0,0,0,0,0,0,0,0,0,0,0,null,null,null,null,null,null,0]
[null,null,null,"Бюджетные потребители",461,0,null,null,null,null,null,null,0,null,null,null,null,null,null,0,null,null,null,null,null,null,0,null,null,null,null,null,null,0,null,null,null,null,null,null,0,null,null,null,null,null,null,0,0,0,0,0,0,0,0,0,0,0,0,0,0,0,null,null,null,null,null,null,0]
[null,null,null,"Другие энергоснабжающие организации",471,0,null,null,null,null,null,null,0,null,null,null,null,null,null,0,null,null,null,null,null,null,0,null,null,null,null,null,null,0,null,null,null,null,null,null,0,null,null,null,null,null,null,0,0,0,0,0,0,0,0,0,0,0,0,0,0,0,null,null,null,null,null,null,0]
[null,null,null,"Компенсация расхода электрической энергии на передачу сетевыми организациями",500,0,null,null,null,null,null,null,0,null,null,null,null,null,null,0,null,null,null,null,null,null,0,null,null,null,null,null,null,0,null,null,null,null,null,null,0,null,null,null,null,null,null,0,{"$f":"AI48+U48+G48","v":0},0,0,0,0,0,0,{"$f":"AP48+AB48+N48","v":0},{"$f":"AQ48+AC48+O48","v":0},{"$f":"AR48+AD48+P48","v":0},{"$f":"AS48+AE48+Q48","v":0},{"$f":"AT48+AF48+R48","v":0},0,0,null,null,null,null,null,null,0]
[null,null,null,"Полезный отпуск - всего ",600,{"$f":"SUM(F17:F23)+SUM(F25:F31)+SUM(F33:F39)+SUM(F41:F47)","v":0},{"$f":"SUM(G17:G23)+SUM(G25:G31)+SUM(G33:G39)+SUM(G41:G47)","v":0},0,0,0,0,0,0,0,0,0,0,0,0,0,0,0,0,0,0,0,0,0,0,0,0,0,0,0,0,0,0,0,0,0,0,0,0,0,0,0,0,0,0,0,0,0,0,0,0,0,0,0,0,0,0,0,0,0,0,0,0,0,0,0,{"$f":"SUM(BS17:BS23)+SUM(BS25:BS31)+SUM(BS33:BS39)+SUM(BS41:BS47)","v":0},{"$f":"SUM(BT17:BT23)+SUM(BT25:BT31)+SUM(BT33:BT39)+SUM(BT41:BT47)","v":0},{"$f":"SUM(BU17:BU23)+SUM(BU25:BU31)+SUM(BU33:BU39)+SUM(BU41:BU47)","v":0},{"$f":"SUM(BV17:BV23)+SUM(BV25:BV31)+SUM(BV33:BV39)+SUM(BV41:BV47)","v":0},{"$f":"SUM(BW17:BW23)+SUM(BW25:BW31)+SUM(BW33:BW39)+SUM(BW41:BW47)","v":0}]
[]
[]
[null,null,null,"Руководитель организации",{"$f":"IF(Титульный!$G$40=\"\",\"\",Титульный!$G$40)","v":"Лукишин Игорь Геннадьевич"}]
[null,null,null,null,"(Ф.И.О.)",null,null,null,null,"(подпись)"]
[]
[]
[null,null,null,"Должностное лицо,",{"$f":"IF(Титульный!$G$49=\"\",\"\",Титульный!$G$49)","v":"Начальник службы ЭСТОП"},null,null,{"$f":"IF(Титульный!$G$48=\"\",\"\",Титульный!$G$48)","v":"Аксенов Владимир Васильевич"}]
[null,null,null," ответственное за","(должность)",null,null,"(Ф.И.О.)",null,null,null,"(подпись)"]
[null,null,null,"составление формы"]
[null,null,null,null,{"$f":"IF(Титульный!$G$50=\"\",\"\",Титульный!$G$50)","v":"8(423)2306-940"},null,null,null,"«____» _________20__ год"]
[null,null,null,null,"(номер контактного телефона)",null,null,null,"(дата составления документа)"]

{"sheet":"Раздел I. В","index":6,"n_rows":71,"n_cols":20,"rows_kept":71,"cut":false,"hidden":false,"merged":[[69,4,69,6],[70,4,70,6],[62,4,62,7],[62,9,62,10],[63,4,63,7],[63,9,63,10],[66,4,66,5],[10,3,10,10],[67,4,67,5],[67,7,67,9],[67,11,67,12],[66,7,66,9],[11,3,12,3],[11,4,12,4],[11,5,12,5],[11,6,12,6],[11,11,11,13],[11,14,11,16],[11,17,11,19],[11,7,12,7],[11,8,12,8],[11,9,12,9],[11,10,12,10]]}
[]
[]
[]
[]
[]
[]
[]
[null,null,null,"Раздел I. Полезный отпуск электроэнергии и мощности, реализуемой по регулируемым тарифам (ценам)"]
[null,null,null,"В. Полезный отпуск электроэнергии, реализуемой населению и приравненным к нему категориям потребителей"]
[null,null,null,{"$f":"IF(org=\"\",\"Не определено\",org)","v":"ОАО \"Международный аэропорт Владивосток\" "}]
[null,null,null,null,null,null,null,null,null,null,null,null,null,null,null,null,null,null,null,"Коды по ОКЕИ: 1000 киловатт-часов – 246, мегаватт – 215, тысяча рублей – 384"]
[null,null,null,"Потребители","Код строки","Объем электрической энергии за отчетный месяц (год), тыс кВт ч всего","Стоимость электрической энергии за отчетный месяц (год) с НДС, тыс руб всего","Стоимость электрической энергии за отчетный месяц (год) без НДС, тыс руб всего","Объем электрической энергии потребителей, осуществляющих оплату по одноставочному тарифу за отчетный месяц (год), тыс кВт ч всего","Стоимость электрической энергии потребителей, осуществляющих оплату по одноставочному тарифу за отчетный месяц (год) с НДС, тыс руб всего","Стоимость электрической энергии потребителей, осуществляющих оплату по одноставочному тарифу за отчетный месяц (год) без НДС,  тыс руб всего","Объем электрической энергии потребителей, осуществляющих оплату по зонным тарифам за отчетный месяц (год), тыс кВт ч",null,null,"Стоимость электрической энергии потребителей, осуществляющих оплату по зонным тарифам за отчетный месяц (год) с НДС, тыс руб всего",null,null,"Стоимость электрической энергии потребителей, осуществляющих оплату по зонным тарифам за отчетный месяц (год) без НДС, тыс руб всего"]
[null,null,null,null,null,null,null,null,null,null,null,"ночь","пик","полупик (день)","ночь","пик","полупик (день)","ночь","пик","полупик (день)"]
[null,null,null,1,2,3,4,5,6,7,8,9,10,11,12,13,14,15,16,17]
[null,null,null,"Население, всего",100,{"$f":"SUM(F16:F17)","v":0},{"$f":"SUM(G16:G17)","v":0},{"$f":"SUM(H16:H17)","v":0},{"$f":"SUM(I16:I17)","v":0},0,0,0,0,0,0,0,0,0,0,{"$f":"SUM(T16:T17)","v":0}]
[null,null,null,"в пределах социальной нормы",110,{"$f":"F19+F22+F25+F28+F31","v":0},0,0,0,0,0,0,{"$f":"M19+M22+M25+M28+M31","v":0},0,0,0,0,0,0,0]
[null,null,null,"сверх социальной нормы",120,{"$f":"F20+F23+F26+F29+F32","v":0},0,0,0,0,0,{"$f":"L20+L23+L26+L29+L32","v":0},0,0,0,0,0,0,0,{"$f":"T20+T23+T26+T29+T32","v":0}]
[null,null,null,"Население, проживающее в городских населенных пунктах в домах, не оборудованных в установленном порядке стационарными электроплитами и (или) электроотопительными установками",200,{"$f":"SUM(F19:F20)","v":0},{"$f":"SUM(G19:G20)","v":0},{"$f":"SUM(H19:H20)","v":0},{"$f":"SUM(I19:I20)","v":0},0,0,0,0,0,0,0,0,0,0,{"$f":"SUM(T19:T20)","v":0}]
[null,null,null,"в пределах социальной нормы",210,{"$f":"I19+L19+M19+N19","v":0},{"$f":"J19+O19+P19+Q19","v":0},{"$f":"K19+R19+S19+T19","v":0},null,{"$f":"K19*1.18","v":0},null,null,null,null,{"$f":"R19*1.18","v":0},0,0]
[null,null,null,"сверх социальной нормы",220,{"$f":"I20+L20+M20+N20","v":0},0,0,null,{"$f":"K20*1.18","v":0},null,null,null,null,0,0,0]
[null,null,null,"Население, проживающее в городских населенных пунктах в домах, оборудованных в установленном порядке стационарными электроплитами",230,{"$f":"SUM(F22:F23)","v":0},{"$f":"SUM(G22:G23)","v":0},{"$f":"SUM(H22:H23)","v":0},{"$f":"SUM(I22:I23)","v":0},0,0,0,0,0,0,0,0,0,0,{"$f":"SUM(T22:T23)","v":0}]
[null,null,null,"в пределах социальной нормы",240,0,0,0,null,{"$f":"K22*1.18","v":0},null,null,null,null,{"$f":"R22*1.18","v":0},0,0]
[null,null,null,"сверх социальной нормы",250,0,0,0,null,{"$f":"K23*1.18","v":0},null,null,null,null,0,0,0]
[null,null,null,"Население, проживающее в городских населенных пунктах в домах, оборудованных в установленном порядке стационарными электроотопительными установками",260,{"$f":"SUM(F25:F26)","v":0},{"$f":"SUM(G25:G26)","v":0},{"$f":"SUM(H25:H26)","v":0},{"$f":"SUM(I25:I26)","v":0},0,0,0,0,0,0,0,0,0,0,{"$f":"SUM(T25:T26)","v":0}]
[null,null,null,"в пределах социальной нормы"," 270",0,0,0,null,{"$f":"K25*1.18","v":0},null,null,null,null,{"$f":"R25*1.18","v":0},0,0]
[null,null,null,"сверх социальной нормы"," 280",0,0,0,null,{"$f":"K26*1.18","v":0},null,null,null,null,0,0,0]
[null,null,null,"Население, проживающее в городских населенных пунктах в домах, оборудованных в установленном порядке стационарными электроплитами и электроотопительными установками"," 290",{"$f":"SUM(F28:F29)","v":0},{"$f":"SUM(G28:G29)","v":0},{"$f":"SUM(H28:H29)","v":0},{"$f":"SUM(I28:I29)","v":0},0,0,0,0,0,0,0,0,0,0,{"$f":"SUM(T28:T29)","v":0}]
[null,null,null,"в пределах социальной нормы"," 300",0,0,0,null,{"$f":"K28*1.18","v":0},null,null,null,null,{"$f":"R28*1.18","v":0},0,0]
[null,null,null,"сверх социальной нормы"," 310",0,0,0,null,{"$f":"K29*1.18","v":0},null,null,null,null,0,0,0]
[null,null,null,"Население, проживающее в сельских населенных пунктах"," 320",{"$f":"SUM(F31:F32)","v":0},{"$f":"SUM(G31:G32)","v":0},{"$f":"SUM(H31:H32)","v":0},{"$f":"SUM(I31:I32)","v":0},0,0,0,0,0,0,0,0,0,0,{"$f":"SUM(T31:T32)","v":0}]
[null,null,null,"в пределах социальной нормы"," 330",0,0,0,null,{"$f":"K31*1.18","v":0},null,null,null,null,{"$f":"R31*1.18","v":0},0,0]
[null,null,null,"сверх социальной нормы"," 340",0,0,0,null,{"$f":"K32*1.18","v":0},null,null,null,null,0,0,0]
[null,null,null,"Потребители, приравненные к населению, всего"," 400",{"$f":"SUM(F34:F35)","v":0},{"$f":"SUM(G34:G35)","v":0},{"$f":"SUM(H34:H35)","v":0},{"$f":"SUM(I34:I35)","v":0},{"$f":"SUM(J34:J35)","v":0},0,0,0,0,0,0,0,0,0,{"$f":"SUM(T34:T35)","v":0}]
[null,null,null,"в пределах социальной нормы"," 410",{"$f":"F38+F41+F44+F47+F50+F53+F56","v":0},{"$f":"G38+G41+G44+G47+G50+G53+G56","v":0},0,{"$f":"I38+I41+I44+I47+I50+I53+I56","v":0},0,0,0,0,0,0,0,0,0,0,{"$f":"T38+T41+T44+T47+T50+T53+T56","v":0}]
[null,null,null,"сверх социальной нормы"," 420",{"$f":"F39+F42+F45+F48+F51+F54+F57","v":0},0,0,{"$f":"I39+I42+I45+I48+I51+I54+I57","v":0},0,0,0,0,0,0,0,0,0,0,{"$f":"T39+T42+T45+T48+T51+T54+T57","v":0}]
[null,null,null,"в том числе:"," 430"]
[null,null,null,"Исполнители коммунальных услуг"," 440",{"$f":"SUM(F38:F39)","v":0},{"$f":"SUM(G38:G39)","v":0},{"$f":"SUM(H38:H39)","v":0},{"$f":"SUM(I38:I39)","v":0},0,0,0,0,0,0,0,0,0,0,{"$f":"SUM(T38:T39)","v":0}]
[null,null,null,"в пределах социальной нормы"," 450",{"$f":"I38+L38+M38+N38","v":0},{"$f":"J38+O38+P38+Q38","v":0},{"$f":"K38+R38+S38+T38","v":0},null,{"$f":"K38*1.18","v":0},null,null,null,null,{"$f":"R38*1.18","v":0},0,0]
[null,null,null,"сверх социальной нормы"," 460",0,0,0,null,{"$f":"K39*1.18","v":0},null,null,null,null,0,0,0]
[null,null,null,"Садоводческие, огороднические или дачные некоммерческие объединения граждан"," 470",{"$f":"SUM(F41:F42)","v":0},{"$f":"SUM(G41:G42)","v":0},{"$f":"SUM(H41:H42)","v":0},{"$f":"SUM(I41:I42)","v":0},0,0,0,0,0,0,0,0,0,0,{"$f":"SUM(T41:T42)","v":0}]
[null,null,null,"в пределах социальной нормы"," 480",0,0,0,null,{"$f":"K41*1.18","v":0},null,null,null,null,{"$f":"R41*1.18","v":0},0,0]
[null,null,null,"сверх социальной нормы"," 490",0,{"$f":"J42+O42+P42+Q42","v":0},0,null,{"$f":"K42*1.18","v":0},null,null,null,null,0,0,0]
[null,null,null,"Религиозные организации"," 500",{"$f":"SUM(F44:F45)","v":0},{"$f":"SUM(G44:G45)","v":0},{"$f":"SUM(H44:H45)","v":0},{"$f":"SUM(I44:I45)","v":0},0,0,0,0,0,0,0,0,0,0,{"$f":"SUM(T44:T45)","v":0}]
[null,null,null,"в пределах социальной нормы"," 510",0,0,0,null,{"$f":"K44*1.18","v":0},null,null,null,null,{"$f":"R44*1.18","v":0},0,0]
[null,null,null,"сверх социальной нормы"," 520",0,0,0,null,0,null,null,null,null,0,0,0]
[null,null,null,"Бюджетные организации (проживание военнослужащих, содержание осужденных)"," 530",{"$f":"SUM(F47:F48)","v":0},{"$f":"SUM(G47:G48)","v":0},{"$f":"SUM(H47:H48)","v":0},{"$f":"SUM(I47:I48)","v":0},0,0,0,0,0,0,0,0,0,0,{"$f":"SUM(T47:T48)","v":0}]
[null,null,null,"в пределах социальной нормы"," 540",0,0,0,null,0,null,null,null,null,{"$f":"R47*1.18","v":0},0,0]
[null,null,null,"сверх социальной нормы"," 550",0,0,0,null,0,null,null,null,null,0,0,0]
[null,null,null,"Некоммерческие объединения граждан  (гаражно-строительные, гаражные кооперативы)"," 560",{"$f":"SUM(F50:F51)","v":0},{"$f":"SUM(G50:G51)","v":0},{"$f":"SUM(H50:H51)","v":0},{"$f":"SUM(I50:I51)","v":0},{"$f":"SUM(J50:J51)","v":0},0,0,0,0,0,0,0,0,0,{"$f":"SUM(T50:T51)","v":0}]
[null,null,null,"в пределах социальной нормы"," 570",0,0,0,null,0,null,null,null,null,{"$f":"R50*1.18","v":0},0,0]
[null,null,null,"сверх социальной нормы"," 580",0,0,0,null,0,null,null,null,null,0,0,0]
[null,null,null,"Хозяйственные постройки физических лиц"," 590",{"$f":"SUM(F53:F54)","v":0},{"$f":"SUM(G53:G54)","v":0},{"$f":"SUM(H53:H54)","v":0},{"$f":"SUM(I53:I54)","v":0},0,0,0,0,0,0,0,0,0,0,{"$f":"SUM(T53:T54)","v":0}]
[null,null,null,"в пределах социальной нормы"," 600",0,0,0,null,0,null,null,null,null,{"$f":"R53*1.18","v":0},0,0]
[null,null,null,"сверх социальной нормы"," 610",0,0,0,null,0,null,null,null,null,0,0,0]
[null,null,null,"Гарантирующие поставщики, энергосбытовые, энергоснабжающие организации, приобретающие электрическую энергию (мощность) в целях дальнейшей продажи населению"," 700",{"$f":"SUM(F56:F57)","v":0},{"$f":"SUM(G56:G57)","v":0},{"$f":"SUM(H56:H57)","v":0},{"$f":"SUM(I56:I57)","v":0},0,0,0,0,0,0,0,0,0,0,{"$f":"SUM(T56:T57)","v":0}]
[null,null,null,"в пределах социальной нормы"," 710",0,0,0,null,0,null,null,null,null,{"$f":"R56*1.18","v":0},0,0]
[null,null,null,"сверх социальной нормы"," 720",0,0,0,null,0,null,null,null,null,0,0,0]
[null,null,null,"СПРАВОЧНО: Всего по населению и приравненным к нему категориям",null,{"$f":"F15+F33","v":0},{"$f":"G15+G33","v":0},0,0,0,0,0,0,0,0,0,0,0,0,0]
[null,null,null,"в пределах социальной нормы",null,{"$f":"F34+F16","v":0},{"$f":"G34+G16","v":0},0,0,0,0,0,0,0,0,0,0,0,0,0]
[null,null,null,"сверх социальной нормы",null,{"$f":"F35+F17","v":0},0,0,0,0,0,0,0,0,0,0,0,0,0,0]
[]
[]
[null,null,null,"Руководитель организации",{"$f":"IF(Титульный!$G$40=\"\",\"\",Титульный!$G$40)","v":"Лукишин Игорь Геннадьевич"}]
[null,null,null,null,"(Ф.И.О.)",null,null,null,null,"(подпись)"]
[]
[]
[null,null,null,"Должностное лицо,",{"$f":"IF(Титульный!$G$49=\"\",\"\",Титульный!$G$49)","v":"Начальник службы ЭСТОП"},null,null,{"$f":"IF(Титульный!$G$48=\"\",\"\",Титульный!$G$48)","v":"Аксенов Владимир Васильевич"}]
[null,null,null," ответственное за","(должность)",null,null,"(Ф.И.О.)",null,null,null,"(подпись)"]
[null,null,null,"составление формы"]
[null,null,null,null,{"$f":"IF(Титульный!$G$50=\"\",\"\",Титульный!$G$50)","v":"8(423)2306-940"},null,null,null,"«____» _________20__ год"]
[null,null,null,null,"(номер контактного телефона)",null,null,null,"(дата составления документа)"]

{"sheet":"Раздел II. А","index":7,"n_rows":61,"n_cols":117,"rows_kept":61,"cut":false,"hidden":false,"merged":[[60,4,60,6],[52,4,52,7],[52,9,52,10],[53,4,53,7],[53,9,53,10],[56,4,56,5],[57,4,57,5],[57,7,57,9],[57,11,57,12],[59,4,59,6],[56,7,56,9],[13,110,14,110],[13,111,13,116],[13,89,14,89],[13,90,13,95],[13,96,14,96],[13,97,13,102],[13,103,14,103],[13,48,13,53],[13,54,14,54],[13,55,13,60],[13,61,14,61],[13,69,13,74],[13,75,14,75],[13,19,14,19],[13,20,13,25],[13,62,13,67],[13,26,14,26],[13,27,13,32],[13,33,14,33],[13,34,13,39],[13,40,14,40],[13,41,13,46],[13,47,14,47],[12,54,12,60],[12,61,12,67],[12,68,12,74],[11,103,12,109],[13,76,13,81],[13,82,14,82],[13,104,13,109],[13,68,14,68],[13,83,13,88],[11,110,12,116],[12,75,12,81],[12,82,12,88],[12,89,12,95],[12,96,12,102],[11,47,11,60],[11,61,11,74],[11,75,11,88],[11,89,11,102],[12,47,12,53],[11,19,11,32],[11,33,11,46],[12,5,12,11],[12,12,12,18],[12,19,12,25],[12,26,12,32],[12,33,12,39],[12,40,12,46],[10,3,10,10],[11,3,14,3],[11,4,14,4],[11,5,11,18],[13,5,14,5],[13,6,13,11],[13,12,14,12],[13,13,13,18]]}
[]
[]
[]
[]
[]
[]
[]
[null,null,null,"Раздел II. Полезный отпуск электроэнергии и мощности, реализуемой по нерегулируемым ценам"]
[null,null,null,"А. Полезный отпуск электроэнергии и мощности, реализуемой по нерегулируемым ценам по Договору энергоснабжения"]
[null,null,null,{"$f":"IF(org=\"\",\"Не определено\",org)","v":"ОАО \"Международный аэропорт Владивосток\" "}]
[null,null,null,null,null,null,null,null,null,null,null,null,null,null,null,null,null,null,null,null,null,null,null,null,null,null,null,null,null,null,null,null,null,null,null,null,null,null,null,null,null,null,null,null,null,null,null,null,null,null,null,null,null,null,null,null,null,null,null,null,null,null,null,null,null,null,null,null,null,null,null,null,null,null,null,null,null,null,null,null,null,null,null,null,null,null,null,null,null,null,null,null,null,null,null,null,null,null,null,null,null,null,null,null,null,null,null,null,null,null,null,null,null,null,null,null,"Коды по ОКЕИ: 1000 киловатт-часов – 246, мегаватт – 215, тысяча рублей – 384"]
[null,null,null,"Потребители","Код строки","1 ценовая категория",null,null,null,null,null,null,null,null,null,null,null,null,null,"2 ценовая категория",null,null,null,null,null,null,null,null,null,null,null,null,null,"3 и 5 ценовые категории",null,null,null,null,null,null,null,null,null,null,null,null,null,"3 и 5 ценовые категории",null,null,null,null,null,null,null,null,null,null,null,null,null,"4 и 6 ценовые категории",null,null,null,null,null,null,null,null,null,null,null,null,null,"4 и 6 ценовые категории",null,null,null,null,null,null,null,null,null,null,null,null,null,"4 и 6 ценовые категории",null,null,null,null,null,null,null,null,null,null,null,null,null,"Стоимость электрической энергии (мощности) по 3-6 ценовой категории без учета стоимости отклонений за отчетный месяц (год) без НДС, тыс руб",null,null,null,null,null,null,"Стоимость отклонений фактических объемов потребления электрической энергии по 5 и 6 ценовой категории от плановых (договорных) значений за отчетный месяц (год) \nбез НДС, тыс руб"]
[null,null,null,null,null,"Объем электрической энергии (мощности) потребителей за отчетный месяц (год), тыс кВт ч",null,null,null,null,null,null,"Стоимость электрической энергии (мощности) потребителей за отчетный месяц (год) без НДС, тыс руб",null,null,null,null,null,null,"Объем электрической энергии (мощности) потребителей за отчетный месяц (год), тыс кВт ч",null,null,null,null,null,null,"Стоимость электрической энергии (мощности) потребителей за отчетный месяц (год) без НДС, тыс руб",null,null,null,null,null,null,"Объем электрической энергии потребителей за отчетный месяц (год), тыс кВт ч",null,null,null,null,null,null,"Стоимость электрической энергии потребителей за отчетный месяц (год) без НДС, тыс руб",null,null,null,null,null,null,"Объем электрической мощности за отчетный месяц (год), \nМВт",null,null,null,null,null,null,"Стоимость электрической мощности за отчетный месяц (год) без НДС, тыс руб",null,null,null,null,null,null,"Объем электрической энергии потребителей за отчетный месяц (год), тыс кВт ч",null,null,null,null,null,null,"Стоимость электрической энергии потребителей за отчетный месяц (год) без НДС, тыс руб",null,null,null,null,null,null,"Объем электрической мощности за отчетный месяц (год), \nМВт",null,null,null,null,null,null,"Стоимость электрической мощности за отчетный месяц (год) без НДС, тыс руб",null,null,null,null,null,null,"Объем мощности услуг по передаче электроэнергии потребителей за отчетный месяц (год), МВт",null,null,null,null,null,null,"Стоимость мощности услуг по передаче электроэнергии потребителей за отчетный месяц (год) без НДС, тыс руб"]
[null,null,null,null,null,"всего","в том числе:",null,null,null,null,null,"всего","в том числе:",null,null,null,null,null,"всего","в том числе:",null,null,null,null,null,"всего","в том числе:",null,null,null,null,null,"всего","в том числе:",null,null,null,null,null,"всего","в том числе:",null,null,null,null,null,"всего","в том числе:",null,null,null,null,null,"всего","в том числе:",null,null,null,null,null,"всего","в том числе:",null,null,null,null,null,"всего","в том числе:",null,null,null,null,null,"всего","в том числе:",null,null,null,null,null,"всего","в том числе:",null,null,null,null,null,"всего","в том числе:",null,null,null,null,null,"всего","в том числе:",null,null,null,null,null,"всего","в том числе:",null,null,null,null,null,"всего","в том числе:"]
[null,null,null,null,null,null,"ВН","СН1","СН2","НН","ФСК","ГН",null,"ВН","СН1","СН2","НН","ФСК","ГН",null,"ВН","СН1","СН2","НН","ФСК","ГН",null,"ВН","СН1","СН2","НН","ФСК","ГН",null,"ВН","СН1","СН2","НН","ФСК","ГН",null,"ВН","СН1","СН2","НН","ФСК","ГН",null,"ВН","СН1","СН2","НН","ФСК","ГН",null,"ВН","СН1","СН2","НН","ФСК","ГН",null,"ВН","СН1","СН2","НН","ФСК","ГН",null,"ВН","СН1","СН2","НН","ФСК","ГН",null,"ВН","СН1","СН2","НН","ФСК","ГН",null,"ВН","СН1","СН2","НН","ФСК","ГН",null,"ВН","СН1","СН2","НН","ФСК","ГН",null,"ВН","СН1","СН2","НН","ФСК","ГН",null,"ВН","СН1","СН2","НН","ФСК","ГН",null,"ВН","СН1","СН2","НН","ФСК","ГН"]
[null,null,null,1,2,3,4,5,6,7,8,9,10,11,12,13,14,15,16,17,18,19,20,21,22,23,24,25,26,27,28,29,30,31,32,33,34,35,36,37,38,39,40,41,42,43,44,45,46,47,48,49,50,51,52,53,54,55,56,57,58,59,60,61,62,63,64,65,66,67,68,69,70,71,72,73,74,75,76,77,78,79,80,81,82,83,84,85,86,87,88,89,90,91,92,93,94,95,96,97,98,99,100,101,102,103,104,105,106,107,108,109,110,111,112,113,114]
[null,null,null,"Потребители с максимальной мощностью принадлежащих им энергопринимающих устройств от 10 МВт",100,{"$f":"SUM(F18:F24)","v":0},{"$f":"SUM(G18:G24)","v":0},0,0,0,0,0,{"$f":"SUM(M18:M24)","v":0},0,0,0,0,0,0,0,0,0,0,0,0,0,0,0,0,0,0,0,0,0,0,0,0,0,0,0,0,0,0,0,{"$f":"SUM(AS18:AS24)","v":0},0,0,0,0,0,0,0,0,0,0,0,0,0,0,0,0,0,0,0,0,0,0,0,0,0,0,0,0,0,0,0,{"$f":"SUM(BY18:BY24)","v":0},0,0,0,0,0,0,0,0,0,0,0,0,0,0,0,0,0,0,0,0,0,0,0,0,0,0,0,0,0,0,0,{"$f":"SUM(DE18:DE24)","v":0},0,0,0,0,0,0,0,0]
[null,null,null,"Промышленные и приравненные к ним потребители",111,{"$f":"SUM(G18:L18)","v":0},null,null,null,null,null,null,{"$f":"SUM(N18:S18)","v":0},null,null,null,null,null,null,{"$f":"SUM(U18:Z18)","v":0},null,null,null,null,null,null,{"$f":"SUM(AB18:AG18)","v":0},null,null,null,null,null,null,{"$f":"SUM(AI18:AN18)","v":0},null,null,null,null,null,null,{"$f":"SUM(AP18:AU18)","v":0},null,null,null,null,null,null,{"$f":"SUM(AW18:BB18)","v":0},null,null,null,null,null,null,{"$f":"SUM(BD18:BI18)","v":0},null,null,null,null,null,null,{"$f":"SUM(BK18:BP18)","v":0},null,null,null,null,null,null,{"$f":"SUM(BR18:BW18)","v":0},null,null,null,null,null,null,{"$f":"SUM(BY18:CD18)","v":0},null,null,null,null,null,null,{"$f":"SUM(CF18:CK18)","v":0},null,null,null,null,null,null,{"$f":"SUM(CM18:CR18)","v":0},null,null,null,null,null,null,{"$f":"SUM(CT18:CY18)","v":0},null,null,null,null,null,null,{"$f":"SUM(DA18:DF18)","v":0},null,null,null,null,null,null,{"$f":"SUM(DH18:DM18)","v":0}]
[null,null,null,"Электрифицированный железнодорожный транспорт",121,{"$f":"SUM(G19:L19)","v":0},null,null,null,null,null,null,{"$f":"SUM(N19:S19)","v":0},null,null,null,null,null,null,{"$f":"SUM(U19:Z19)","v":0},null,null,null,null,null,null,{"$f":"SUM(AB19:AG19)","v":0},null,null,null,null,null,null,{"$f":"SUM(AI19:AN19)","v":0},null,null,null,null,null,null,{"$f":"SUM(AP19:AU19)","v":0},null,null,null,null,null,null,{"$f":"SUM(AW19:BB19)","v":0},null,null,null,null,null,null,{"$f":"SUM(BD19:BI19)","v":0},null,null,null,null,null,null,{"$f":"SUM(BK19:BP19)","v":0},null,null,null,null,null,null,{"$f":"SUM(BR19:BW19)","v":0},null,null,null,null,null,null,{"$f":"SUM(BY19:CD19)","v":0},null,null,null,null,null,null,{"$f":"SUM(CF19:CK19)","v":0},null,null,null,null,null,null,{"$f":"SUM(CM19:CR19)","v":0},null,null,null,null,null,null,{"$f":"SUM(CT19:CY19)","v":0},null,null,null,null,null,null,{"$f":"SUM(DA19:DF19)","v":0},null,null,null,null,null,null,{"$f":"SUM(DH19:DM19)","v":0}]
[null,null,null,"Электрифицированный городской транспорт",131,0,null,null,null,null,null,null,0,null,null,null,null,null,null,0,null,null,null,null,null,null,0,null,null,null,null,null,null,0,null,null,null,null,null,null,0,null,null,null,null,null,null,0,null,null,null,null,null,null,0,null,null,null,null,null,null,0,null,null,null,null,null,null,0,null,null,null,null,null,null,0,null,null,null,null,null,null,0,null,null,null,null,null,null,0,null,null,null,null,null,null,0,null,null,null,null,null,null,0,null,null,null,null,null,null,0]
[null,null,null,"Непромышленные потребители",141,0,null,null,null,null,null,null,0,null,null,null,null,null,null,0,null,null,null,null,null,null,0,null,null,null,null,null,null,0,null,null,null,null,null,null,0,null,null,null,null,null,null,0,null,null,null,null,null,null,0,null,null,null,null,null,null,0,null,null,null,null,null,null,0,null,null,null,null,null,null,0,null,null,null,null,null,null,0,null,null,null,null,null,null,0,null,null,null,null,null,null,0,null,null,null,null,null,null,0,null,null,null,null,null,null,0]
[null,null,null,"Сельскохозяйственные товаропроизводители",151,0,null,null,null,null,null,null,0,null,null,null,null,null,null,0,null,null,null,null,null,null,0,null,null,null,null,null,null,0,null,null,null,null,null,null,0,null,null,null,null,null,null,0,null,null,null,null,null,null,0,null,null,null,null,null,null,0,null,null,null,null,null,null,0,null,null,null,null,null,null,0,null,null,null,null,null,null,0,null,null,null,null,null,null,0,null,null,null,null,null,null,0,null,null,null,null,null,null,0,null,null,null,null,null,null,0]
[null,null,null,"Бюджетные потребители",161,0,null,null,null,null,null,null,0,null,null,null,null,null,null,0,null,null,null,null,null,null,0,null,null,null,null,null,null,0,null,null,null,null,null,null,0,null,null,null,null,null,null,0,null,null,null,null,null,null,0,null,null,null,null,null,null,0,null,null,null,null,null,null,0,null,null,null,null,null,null,0,null,null,null,null,null,null,0,null,null,null,null,null,null,0,null,null,null,null,null,null,0,null,null,null,null,null,null,0,null,null,null,null,null,null,0]
[null,null,null,"Другие энергоснабжающие организации",171,0,null,null,null,null,null,null,0,null,null,null,null,null,null,0,null,null,null,null,null,null,0,null,null,null,null,null,null,0,null,null,null,null,null,null,0,null,null,null,null,null,null,0,null,null,null,null,null,null,0,null,null,null,null,null,null,0,null,null,null,null,null,null,0,null,null,null,null,null,null,0,null,null,null,null,null,null,0,null,null,null,null,null,null,0,null,null,null,null,null,null,0,null,null,null,null,null,null,0,null,null,null,null,null,null,0]
[null,null,null,"Потребители с максимальной мощностью принадлежащих им энергопринимающих устройств от 670 кВт до 10 МВт",200,{"$f":"SUM(F26:F32)","v":0},0,0,0,0,0,0,0,0,0,0,0,0,0,0,0,0,0,0,0,0,0,0,0,0,0,0,0,0,0,0,0,{"$f":"SUM(AL26:AL32)","v":0},0,0,0,0,0,0,0,0,0,0,0,0,0,0,0,0,0,0,0,0,0,0,0,0,0,0,0,0,0,0,0,{"$f":"SUM(BR26:BR32)","v":0},0,0,0,0,0,0,0,0,0,0,0,0,0,0,0,0,0,0,0,0,0,0,0,0,0,0,0,0,0,0,0,{"$f":"SUM(CX26:CX32)","v":0},0,0,0,0,0,0,0,0,0,0,0,0,0,0,0]
[null,null,null,"Промышленные и приравненные к ним потребители",211,{"$f":"SUM(G26:L26)","v":0},null,null,null,null,null,null,{"$f":"SUM(N26:S26)","v":0},null,null,null,null,null,null,{"$f":"SUM(U26:Z26)","v":0},null,null,null,null,null,null,{"$f":"SUM(AB26:AG26)","v":0},null,null,null,null,null,null,{"$f":"SUM(AI26:AN26)","v":0},null,null,null,null,null,null,{"$f":"SUM(AP26:AU26)","v":0},null,null,null,null,null,null,{"$f":"SUM(AW26:BB26)","v":0},null,null,null,null,null,null,{"$f":"SUM(BD26:BI26)","v":0},null,null,null,null,null,null,{"$f":"SUM(BK26:BP26)","v":0},null,null,null,null,null,null,{"$f":"SUM(BR26:BW26)","v":0},null,null,null,null,null,null,{"$f":"SUM(BY26:CD26)","v":0},null,null,null,null,null,null,{"$f":"SUM(CF26:CK26)","v":0},null,null,null,null,null,null,{"$f":"SUM(CM26:CR26)","v":0},null,null,null,null,null,null,{"$f":"SUM(CT26:CY26)","v":0},null,null,null,null,null,null,{"$f":"SUM(DA26:DF26)","v":0},null,null,null,null,null,null,{"$f":"SUM(DH26:DM26)","v":0}]
[null,null,null,"Электрифицированный железнодорожный транспорт",221,{"$f":"SUM(G27:L27)","v":0},null,null,null,null,null,null,{"$f":"SUM(N27:S27)","v":0},null,null,null,null,null,null,{"$f":"SUM(U27:Z27)","v":0},null,null,null,null,null,null,{"$f":"SUM(AB27:AG27)","v":0},null,null,null,null,null,null,{"$f":"SUM(AI27:AN27)","v":0},null,null,null,null,null,null,{"$f":"SUM(AP27:AU27)","v":0},null,null,null,null,null,null,{"$f":"SUM(AW27:BB27)","v":0},null,null,null,null,null,null,{"$f":"SUM(BD27:BI27)","v":0},null,null,null,null,null,null,{"$f":"SUM(BK27:BP27)","v":0},null,null,null,null,null,null,{"$f":"SUM(BR27:BW27)","v":0},null,null,null,null,null,null,{"$f":"SUM(BY27:CD27)","v":0},null,null,null,null,null,null,{"$f":"SUM(CF27:CK27)","v":0},null,null,null,null,null,null,{"$f":"SUM(CM27:CR27)","v":0},null,null,null,null,null,null,{"$f":"SUM(CT27:CY27)","v":0},null,null,null,null,null,null,{"$f":"SUM(DA27:DF27)","v":0},null,null,null,null,null,null,{"$f":"SUM(DH27:DM27)","v":0}]
[null,null,null,"Электрифицированный городской транспорт",231,0,null,null,null,null,null,null,0,null,null,null,null,null,null,0,null,null,null,null,null,null,0,null,null,null,null,null,null,0,null,null,null,null,null,null,0,null,null,null,null,null,null,0,null,null,null,null,null,null,0,null,null,null,null,null,null,0,null,null,null,null,null,null,0,null,null,null,null,null,null,0,null,null,null,null,null,null,0,null,null,null,null,null,null,0,null,null,null,null,null,null,0,null,null,null,null,null,null,0,null,null,null,null,null,null,0]
[null,null,null,"Непромышленные потребители",241,0,null,null,null,null,null,null,0,null,null,null,null,null,null,0,null,null,null,null,null,null,0,null,null,null,null,null,null,0,null,null,null,null,null,null,0,null,null,null,null,null,null,0,null,null,null,null,null,null,0,null,null,null,null,null,null,0,null,null,null,null,null,null,0,null,null,null,null,null,null,0,null,null,null,null,null,null,0,null,null,null,null,null,null,0,null,null,null,null,null,null,0,null,null,null,null,null,null,0,null,null,null,null,null,null,0]
[null,null,null,"Сельскохозяйственные товаропроизводители",251,0,null,null,null,null,null,null,0,null,null,null,null,null,null,0,null,null,null,null,null,null,0,null,null,null,null,null,null,0,null,null,null,null,null,null,0,null,null,null,null,null,null,0,null,null,null,null,null,null,0,null,null,null,null,null,null,0,null,null,null,null,null,null,0,null,null,null,null,null,null,0,null,null,null,null,null,null,0,null,null,null,null,null,null,0,null,null,null,null,null,null,0,null,null,null,null,null,null,0,null,null,null,null,null,null,0]
[null,null,null,"Бюджетные потребители",261,0,null,null,null,null,null,null,0,null,null,null,null,null,null,0,null,null,null,null,null,null,0,null,null,null,null,null,null,0,null,null,null,null,null,null,0,null,null,null,null,null,null,0,null,null,null,null,null,null,0,null,null,null,null,null,null,0,null,null,null,null,null,null,0,null,null,null,null,null,null,0,null,null,null,null,null,null,0,null,null,null,null,null,null,0,null,null,null,null,null,null,0,null,null,null,null,null,null,0,null,null,null,null,null,null,0]
[null,null,null,"Другие энергоснабжающие организации",271,0,null,null,null,null,null,null,0,null,null,null,null,null,null,0,null,null,null,null,null,null,0,null,null,null,null,null,null,0,null,null,null,null,null,null,0,null,null,null,null,null,null,0,null,null,null,null,null,null,0,null,null,null,null,null,null,0,null,null,null,null,null,null,0,null,null,null,null,null,null,0,null,null,null,null,null,null,0,null,null,null,null,null,null,0,null,null,null,null,null,null,0,null,null,null,null,null,null,0,null,null,null,null,null,null,0]
[null,null,null,"Потребители с максимальной мощностью принадлежащих им энергопринимающих устройств от 150 кВт до 670 кВт",300,{"$f":"SUM(F34:F40)","v":0},0,0,0,0,0,0,0,0,0,0,0,0,0,0,0,0,0,0,0,0,0,0,0,0,0,0,0,0,0,0,0,{"$f":"SUM(AL34:AL40)","v":0},0,0,0,0,0,0,0,0,0,0,0,0,0,0,0,0,0,0,0,0,0,0,0,0,0,0,0,0,0,0,0,{"$f":"SUM(BR34:BR40)","v":0},0,0,0,0,0,0,0,0,0,0,0,0,0,0,0,0,0,0,0,0,0,0,0,0,0,0,0,0,0,0,0,{"$f":"SUM(CX34:CX40)","v":0},0,0,0,0,0,0,0,0,0,0,0,0,0,0,0]
[null,null,null,"Промышленные и приравненные к ним потребители",311,{"$f":"SUM(G34:L34)","v":0},null,null,null,null,null,null,{"$f":"SUM(N34:S34)","v":0},null,null,null,null,null,null,{"$f":"SUM(U34:Z34)","v":0},null,null,null,null,null,null,{"$f":"SUM(AB34:AG34)","v":0},null,null,null,null,null,null,{"$f":"SUM(AI34:AN34)","v":0},null,null,null,null,null,null,{"$f":"SUM(AP34:AU34)","v":0},null,null,null,null,null,null,{"$f":"SUM(AW34:BB34)","v":0},null,null,null,null,null,null,{"$f":"SUM(BD34:BI34)","v":0},null,null,null,null,null,null,{"$f":"SUM(BK34:BP34)","v":0},null,null,null,null,null,null,{"$f":"SUM(BR34:BW34)","v":0},null,null,null,null,null,null,{"$f":"SUM(BY34:CD34)","v":0},null,null,null,null,null,null,{"$f":"SUM(CF34:CK34)","v":0},null,null,null,null,null,null,{"$f":"SUM(CM34:CR34)","v":0},null,null,null,null,null,null,{"$f":"SUM(CT34:CY34)","v":0},null,null,null,null,null,null,{"$f":"SUM(DA34:DF34)","v":0},null,null,null,null,null,null,{"$f":"SUM(DH34:DM34)","v":0}]
[null,null,null,"Электрифицированный железнодорожный транспорт",321,{"$f":"SUM(G35:L35)","v":0},null,null,null,null,null,null,{"$f":"SUM(N35:S35)","v":0},null,null,null,null,null,null,{"$f":"SUM(U35:Z35)","v":0},null,null,null,null,null,null,{"$f":"SUM(AB35:AG35)","v":0},null,null,null,null,null,null,{"$f":"SUM(AI35:AN35)","v":0},null,null,null,null,null,null,{"$f":"SUM(AP35:AU35)","v":0},null,null,null,null,null,null,{"$f":"SUM(AW35:BB35)","v":0},null,null,null,null,null,null,{"$f":"SUM(BD35:BI35)","v":0},null,null,null,null,null,null,{"$f":"SUM(BK35:BP35)","v":0},null,null,null,null,null,null,{"$f":"SUM(BR35:BW35)","v":0},null,null,null,null,null,null,{"$f":"SUM(BY35:CD35)","v":0},null,null,null,null,null,null,{"$f":"SUM(CF35:CK35)","v":0},null,null,null,null,null,null,{"$f":"SUM(CM35:CR35)","v":0},null,null,null,null,null,null,{"$f":"SUM(CT35:CY35)","v":0},null,null,null,null,null,null,{"$f":"SUM(DA35:DF35)","v":0},null,null,null,null,null,null,{"$f":"SUM(DH35:DM35)","v":0}]
[null,null,null,"Электрифицированный городской транспорт",331,0,null,null,null,null,null,null,0,null,null,null,null,null,null,0,null,null,null,null,null,null,0,null,null,null,null,null,null,0,null,null,null,null,null,null,0,null,null,null,null,null,null,0,null,null,null,null,null,null,0,null,null,null,null,null,null,0,null,null,null,null,null,null,0,null,null,null,null,null,null,0,null,null,null,null,null,null,0,null,null,null,null,null,null,0,null,null,null,null,null,null,0,null,null,null,null,null,null,0,null,null,null,null,null,null,0]
[null,null,null,"Непромышленные потребители",341,0,null,null,null,null,null,null,0,null,null,null,null,null,null,0,null,null,null,null,null,null,0,null,null,null,null,null,null,0,null,null,null,null,null,null,0,null,null,null,null,null,null,0,null,null,null,null,null,null,0,null,null,null,null,null,null,0,null,null,null,null,null,null,0,null,null,null,null,null,null,0,null,null,null,null,null,null,0,null,null,null,null,null,null,0,null,null,null,null,null,null,0,null,null,null,null,null,null,0,null,null,null,null,null,null,0]
[null,null,null,"Сельскохозяйственные товаропроизводители",351,0,null,null,null,null,null,null,0,null,null,null,null,null,null,0,null,null,null,null,null,null,0,null,null,null,null,null,null,0,null,null,null,null,null,null,0,null,null,null,null,null,null,0,null,null,null,null,null,null,0,null,null,null,null,null,null,0,null,null,null,null,null,null,0,null,null,null,null,null,null,0,null,null,null,null,null,null,0,null,null,null,null,null,null,0,null,null,null,null,null,null,0,null,null,null,null,null,null,0,null,null,null,null,null,null,0]
[null,null,null,"Бюджетные потребители",361,0,null,null,null,null,null,null,0,null,null,null,null,null,null,0,null,null,null,null,null,null,0,null,null,null,null,null,null,0,null,null,null,null,null,null,0,null,null,null,null,null,null,0,null,null,null,null,null,null,0,null,null,null,null,null,null,0,null,null,null,null,null,null,0,null,null,null,null,null,null,0,null,null,null,null,null,null,0,null,null,null,null,null,null,0,null,null,null,null,null,null,0,null,null,null,null,null,null,0,null,null,null,null,null,null,0]
[null,null,null,"Другие энергоснабжающие организации",371,0,null,null,null,null,null,null,0,null,null,null,null,null,null,0,null,null,null,null,null,null,0,null,null,null,null,null,null,0,null,null,null,null,null,null,0,null,null,null,null,null,null,0,null,null,null,null,null,null,0,null,null,null,null,null,null,0,null,null,null,null,null,null,0,null,null,null,null,null,null,0,null,null,null,null,null,null,0,null,null,null,null,null,null,0,null,null,null,null,null,null,0,null,null,null,null,null,null,0,null,null,null,null,null,null,0]
[null,null,null,"Потребители с максимальной мощностью принадлежащих им энергопринимающих устройств до 150 кВт",400,{"$f":"SUM(F42:F48)","v":0},0,0,0,0,0,0,0,0,0,0,0,0,0,0,0,0,0,0,0,0,0,0,0,0,0,0,0,0,0,0,0,{"$f":"SUM(AL42:AL48)","v":0},0,0,0,0,0,0,0,0,0,0,0,0,0,0,0,0,0,0,0,0,0,0,0,0,0,0,0,0,0,0,0,{"$f":"SUM(BR42:BR48)","v":0},0,0,0,0,0,0,0,0,0,0,0,0,0,0,0,0,0,0,0,0,0,0,0,0,0,0,0,0,0,0,0,{"$f":"SUM(CX42:CX48)","v":0},0,0,0,0,0,0,0,0,0,0,0,0,0,0,0]
[null,null,null,"Промышленные и приравненные к ним потребители",411,{"$f":"SUM(G42:L42)","v":0},null,null,null,null,null,null,{"$f":"SUM(N42:S42)","v":0},null,null,null,null,null,null,{"$f":"SUM(U42:Z42)","v":0},null,null,null,null,null,null,{"$f":"SUM(AB42:AG42)","v":0},null,null,null,null,null,null,{"$f":"SUM(AI42:AN42)","v":0},null,null,null,null,null,null,{"$f":"SUM(AP42:AU42)","v":0},null,null,null,null,null,null,{"$f":"SUM(AW42:BB42)","v":0},null,null,null,null,null,null,{"$f":"SUM(BD42:BI42)","v":0},null,null,null,null,null,null,{"$f":"SUM(BK42:BP42)","v":0},null,null,null,null,null,null,{"$f":"SUM(BR42:BW42)","v":0},null,null,null,null,null,null,{"$f":"SUM(BY42:CD42)","v":0},null,null,null,null,null,null,{"$f":"SUM(CF42:CK42)","v":0},null,null,null,null,null,null,{"$f":"SUM(CM42:CR42)","v":0},null,null,null,null,null,null,{"$f":"SUM(CT42:CY42)","v":0},null,null,null,null,null,null,{"$f":"SUM(DA42:DF42)","v":0},null,null,null,null,null,null,{"$f":"SUM(DH42:DM42)","v":0}]
[null,null,null,"Электрифицированный железнодорожный транспорт",421,{"$f":"SUM(G43:L43)","v":0},null,null,null,null,null,null,{"$f":"SUM(N43:S43)","v":0},null,null,null,null,null,null,{"$f":"SUM(U43:Z43)","v":0},null,null,null,null,null,null,{"$f":"SUM(AB43:AG43)","v":0},null,null,null,null,null,null,{"$f":"SUM(AI43:AN43)","v":0},null,null,null,null,null,null,{"$f":"SUM(AP43:AU43)","v":0},null,null,null,null,null,null,{"$f":"SUM(AW43:BB43)","v":0},null,null,null,null,null,null,{"$f":"SUM(BD43:BI43)","v":0},null,null,null,null,null,null,{"$f":"SUM(BK43:BP43)","v":0},null,null,null,null,null,null,{"$f":"SUM(BR43:BW43)","v":0},null,null,null,null,null,null,{"$f":"SUM(BY43:CD43)","v":0},null,null,null,null,null,null,{"$f":"SUM(CF43:CK43)","v":0},null,null,null,null,null,null,{"$f":"SUM(CM43:CR43)","v":0},null,null,null,null,null,null,{"$f":"SUM(CT43:CY43)","v":0},null,null,null,null,null,null,{"$f":"SUM(DA43:DF43)","v":0},null,null,null,null,null,null,{"$f":"SUM(DH43:DM43)","v":0}]
[null,null,null,"Электрифицированный городской транспорт",431,0,null,null,null,null,null,null,0,null,null,null,null,null,null,0,null,null,null,null,null,null,0,null,null,null,null,null,null,0,null,null,null,null,null,null,0,null,null,null,null,null,null,0,null,null,null,null,null,null,0,null,null,null,null,null,null,0,null,null,null,null,null,null,0,null,null,null,null,null,null,0,null,null,null,null,null,null,0,null,null,null,null,null,null,0,null,null,null,null,null,null,0,null,null,null,null,null,null,0,null,null,null,null,null,null,0]
[null,null,null,"Непромышленные потребители",441,0,null,null,null,null,null,null,0,null,null,null,null,null,null,0,null,null,null,null,null,null,0,null,null,null,null,null,null,0,null,null,null,null,null,null,0,null,null,null,null,null,null,0,null,null,null,null,null,null,0,null,null,null,null,null,null,0,null,null,null,null,null,null,0,null,null,null,null,null,null,0,null,null,null,null,null,null,0,null,null,null,null,null,null,0,null,null,null,null,null,null,0,null,null,null,null,null,null,0,null,null,null,null,null,null,0]
[null,null,null,"Сельскохозяйственные товаропроизводители",451,0,null,null,null,null,null,null,0,null,null,null,null,null,null,0,null,null,null,null,null,null,0,null,null,null,null,null,null,0,null,null,null,null,null,null,0,null,null,null,null,null,null,0,null,null,null,null,null,null,0,null,null,null,null,null,null,0,null,null,null,null,null,null,0,null,null,null,null,null,null,0,null,null,null,null,null,null,0,null,null,null,null,null,null,0,null,null,null,null,null,null,0,null,null,null,null,null,null,0,null,null,null,null,null,null,0]
[null,null,null,"Бюджетные потребители",461,0,null,null,null,null,null,null,0,null,null,null,null,null,null,0,null,null,null,null,null,null,0,null,null,null,null,null,null,0,null,null,null,null,null,null,0,null,null,null,null,null,null,0,null,null,null,null,null,null,0,null,null,null,null,null,null,0,null,null,null,null,null,null,0,null,null,null,null,null,null,0,null,null,null,null,null,null,0,null,null,null,null,null,null,0,null,null,null,null,null,null,0,null,null,null,null,null,null,0,null,null,null,null,null,null,0]
[null,null,null,"Другие энергоснабжающие организации",471,0,null,null,null,null,null,null,0,null,null,null,null,null,null,0,null,null,null,null,null,null,0,null,null,null,null,null,null,0,null,null,null,null,null,null,0,null,null,null,null,null,null,0,null,null,null,null,null,null,0,null,null,null,null,null,null,0,null,null,null,null,null,null,0,null,null,null,null,null,null,0,null,null,null,null,null,null,0,null,null,null,null,null,null,0,null,null,null,null,null,null,0,null,null,null,null,null,null,0,null,null,null,null,null,null,0]
[null,null,null,"Компенсация расхода электрической энергии на передачу сетевыми организациями",500,{"$f":"SUM(G49:L49)","v":0},null,null,null,null,null,null,0,null,null,null,null,null,null,0,null,null,null,null,null,null,0,null,null,null,null,null,null,0,null,null,null,null,null,null,0,null,null,null,null,null,null,0,null,null,null,null,null,null,0,null,null,null,null,null,null,0,null,null,null,null,null,null,0,null,null,null,null,null,null,0,null,null,null,null,null,null,0,null,null,null,null,null,null,0,null,null,null,null,null,null,0,null,null,null,null,null,null,0,null,null,null,null,null,null,0]
[null,null,null,"Полезный отпуск - всего ",600,{"$f":"SUM(F18:F24)+SUM(F26:F32)+SUM(F34:F40)+SUM(F42:F48)","v":0},{"$f":"SUM(G18:G24)+SUM(G26:G32)+SUM(G34:G40)+SUM(G42:G48)","v":0},0,0,0,0,0,0,0,0,0,0,0,0,0,0,0,0,0,0,0,0,0,0,0,0,0,0,0,0,0,0,0,0,0,0,0,0,0,0,0,0,0,0,0,0,0,0,0,0,0,0,0,0,0,0,0,0,0,0,0,0,0,0,0,{"$f":"SUM(BS18:BS24)+SUM(BS26:BS32)+SUM(BS34:BS40)+SUM(BS42:BS48)","v":0},0,0,0,0,0,0,0,0,0,0,0,0,0,0,0,0,0,0,0,0,0,0,0,0,0,0,0,0,0,0,0,0,0,0,0,0,0,0,0,0,0,0,0,0,0,0]
[]
[]
[null,null,null,"Руководитель организации",{"$f":"IF(Титульный!$G$40=\"\",\"\",Титульный!$G$40)","v":"Лукишин Игорь Геннадьевич"}]
[null,null,null,null,"(Ф.И.О.)",null,null,null,null,"(подпись)"]
[]
[]
[null,null,null,"Должностное лицо,",{"$f":"IF(Титульный!$G$49=\"\",\"\",Титульный!$G$49)","v":"Начальник службы ЭСТОП"},null,null,{"$f":"IF(Титульный!$G$48=\"\",\"\",Титульный!$G$48)","v":"Аксенов Владимир Васильевич"}]
[null,null,null," ответственное за","(должность)",null,null,"(Ф.И.О.)",null,null,null,"(подпись)"]
[null,null,null,"составление формы"]
[null,null,null,null,{"$f":"IF(Титульный!$G$50=\"\",\"\",Титульный!$G$50)","v":"8(423)2306-940"},null,null,null,"«____» _________20__ год"]
[null,null,null,null,"(номер контактного телефона)",null,null,null,"(дата составления документа)"]

{"sheet":"Раздел II. Б","index":8,"n_rows":61,"n_cols":61,"rows_kept":61,"cut":false,"hidden":false,"merged":[[60,4,60,6],[52,4,52,7],[52,9,52,10],[53,4,53,7],[53,9,53,10],[56,4,56,5],[57,4,57,5],[57,7,57,9],[57,11,57,12],[59,4,59,6],[56,7,56,9],[13,58,13,60],[13,46,13,48],[13,49,14,49],[13,50,13,52],[13,53,14,53],[13,54,13,56],[13,57,14,57],[13,42,13,44],[13,45,14,45],[13,22,13,24],[13,25,14,25],[13,26,13,28],[13,29,14,29],[13,30,13,32],[13,33,14,33],[11,57,12,60],[12,5,12,8],[12,9,12,12],[12,13,12,16],[12,17,12,20],[12,21,12,24],[12,37,12,40],[12,41,12,44],[11,29,11,36],[11,37,11,44],[13,18,13,20],[13,21,14,21],[13,38,13,40],[13,41,14,41],[13,34,13,36],[13,37,14,37],[13,14,13,16],[11,45,11,52],[11,53,12,56],[12,45,12,48],[12,49,12,52],[11,13,11,20],[11,21,11,28],[12,25,12,28],[12,29,12,32],[12,33,12,36],[13,17,14,17],[10,3,10,7],[11,3,14,3],[11,4,14,4],[11,5,11,12],[13,5,14,5],[13,6,13,8],[13,9,14,9],[13,10,13,12],[13,13,14,13]]}
[]
[]
[]
[]
[]
[]
[]
[null,null,null,"Раздел II. Полезный отпуск электроэнергии и мощности, реализуемой по нерегулируемым ценам"]
[null,null,null,"Б. Полезный отпуск электроэнергии и мощности, реализуемой по нерегулируемым ценам по Договору купли-продажи"]
[null,null,null,{"$f":"IF(org=\"\",\"Не определено\",org)","v":"ОАО \"Международный аэропорт Владивосток\" "}]
[null,null,null,null,null,null,null,null,null,null,null,null,null,null,null,null,null,null,null,null,null,null,null,null,null,null,null,null,null,null,null,null,null,null,null,null,null,null,null,null,null,null,null,null,null,null,null,null,null,null,null,null,null,null,null,null,null,null,null,null,"Коды по ОКЕИ: 1000 киловатт-часов – 246, мегаватт – 215, тысяча рублей – 384"]
[null,null,null,"Потребители","Код строки","1 ценовая категория",null,null,null,null,null,null,null,"2 ценовая категория",null,null,null,null,null,null,null,"3 и 4 ценовые категории",null,null,null,null,null,null,null,"3 и 4 ценовые категории",null,null,null,null,null,null,null,"5 и 6 ценовые категории",null,null,null,null,null,null,null,"5 и 6 ценовые категории",null,null,null,null,null,null,null,"Стоимость электрической энергии по 3-6 ценовой категории без учета стоимости отклонений за отчетный месяц (год) без НДС, тыс руб",null,null,null,"Стоимость отклонений фактических объемов потребления электрической энергии по 5 и 6 ценовой категории \nот плановых (договорных) значений за отчетный \nмесяц (год) без НДС, тыс руб"]
[null,null,null,null,null,"Объем электрической энергии (мощности) потребителей за отчетный месяц (год), тыс кВт ч",null,null,null,"Стоимость электрической энергии (мощности) потребителей за отчетный месяц (год) без НДС, тыс руб",null,null,null,"Объем электрической энергии (мощности) потребителей \nза отчетный месяц (год), тыс кВт ч",null,null,null,"Стоимость электрической энергии (мощности) потребителей \nза отчетный месяц (год) без НДС, тыс руб",null,null,null,"Объем электрической энергии потребителей за отчетный месяц (год), тыс кВт ч",null,null,null,"Стоимость электрической энергии потребителей за отчетный месяц (год) без НДС, тыс руб",null,null,null,"Объем электрической мощности \nза отчетный месяц (год), МВт",null,null,null,"Стоимость электрической мощности за отчетный месяц (год) без НДС, тыс руб",null,null,null,"Объем электрической энергии за отчетный месяц (год), тыс кВт ч",null,null,null,"Стоимость электрической энергии за отчетный месяц (год) без НДС, тыс руб",null,null,null,"Объем электрической мощности \nза отчетный месяц (год), МВт",null,null,null,"Стоимость электрической мощности за отчетный месяц (год) без НДС, тыс руб"]
[null,null,null,null,null,"всего","в том числе:",null,null,"всего","в том числе:",null,null,"всего","в том числе:",null,null,"всего","в том числе:",null,null,"всего","в том числе:",null,null,"всего","в том числе:",null,null,"всего","в том числе:",null,null,"всего","в том числе:",null,null,"всего","в том числе:",null,null,"всего","в том числе:",null,null,"всего","в том числе:",null,null,"всего","в том числе:",null,null,"всего","в том числе:",null,null,"всего","в том числе:"]
[null,null,null,null,null,null,"прочие (разделение по напряжению)","ФСК","ГН",null,"прочие (разделение по напряжению)","ФСК","ГН",null,"прочие (разделение по напряжению)","ФСК","ГН",null,"прочие (разделение по напряжению)","ФСК","ГН",null,"прочие (разделение по напряжению)","ФСК","ГН",null,"прочие (разделение по напряжению)","ФСК","ГН",null,"прочие (разделение по напряжению)","ФСК","ГН",null,"прочие (разделение по напряжению)","ФСК","ГН",null,"прочие (разделение по напряжению)","ФСК","ГН",null,"прочие (разделение по напряжению)","ФСК","ГН",null,"прочие (разделение по напряжению)","ФСК","ГН",null,"прочие (разделение по напряжению)","ФСК","ГН",null,"прочие (разделение по напряжению)","ФСК","ГН",null,"прочие (разделение по напряжению)","ФСК","ГН"]
[null,null,null,1,2,3,4,5,6,7,8,9,10,11,12,13,14,15,16,17,18,19,20,21,22,23,24,25,26,27,28,29,30,31,32,33,34,35,36,37,38,39,40,41,42,43,44,45,46,47,48,49,50,51,52,53,54,55,56,57,58]
[null,null,null,"Потребители с максимальной мощностью принадлежащих им энергопринимающих устройств от 10 МВт",100,{"$f":"SUM(F18:F24)","v":0},0,0,0,0,0,0,0,0,0,0,0,0,0,0,0,0,0,0,0,0,0,0,0,0,0,0,0,0,0,0,0,{"$f":"SUM(AL18:AL24)","v":0},0,0,0,0,0,0,0,0,0,0,0,0,0,0,0,0,0,0,0,0,0,0,0]
[null,null,null,"Промышленные и приравненные к ним потребители",111]
[null,null,null,"Электрифицированный железнодорожный транспорт",121]
[null,null,null,"Электрифицированный городской транспорт",131]
[null,null,null,"Непромышленные потребители",141]
[null,null,null,"Сельскохозяйственные товаро-производители",151]
[null,null,null,"Бюджетные потребители",161]
[null,null,null,"Другие энергоснабжающие организации",171]
[null,null,null,"Потребители с максимальной мощностью принадлежащих им энергопринимающих устройств от 670 кВт до 10 МВт",200,{"$f":"SUM(F26:F32)","v":0},0,0,0,0,0,0,0,0,0,0,0,0,0,0,0,0,0,0,0,0,0,0,0,0,0,0,0,0,0,0,0,{"$f":"SUM(AL26:AL32)","v":0},0,0,0,0,0,0,0,0,0,0,0,0,0,0,0,0,0,0,0,0,0,0,0]
[null,null,null,"Промышленные и приравненные к ним потребители",211]
[null,null,null,"Электрифицированный железнодорожный транспорт",221]
[null,null,null,"Электрифицированный городской транспорт",231]
[null,null,null,"Непромышленные потребители",241]
[null,null,null,"Сельскохозяйственные товаро-производители",251]
[null,null,null,"Бюджетные потребители",261]
[null,null,null,"Другие энергоснабжающие организации",271]
[null,null,null,"Потребители с максимальной мощностью принадлежащих им энергопринимающих устройств от 150 кВт до 670 кВт",300,{"$f":"SUM(F34:F40)","v":0},0,0,0,0,0,0,0,0,0,0,0,0,0,0,0,0,0,0,0,0,0,0,0,0,0,0,0,0,0,0,0,{"$f":"SUM(AL34:AL40)","v":0},0,0,0,0,0,0,0,0,0,0,0,0,0,0,0,0,0,0,0,0,0,0,0]
[null,null,null,"Промышленные и приравненные к ним потребители",311]
[null,null,null,"Электрифицированный железнодорожный транспорт",321]
[null,null,null,"Электрифицированный городской транспорт",331]
[null,null,null,"Непромышленные потребители",341]
[null,null,null,"Сельскохозяйственные товаро-производители",351]
[null,null,null,"Бюджетные потребители",361]
[null,null,null,"Другие энергоснабжающие организации",371]
[null,null,null,"Потребители с максимальной мощностью принадлежащих им энергопринимающих устройств до 150 кВт",400,{"$f":"SUM(F42:F48)","v":0},0,0,0,0,0,0,0,0,0,0,0,0,0,0,0,0,0,0,0,0,0,0,0,0,0,0,0,0,0,0,0,{"$f":"SUM(AL42:AL48)","v":0},0,0,0,0,0,0,0,0,0,0,0,0,0,0,0,0,0,0,0,0,0,0,0]
[null,null,null,"Промышленные и приравненные к ним потребители",411]
[null,null,null,"Электрифицированный железнодорожный транспорт",421]
[null,null,null,"Электрифицированный городской транспорт",431]
[null,null,null,"Непромышленные потребители",441]
[null,null,null,"Сельскохозяйственные товаро-производители",451]
[null,null,null,"Бюджетные потребители",461]
[null,null,null,"Другие энергоснабжающие организации",471]
[null,null,null,"Компенсация расхода электрической энергии на передачу сетевыми организациями",500]
[null,null,null,"Полезный отпуск - всего ",600,{"$f":"SUM(F18:F24)+SUM(F26:F32)+SUM(F34:F40)+SUM(F42:F48)","v":0},{"$f":"SUM(G18:G24)+SUM(G26:G32)+SUM(G34:G40)+SUM(G42:G48)","v":0},0,0,0,0,0,0,0,0,0,0,0,0,0,0,0,0,0,0,0,0,0,0,0,0,0,0,0,0,0,0,0,0,0,0,0,0,0,0,0,0,0,0,0,0,0,0,0,0,0,0,0,0,0,0]
[]
[]
[null,null,null,"Руководитель организации",{"$f":"IF(Титульный!$G$40=\"\",\"\",Титульный!$G$40)","v":"Лукишин Игорь Геннадьевич"}]
[null,null,null,null,"(Ф.И.О.)",null,null,null,null,"(подпись)"]
[]
[]
[null,null,null,"Должностное лицо,",{"$f":"IF(Титульный!$G$49=\"\",\"\",Титульный!$G$49)","v":"Начальник службы ЭСТОП"},null,null,{"$f":"IF(Титульный!$G$48=\"\",\"\",Титульный!$G$48)","v":"Аксенов Владимир Васильевич"}]
[null,null,null," ответственное за","(должность)",null,null,"(Ф.И.О.)",null,null,null,"(подпись)"]
[null,null,null,"составление формы"]
[null,null,null,null,{"$f":"IF(Титульный!$G$50=\"\",\"\",Титульный!$G$50)","v":"8(423)2306-940"},null,null,null,"«____» _________20__ год"]
[null,null,null,null,"(номер контактного телефона)",null,null,null,"(дата составления документа)"]

{"sheet":"Раздел III","index":9,"n_rows":41,"n_cols":12,"rows_kept":41,"cut":false,"hidden":false,"merged":[[36,7,36,9],[37,4,37,5],[37,7,37,9],[37,11,37,12],[39,4,39,6],[40,4,40,6],[32,4,32,7],[32,9,32,10],[33,4,33,7],[33,9,33,10],[36,4,36,5]]}
[]
[]
[]
[]
[]
[]
[]
[null,null,null,"Раздел III. Продажа электрической энергии и мощности"]
[null,null,null,{"$f":"IF(org=\"\",\"Не определено\",org)","v":"ОАО \"Международный аэропорт Владивосток\" "}]
[null,null,null,null,null,null,null,null,null,"Коды по ОКЕИ: 1000 киловатт-часов – 246, мегаватт – 215, тысяча рублей – 384"]
[null,null,null,"Наименование ","Код строки","Объем электрической энергии за отчетный месяц (год), тыс кВт ч","Стоимость электрической энергии за отчетный месяц (год), тыс руб","Величина электрической мощности за отчетный месяц (в среднем \nза год), МВт","Стоимость электрической мощности за отчетный месяц (год), тыс руб","Стоимость без дифференциации на энергию и мощность за отчетный месяц (год), тыс руб"]
[null,null,null,1,2,3,4,5,6,7]
[null,null,null,"Продажа ",300,{"$f":"F14+F15+F16+F17+F18+F19+F20+F21+F23+F24+F25+F26","v":4706.5950300000004},{"$f":"G14+G15+G18+G19+G20+G21+G23+G24+G25+G26","v":20242.9071},{"$f":"H15+H16+H17+H18+H21+H22+H23+H24+H25+H26","v":0},{"$f":"I15+I18+I21+I22+I23+I24+I25+I26","v":0},{"$f":"J14+J15+J18+J19+J20+J21+J22+J23+J24+J25+J26","v":20242.9071}]
[null,null,null,"В обеспечение СД",301,null,null,"Х","Х",{"$f":"G14","v":0}]
[null,null,null,"В обеспечение регулируемых договоров (РД)",302,null,null,null,null,{"$f":"I15+G15","v":0}]
[null,null,null,"В обеспечение биржевых СДМ",303,null,"Х",null,"Х","Х"]
[null,null,null,"В обеспечение внебиржевых СДМ",304,null,"Х",null,"Х","Х"]
[null,null,null,"По договорам предоставления мощности ДПМ",305]
[null,null,null,"По ценам РСВ",306,null,null,"Х","Х",{"$f":"G19","v":0}]
[null,null,null,"БР",307,null,null,"Х","Х",{"$f":"G20","v":0}]
[null,null,null,"Экспортно-импортная и приграничная торговля",308]
[null,null,null,"По результатам КОМ",309,"Х","Х",null,null,{"$f":"I22","v":0}]
[null,null,null,"На оптовом рынке по регулируемым ценам",310,null,null,null,null,{"$f":"I23+G23","v":0}]
[null,null,null,"На оптовом рынке по нерегулируемым ценам",311,null,null,null,null,{"$f":"I24+G24","v":0}]
[null,null,null,"На розничном рынке по регулируемым тарифам (ценам)",312,{"$f":"'Раздел I. А'!BJ49","v":4706.5950300000004},{"$f":"'Раздел I. А'!BQ49","v":20242.9071},null,null,{"$f":"G25+I25","v":20242.9071}]
[null,null,null,"На розничном рынке по свободным (нерегулируемым) ценам",313,null,null,null,null,{"$f":"G26+I26","v":0}]
[null,null,null,"Собственное производство",400,null,"Х",null,"Х","Х"]
[null,null,null,"Мощность, заявленная на КОМ",500,"Х","Х",null,null,"Х"]
[null,null,null,"Аттестованная мощность",600,"Х","Х",null,"Х","Х"]
[null,null,null,"Штрафные санкции ЦФР",700,"Х","Х",null,null,"Х"]
[]
[]
[null,null,null,"Руководитель организации",{"$f":"IF(Титульный!$G$40=\"\",\"\",Титульный!$G$40)","v":"Лукишин Игорь Геннадьевич"}]
[null,null,null,null,"(Ф.И.О.)",null,null,null,null,"(подпись)"]
[]
[]
[null,null,null,"Должностное лицо,",{"$f":"IF(Титульный!$G$49=\"\",\"\",Титульный!$G$49)","v":"Начальник службы ЭСТОП"},null,null,{"$f":"IF(Титульный!$G$48=\"\",\"\",Титульный!$G$48)","v":"Аксенов Владимир Васильевич"}]
[null,null,null," ответственное за","(должность)",null,null,"(Ф.И.О.)",null,null,null,"(подпись)"]
[null,null,null,"составление формы"]
[null,null,null,null,{"$f":"IF(Титульный!$G$50=\"\",\"\",Титульный!$G$50)","v":"8(423)2306-940"},null,null,null,"«____» _________20__ год"]
[null,null,null,null,"(номер контактного телефона)",null,null,null,"(дата составления документа)"]

{"sheet":"Раздел IV","index":10,"n_rows":39,"n_cols":12,"rows_kept":39,"cut":false,"hidden":false,"merged":[[34,7,34,9],[35,4,35,5],[35,7,35,9],[35,11,35,12],[37,4,37,6],[38,4,38,6],[30,4,30,7],[30,9,30,10],[31,4,31,7],[31,9,31,10],[34,4,34,5]]}
[]
[]
[]
[]
[]
[]
[]
[null,null,null,"Раздел IV. Покупка электрической энергии и мощности"]
[null,null,null,{"$f":"IF(org=\"\",\"Не определено\",org)","v":"ОАО \"Международный аэропорт Владивосток\" "}]
[null,null,null,null,null,null,null,null,null,"         Коды по ОКЕИ: 1000 киловатт-часов – 246, мегаватт – 215, тысяча рублей – 384"]
[null,null,null,"Наименование ","Код строки","Объем электрической энергии за отчетный месяц (год), тыс кВт ч","Стоимость электрической энергии за отчетный месяц (год), тыс руб","Величина электрической мощности за отчетный месяц (в среднем \nза год), МВт","Стоимость электрической мощности за отчетный месяц (год), тыс руб","Стоимость без дифференциации на энергию и мощность за отчетный месяц (год), тыс руб"]
[null,null,null,1,2,3,4,5,6,7]
[null,null,null,"Покупка",100,{"$f":"F14+F15+F16+F17+F18+F19+F20+F21+F23+F24+F25+F26","v":6722.2139999999999},{"$f":"G14+G15+G18+G19+G20+G21+G23+G24+G25+G26","v":21400.524000000001},{"$f":"H15+H16+H17+H18+H21+H22+H23+H24+H25+H26","v":0},{"$f":"I15+I18+I21+I22+I23+I24+I25+I26","v":0},{"$f":"SUM(J14:J26)","v":21400.524000000001}]
[null,null,null,"В обеспечение СД",101,null,null,"Х","Х",{"$f":"G14","v":0}]
[null,null,null,"В обеспечение регулируемых договоров (РД)",102,null,null,null,null,{"$f":"I15+G15","v":0}]
[null,null,null,"В обеспечение биржевых СДМ",103,null,"Х",null,"Х","Х"]
[null,null,null,"В обеспечение внебиржевых СДМ",104,null,"Х",null,"Х","Х"]
[null,null,null,"По договорам предоставления мощности ДПМ",105]
[null,null,null,"По ценам РСВ",106,null,null,"Х","Х",{"$f":"G19","v":0}]
[null,null,null,"БР",107,null,null,"Х","Х",{"$f":"G20","v":0}]
[null,null,null,"Экспортно-импортная и приграничная торговля",108]
[null,null,null,"По результатам КОМ",109,"Х","Х",null,null,{"$f":"I22","v":0}]
[null,null,null,"На оптовом рынке по регулируемым ценам",110,null,null,null,null,{"$f":"I23+G23","v":0}]
[null,null,null,"На оптовом рынке по нерегулируемым ценам",111,null,null,null,null,{"$f":"I24+G24","v":0}]
[null,null,null,"На розничном рынке по регулируемым тарифам (ценам)",112,6722.2139999999999,21400.524000000001,null,null,{"$f":"I25+G25","v":21400.524000000001}]
[null,null,null,"На розничном рынке по свободным (нерегулируемым) ценам",113,null,null,null,null,{"$f":"I26+G26","v":0}]
[null,null,null,"Итого покупка с учетом продажи",114,{"$f":"F13-'Раздел III'!F13","v":2015.6189699999995},{"$f":"G13-'Раздел III'!G13","v":1157.6169000000009},{"$f":"H13-'Раздел III'!H13","v":0},{"$f":"I13-'Раздел III'!I13","v":0},{"$f":"J13-'Раздел III'!J13","v":1157.6169000000009}]
[null,null,null,"Собственное потребление",200,null,"Х",null,"Х","Х"]
[]
[]
[null,null,null,"Руководитель организации",{"$f":"IF(Титульный!$G$40=\"\",\"\",Титульный!$G$40)","v":"Лукишин Игорь Геннадьевич"}]
[null,null,null,null,"(Ф.И.О.)",null,null,null,null,"(подпись)"]
[]
[]
[null,null,null,"Должностное лицо,",{"$f":"IF(Титульный!$G$49=\"\",\"\",Титульный!$G$49)","v":"Начальник службы ЭСТОП"},null,null,{"$f":"IF(Титульный!$G$48=\"\",\"\",Титульный!$G$48)","v":"Аксенов Владимир Васильевич"}]
[null,null,null," ответственное за","(должность)",null,null,"(Ф.И.О.)",null,null,null,"(подпись)"]
[null,null,null,"составление формы"]
[null,null,null,null,{"$f":"IF(Титульный!$G$50=\"\",\"\",Титульный!$G$50)","v":"8(423)2306-940"},null,null,null,"«____» _________20__ год"]
[null,null,null,null,"(номер контактного телефона)",null,null,null,"(дата составления документа)"]

{"sheet":"Комментарии","index":11,"n_rows":14,"n_cols":5,"rows_kept":14,"cut":false,"hidden":false,"merged":[[7,3,7,4],[8,3,8,4]]}
[]
[]
[]
[]
[]
[]
[]
[null,null,null,"Комментарии"]
[null,null,null,{"$f":"IF(org=\"\",\"Не определено\",org)","v":"ОАО \"Международный аэропорт Владивосток\" "}]
[]
[null,null,null,"№ п/п","Комментарий"]
[null,null,null,1,2]
[null,null,null,0]
[null,null,null,null,"Добавить комментарий"]

{"sheet":"Проверка","index":12,"n_rows":5,"n_cols":4,"rows_kept":5,"cut":false,"hidden":false,"merged":[]}
[]
[null,"Результат проверки"]
[null,{"$f":"IF(org=\"\",\"Не определено\",org)","v":"ОАО \"Международный аэропорт Владивосток\" "}]
[]
[null,"Ссылка","Причина","Статус"]

{"sheet":"Statistic","index":13,"n_rows":26,"n_cols":3,"rows_kept":26,"cut":false,"hidden":true,"merged":[]}
[26]
["26.12.2014 11:41:24","14.0","Windows (32-bit) NT 6.01"]
["26.12.2014 16:16:52","11.0","Windows (32-bit) NT 6.01"]
["26.12.2014 16:49:49","14.0","Windows (32-bit) NT 6.01"]
["20.01.2015 18:00:47","14.0","Windows (32-bit) NT 6.01"]
["20.01.2015 18:06:09","14.0","Windows (32-bit) NT 6.01"]
["21.01.2015 15:26:22","14.0","Windows (32-bit) NT 6.01"]
["21.01.2015 16:28:00","14.0","Windows (32-bit) NT 6.01"]
["21.01.2015 16:43:30","14.0","Windows (32-bit) NT 6.01"]
["21.01.2015 16:55:32","14.0","Windows (32-bit) NT 6.01"]
["22.01.2015 14:23:53","14.0","Windows (32-bit) NT 6.01"]
["22.01.2015 14:28:06","14.0","Windows (32-bit) NT 6.01"]
["22.01.2015 14:29:28","14.0","Windows (32-bit) NT 6.01"]
["22.01.2015 14:31:52","14.0","Windows (32-bit) NT 6.01"]
["22.01.2015 14:33:55","14.0","Windows (32-bit) NT 6.01"]
["22.01.2015 14:34:52","14.0","Windows (32-bit) NT 6.01"]
["26.01.2015 14:36:45","14.0","Windows (32-bit) NT 6.01"]
["02.02.2015 16:54:36","14.0","Windows (32-bit) NT 6.01"]
["09.02.2015 09:13:54","12.0","Windows (32-bit) NT 5.01"]
["09.02.2015 11:30:20","12.0","Windows (32-bit) NT 5.01"]
["19.03.2015 15:44:25","12.0","Windows (32-bit) NT 5.01"]
["14.04.2015 08:55:08","12.0","Windows (32-bit) NT 5.01"]
["20.07.2015 11:03:56","12.0","Windows (32-bit) NT 6.01"]
["20.10.2015 13:16:44","12.0","Windows (32-bit) NT 6.01"]
["18.11.2015 11:56:41","12.0","Windows (32-bit) NT 6.01"]
["04.02.2016 16:02:24","12.0","Windows (32-bit) NT 6.01"]

{"sheet":"TEHSHEET","index":14,"n_rows":86,"n_cols":8,"rows_kept":86,"cut":false,"hidden":true,"merged":[]}
[null,"Алтайский край",null,null,"MONTH","YEAR","DaNet","Sposob_Priobr_Range"]
[0,"Амурская область",null,2,"январь",2014,"Да","с ОРЭМ"]
[null,"Архангельская область",null,3,"февраль",2015,"Нет","от ГП первого уровня "]
[null,"Астраханская область",null,4,"март",2016,null,"с ОРЭМ и от ГП первого уровня"]
[null,"Белгородская область",null,6,"апрель"]
[null,"Брянская область",null,14,"май"]
[null,"Владимирская область",null,15,"июнь"]
[null,"Волгоградская область",null,16,"июль"]
[null,"Вологодская область",null,17,"август"]
[null,"Воронежская область",null,19,"сентябрь"]
[null,"г.Байконур",null,20,"октябрь"]
[null,"г. Москва",null,21,"ноябрь"]
[null,"г.Санкт-Петербург",null,22,"декабрь"]
[null,"г.Севастополь",null,24,"год"]
[null,"Еврейская автономная область",null,25]
[null,"Забайкальский край"]
[null,"Ивановская область"]
[null,"Иркутская область"]
[null,"Кабардино-Балкарская республика"]
[null,"Калининградская область"]
[null,"Калужская область"]
[null,"Камчатский край"]
[null,"Карачаево-Черкесская республика"]
[null,"Кемеровская область"]
[null,"Кировская область"]
[null,"Костромская область"]
[null,"Краснодарский край"]
[null,"Красноярский край"]
[null,"Курганская область"]
[null,"Курская область"]
[null,"Ленинградская область"]
[null,"Липецкая область"]
[null,"Магаданская область"]
[null,"Московская область"]
[null,"Мурманская область"]
[null,"Ненецкий автономный округ"]
[null,"Нижегородская область"]
[null,"Новгородская область"]
[null,"Новосибирская область"]
[null,"Омская область"]
[null,"Оренбургская область"]
[null,"Орловская область"]
[null,"Пензенская область"]
[null,"Пермский край"]
[null,"Приморский край"]
[null,"Псковская область"]
[null,"Республика Адыгея"]
[null,"Республика Алтай"]
[null,"Республика Башкортостан"]
[null,"Республика Бурятия"]
[null,"Республика Дагестан"]
[null,"Республика Ингушетия"]
[null,"Республика Калмыкия"]
[null,"Республика Карелия"]
[null,"Республика Коми"]
[null,"Республика Крым"]
[null,"Республика Марий Эл"]
[null,"Республика Мордовия"]
[null,"Республика Саха (Якутия)"]
[null,"Республика Северная Осетия-Алания"]
[null,"Республика Татарстан"]
[null,"Республика Тыва"]
[null,"Республика Хакасия"]
[null,"Ростовская область"]
[null,"Рязанская область"]
[null,"Самарская область"]
[null,"Саратовская область"]
[null,"Сахалинская область"]
[null,"Свердловская область"]
[null,"Смоленская область"]
[null,"Ставропольский край"]
[null,"Тамбовская область"]
[null,"Тверская область"]
[null,"Томская область"]
[null,"Тульская область"]
[null,"Тюменская область"]
[null,"Удмуртская республика"]
[null,"Ульяновская область"]
[null,"Хабаровский край"]
[null,"Ханты-Мансийский автономный округ"]
[null,"Челябинская область"]
[null,"Чеченская республика"]
[null,"Чувашская республика"]
[null,"Чукотский автономный округ"]
[null,"Ямало-Ненецкий автономный округ"]
[null,"Ярославская область"]

{"sheet":"et_union","index":15,"n_rows":3,"n_cols":4,"rows_kept":3,"cut":false,"hidden":true,"merged":[]}
[]
["et_com"]
[null,null,"О",1]

{"sheet":"AllSheetsInThisWorkbook","index":16,"n_rows":25,"n_cols":2,"rows_kept":25,"cut":false,"hidden":true,"merged":[]}
["Расчетные листы","Скрытые листы"]
["Инструкция","Statistic"]
["Лог обновления","TEHSHEET"]
["Титульный","et_union"]
["Раздел I. А","AllSheetsInThisWorkbook"]
["Раздел I. Б","mod_00"]
["Раздел I. В","mod_01"]
["Раздел II. А","mod_11"]
["Раздел II. Б","mod_12"]
["Раздел III","mod_13"]
["Раздел IV","mod_21"]
["Комментарии","mod_22"]
["Проверка","mod_31"]
[null,"mod_41"]
[null,"modComm"]
[null,"modButton"]
[null,"REESTR_ORG"]
[null,"REESTR_MO"]
[null,"modfrmReestr"]
[null,"modReestr"]
[null,"modListProv"]
[null,"modUpdTemplMain"]
[null,"modDoubleClick"]
[null,"modHyperlink"]
[null,"modfrmDateChoose"]

{"sheet":"mod_00","index":17,"n_rows":0,"n_cols":0,"rows_kept":0,"cut":false,"hidden":true,"merged":[]}

{"sheet":"mod_01","index":18,"n_rows":0,"n_cols":0,"rows_kept":0,"cut":false,"hidden":true,"merged":[]}

{"sheet":"mod_11","index":19,"n_rows":0,"n_cols":0,"rows_kept":0,"cut":false,"hidden":true,"merged":[]}

{"sheet":"mod_12","index":20,"n_rows":0,"n_cols":0,"rows_kept":0,"cut":false,"hidden":true,"merged":[]}

{"sheet":"mod_13","index":21,"n_rows":0,"n_cols":0,"rows_kept":0,"cut":false,"hidden":true,"merged":[]}

{"sheet":"mod_21","index":22,"n_rows":0,"n_cols":0,"rows_kept":0,"cut":false,"hidden":true,"merged":[]}

{"sheet":"mod_22","index":23,"n_rows":0,"n_cols":0,"rows_kept":0,"cut":false,"hidden":true,"merged":[]}

{"sheet":"mod_31","index":24,"n_rows":0,"n_cols":0,"rows_kept":0,"cut":false,"hidden":true,"merged":[]}

{"sheet":"mod_41","index":25,"n_rows":0,"n_cols":0,"rows_kept":0,"cut":false,"hidden":true,"merged":[]}

{"sheet":"modComm","index":26,"n_rows":0,"n_cols":0,"rows_kept":0,"cut":false,"hidden":true,"merged":[]}

{"sheet":"modButton","index":27,"n_rows":0,"n_cols":0,"rows_kept":0,"cut":false,"hidden":true,"merged":[]}

{"sheet":"REESTR_ORG","index":28,"n_rows":477,"n_cols":12,"rows_kept":477,"cut":false,"hidden":true,"merged":[]}
["№","NSRF","MR_NAME","OKTMO_MR_NAME","MO_NAME","OKTMO_NAME","RST_ORG_ID","ORG_NAME","INN_NAME","KPP_NAME","VDET_NAME"]
[1,"Приморский край","Анучинский муниципальный район","05602000","Анучинское сельское поселение","05602402","26470185","КГУП \"Примтеплоэнерго\"","2536112729","250132001","Сбытовая компания","EE"]
[2,"Приморский край","Анучинский муниципальный район","05602000","Анучинское сельское поселение","05602402","27051081","ОАО \"ДГК\"","1434031363","997450001","Станция - поставщик ЭЭ","EE"]
[3,"Приморский край","Анучинский муниципальный район","05602000","Виноградовское сельское поселение","05602404","26470185","КГУП \"Примтеплоэнерго\"","2536112729","250132001","Сбытовая компания","EE"]
[4,"Приморский край","Анучинский муниципальный район","05602000","Виноградовское сельское поселение","05602404","27051081","ОАО \"ДГК\"","1434031363","997450001","Станция - поставщик ЭЭ","EE"]
[5,"Приморский край","Анучинский муниципальный район","05602000","Гражданское сельское поселение","05602406","26470185","КГУП \"Примтеплоэнерго\"","2536112729","250132001","Сбытовая компания","EE"]
[6,"Приморский край","Анучинский муниципальный район","05602000","Гражданское сельское поселение","05602406","27051081","ОАО \"ДГК\"","1434031363","997450001","Станция - поставщик ЭЭ","EE"]
[7,"Приморский край","Анучинский муниципальный район","05602000","Чернышевское сельское поселение","05602419","26470185","КГУП \"Примтеплоэнерго\"","2536112729","250132001","Сбытовая компания","EE"]
[8,"Приморский край","Анучинский муниципальный район","05602000","Чернышевское сельское поселение","05602419","27051081","ОАО \"ДГК\"","1434031363","997450001","Станция - поставщик ЭЭ","EE"]
[9,"Приморский край","Арсеньевский городской округ","05703000","Арсеньевский городской округ","05703000","26470185","КГУП \"Примтеплоэнерго\"","2536112729","250132001","Сбытовая компания","EE"]
[10,"Приморский край","Арсеньевский городской округ","05703000","Арсеньевский городской округ","05703000","26320280","ОАО \"Арсеньевэлектросервис\"","2501010388","250101001","Сетевая компания","EE"]
[11,"Приморский край","Арсеньевский городской округ","05703000","Арсеньевский городской округ","05703000","26320264","ОАО \"Аскольд\"","2501001009","250101001","Сетевая компания","EE"]
[12,"Приморский край","Арсеньевский городской округ","05703000","Арсеньевский городской округ","05703000","27051081","ОАО \"ДГК\"","1434031363","997450001","Станция - поставщик ЭЭ","EE"]
[13,"Приморский край","Арсеньевский городской округ","05703000","Арсеньевский городской округ","05703000","26319158","ОАО \"Электросеть\" г.Арсеньев","2501005797","250101001","Сбытовая компания","EE"]
[14,"Приморский край","Арсеньевский городской округ","05703000","Арсеньевский городской округ","05703000","26573160","ООО \"Управляющая Компания \"ТЭК Арсеньев\"","2501014449","250101001","Сетевая компания","EE"]
[15,"Приморский край","Артемовский городской округ","05705000","Артемовский городской округ","05705000","26503195","АПОТМ ОАО \"Приморскоптметаллоснаб\"","2540001877","250202001","Сетевая компания","EE"]
[16,"Приморский край","Артемовский городской округ","05705000","Артемовский городской округ","05705000","26470185","КГУП \"Примтеплоэнерго\"","2536112729","250132001","Сбытовая компания","EE"]
[17,"Приморский край","Артемовский городской округ","05705000","Артемовский городской округ","05705000","27051081","ОАО \"ДГК\"","1434031363","997450001","Станция - поставщик ЭЭ","EE"]
[18,"Приморский край","Артемовский городской округ","05705000","Артемовский городской округ","05705000","26813401","ОАО \"ДГК\" СП Артемовская ТЭЦ","1434031363","250232001","Региональная генерация","EE"]
[19,"Приморский край","Артемовский городской округ","05705000","Артемовский городской округ","05705000","26650998","ОАО \"ДГК\" филиал \"Приморские тепловые сети\"","1434031363","254002001","Станция - поставщик ЭЭ","EE"]
[20,"Приморский край","Артемовский городской округ","05705000","Артемовский городской округ","05705000","26759238","ОАО \"ДГК\" филиал Приморская генерация","1434031363","253602001","Региональная генерация","EE"]
[21,"Приморский край","Артемовский городской округ","05705000","Артемовский городской округ","05705000","26538809","ОАО \"Международный аэропорт Владивосток\" ","2502035642","250201001","ЭСО","EE"]
[22,"Приморский край","Артемовский городской округ","05705000","Артемовский городской округ","05705000","26836586","ООО \"Артемовская электросеть\"","2502031246","250201001","Сетевая компания","EE"]
[23,"Приморский край","Артемовский городской округ","05705000","Артемовский городской округ","05705000","27572882","ООО \"Артемовский механический завод\"","2502034198","250201001","ЭСО","EE"]
[24,"Приморский край","Артемовский городской округ","05705000","Артемовский городской округ","05705000","26320261","ООО \"Дальмебель\"","7732114390","250201001","Сетевая компания","EE"]
[25,"Приморский край","Артемовский городской округ","05705000","Артемовский городской округ","05705000","28175693","ООО «АЭСК»","2502046690","250201001","Сетевая компания","EE"]
[26,"Приморский край","Артемовский городской округ","05705000","Артемовский городской округ","05705000","26320285","ООО «Горэлектросеть»","2502038040","250201001","Сетевая компания","EE"]
[27,"Приморский край","Владивостокский городской округ","05701000","Владивостокский городской округ","05701000","26470185","КГУП \"Примтеплоэнерго\"","2536112729","250132001","Сбытовая компания","EE"]
[28,"Приморский край","Владивостокский городской округ","05701000","Владивостокский городской округ","05701000","26320288","МУПВ \"Владивостокское предприятие электрических сетей\"","2504000684","254250001","Сбытовая компания","EE"]
[29,"Приморский край","Владивостокский городской округ","05701000","Владивостокский городской округ","05701000","26320288","МУПВ \"Владивостокское предприятие электрических сетей\"","2504000684","254250001","Сетевая компания","EE"]
[30,"Приморский край","Владивостокский городской округ","05701000","Владивостокский городской округ","05701000","26320277","ОАО \"13 Электрическая сеть\"","2536215241","253601001","Сбытовая компания","EE"]
[31,"Приморский край","Владивостокский городской округ","05701000","Владивостокский городской округ","05701000","27572835","ОАО \"178 СРЗ\"","2536210349","253601001","ЭСО","EE"]
[32,"Приморский край","Владивостокский городской округ","05701000","Владивостокский городской округ","05701000","27051081","ОАО \"ДГК\"","1434031363","997450001","Станция - поставщик ЭЭ","EE"]
[33,"Приморский край","Владивостокский городской округ","05701000","Владивостокский городской округ","05701000","27630251","ОАО \"ДГК\" Приморская ГРЭС","1434031363","254003001","Станция - поставщик ЭЭ","EE"]
[34,"Приморский край","Владивостокский городской округ","05701000","Владивостокский городской округ","05701000","27630255","ОАО \"ДГК\" СП Владивостокская ТЭЦ-2","1434031363","253632001","Станция - поставщик ЭЭ","EE"]
[35,"Приморский край","Владивостокский городской округ","05701000","Владивостокский городской округ","05701000","28493708","ОАО \"ДГК\" Электростанция оптового рынка \"ГТУ-ТЭЦ на площадке ЦПВБ\"","1434031363","253802001","Региональная генерация","EE"]
[36,"Приморский край","Владивостокский городской округ","05701000","Владивостокский городской округ","05701000","26650998","ОАО \"ДГК\" филиал \"Приморские тепловые сети\"","1434031363","254002001","Станция - поставщик ЭЭ","EE"]
[37,"Приморский край","Владивостокский городской округ","05701000","Владивостокский городской округ","05701000","26759238","ОАО \"ДГК\" филиал Приморская генерация","1434031363","253602001","Региональная генерация","EE"]
[38,"Приморский край","Владивостокский городской округ","05701000","Владивостокский городской округ","05701000","26538885","ОАО \"Дальневосточная энергетическая управляющая компания\"","2540080100","254250001","Региональная генерация","EE"]
[39,"Приморский край","Владивостокский городской округ","05701000","Владивостокский городской округ","05701000","27572850","ОАО \"Дальприбор\"","2539008807","253901001","ЭСО","EE"]
[40,"Приморский край","Владивостокский городской округ","05701000","Владивостокский городской округ","05701000","27572819","ОАО \"Изумруд\"","2539028264","253901001","ЭСО","EE"]
[41,"Приморский край","Владивостокский городской округ","05701000","Владивостокский городской округ","05701000","26525165","ОАО \"Приморскуголь\"","2540016954","254250001","Сетевая компания","EE"]
[42,"Приморский край","Владивостокский городской округ","05701000","Владивостокский городской округ","05701000","27572866","ООО \"ВОЭРМЗ\"","2538125339","253801001","ЭСО","EE"]
[43,"Приморский край","Владивостокский городской округ","05701000","Владивостокский городской округ","05701000","26320271","ООО \"Дальэлектросила\"","2539082857","253901001","Сетевая компания","EE"]
[44,"Приморский край","Владивостокский городской округ","05701000","Владивостокский городской округ","05701000","27154058","ООО \"Локальная энергетическая компания - Восток\"","2537052261","253701001","Сбытовая компания","EE"]
[45,"Приморский край","Владивостокский городской округ","05701000","Владивостокский городской округ","05701000","27572750","ООО \"Предприятие \"Востокрыбстрой\"","2538012920","253801001","ЭСО","EE"]
[46,"Приморский край","Владивостокский городской округ","05701000","Владивостокский городской округ","05701000","26502786","ООО \"РУСЭНЕРГОСБЫТ\"","7706284124","770601001","Сбытовая компания","EE"]
[47,"Приморский край","Владивостокский городской округ","05701000","Владивостокский городской округ","05701000","26406211","ООО \"Русэнергоресурс\"","7706288496","770601001","Сбытовая компания","EE"]
[48,"Приморский край","Владивостокский городской округ","05701000","Владивостокский городской округ","05701000","26320265","ООО \"Транзит-Лес\"","2508035818","250801001","Сетевая компания","EE"]
[49,"Приморский край","Владивостокский городской округ","05701000","Владивостокский городской округ","05701000","27154030","ООО Управляющая компания \"ДальТехникЦентр\"","2540063489","254001001","Сбытовая компания","EE"]
[50,"Приморский край","Владивостокский городской округ","05701000","Владивостокский городской округ","05701000","27294665","Филиал \"Приморский\" ОАО \"Оборонэнерго\"","7704726225","253643001","ЭСО","EE"]
[51,"Приморский край","Владивостокский городской округ","05701000","Владивостокский городской округ","05701000","27294665","Филиал \"Приморский\" ОАО \"Оборонэнерго\"","7704726225","253643001","Сетевая компания","EE"]
[52,"Приморский край","Владивостокский городской округ","05701000","Владивостокский городской округ","05701000","27294665","Филиал \"Приморский\" ОАО \"Оборонэнерго\"","7704726225","253643001","Сбытовая компания","EE"]
[53,"Приморский край","Владивостокский городской округ","05701000","Владивостокский городской округ","05701000","26757554","Филиал \"Приморский\" ОАО \"Оборонэнергосбыт\"","7704731218","253643003","Сбытовая компания","EE"]
[54,"Приморский край","Владивостокский городской округ","05701000","Владивостокский городской округ","05701000","28797766","Филиал ОАО \"ФСК ЕЭС\" Сочинское ПМЭС","4716016979","231743001","Сетевая компания","EE"]
[55,"Приморский край","Владивостокский городской округ","05701000","Владивостокский городской округ","05701000","27572997","оао \"Владивостокский морской торговый порт\"","2504000204","997650001","ЭСО","EE"]
[56,"Приморский край","Городской округ Спасск-Дальний","05720000","Городской округ Спасск-Дальний","05720000","26470185","КГУП \"Примтеплоэнерго\"","2536112729","250132001","Сбытовая компания","EE"]
[57,"Приморский край","Городской округ Спасск-Дальний","05720000","Городской округ Спасск-Дальний","05720000","27051081","ОАО \"ДГК\"","1434031363","997450001","Станция - поставщик ЭЭ","EE"]
[58,"Приморский край","Городской округ Спасск-Дальний","05720000","Городской округ Спасск-Дальний","05720000","26470237","ОАО \"Спасcкцемент\"","2510001238","251001001","Сетевая компания","EE"]
[59,"Приморский край","Городской округ Спасск-Дальний","05720000","Городской округ Спасск-Дальний","05720000","26320260","ОАО \"Спасский комбинат асбестоцементных изделий\"","2510000386","251001001","Сетевая компания","EE"]
[60,"Приморский край","Городской округ Спасск-Дальний","05720000","Городской округ Спасск-Дальний","05720000","26320282","ОАО \"Спасскэлектросеть\"","2510003066","251001001","Сетевая компания","EE"]
[61,"Приморский край","Городской округ Спасск-Дальний","05720000","Городской округ Спасск-Дальний","05720000","26320263","ООО \"Спасскэлектроконтроль\"","2510007328","251001001","Сетевая компания","EE"]
[62,"Приморский край","Дальнегорский городской округ","05707000","Дальнегорский городской округ","05707000","26320262","ЗАО \"Горно-химическая компания Бор\"","2505009506","250501001","Сетевая компания","EE"]
[63,"Приморский край","Дальнегорский городской округ","05707000","Дальнегорский городской округ","05707000","26320278","ЗАО \"Коммунэлектросервис\"","2505010540","250501001","Сетевая компания","EE"]
[64,"Приморский край","Дальнегорский городской округ","05707000","Дальнегорский городской округ","05707000","26470185","КГУП \"Примтеплоэнерго\"","2536112729","250132001","Сбытовая компания","EE"]
[65,"Приморский край","Дальнегорский городской округ","05707000","Дальнегорский городской округ","05707000","27051081","ОАО \"ДГК\"","1434031363","997450001","Станция - поставщик ЭЭ","EE"]
[66,"Приморский край","Дальнегорский городской округ","05707000","Дальнегорский городской округ","05707000","26319159","ОАО \"Дальнегорская электросеть\"","2505000197","250501001","Сбытовая компания","EE"]
[67,"Приморский край","Дальнереченский городской округ","05708000","Дальнереченский городской округ","05708000","26470185","КГУП \"Примтеплоэнерго\"","2536112729","250132001","Сбытовая компания","EE"]
[68,"Приморский край","Дальнереченский городской округ","05708000","Дальнереченский городской округ","05708000","27051081","ОАО \"ДГК\"","1434031363","997450001","Станция - поставщик ЭЭ","EE"]
[69,"Приморский край","Дальнереченский городской округ","05708000","Дальнереченский городской округ","05708000","26319156","ОАО \"Электросервис\", Дальнереченск","2506006138","250601001","Сбытовая компания","EE"]
[70,"Приморский край","Дальнереченский городской округ","05708000","Дальнереченский городской округ","05708000","26320259","ООО \"Приморский лесокомбинат\"","2506006716","250601001","Сетевая компания","EE"]
[71,"Приморский край","Дальнереченский городской округ","05708000","Дальнереченский городской округ","05708000","26320291","ООО \"Электросервис - Сети\"","2506009530","250601001","Сетевая компания","EE"]
[72,"Приморский край","Дальнереченский муниципальный район","05607000","Веденкинское сельское поселение","05607408","26470185","КГУП \"Примтеплоэнерго\"","2536112729","250132001","Сбытовая компания","EE"]
[73,"Приморский край","Дальнереченский муниципальный район","05607000","Веденкинское сельское поселение","05607408","27051081","ОАО \"ДГК\"","1434031363","997450001","Станция - поставщик ЭЭ","EE"]
[74,"Приморский край","Дальнереченский муниципальный район","05607000","Дальнереченский муниципальный район","05607000","26470185","КГУП \"Примтеплоэнерго\"","2536112729","250132001","Сбытовая компания","EE"]
[75,"Приморский край","Дальнереченский муниципальный район","05607000","Дальнереченский муниципальный район","05607000","27051081","ОАО \"ДГК\"","1434031363","997450001","Станция - поставщик ЭЭ","EE"]
[76,"Приморский край","Дальнереченский муниципальный район","05607000","Дальнереченский муниципальный район","05607000","26470136","ООО \"Коммунальная ремонтно-эксплуатационная компания\"","2506010254","250601001","Сбытовая компания","EE"]
[77,"Приморский край","Дальнереченский муниципальный район","05607000","Малиновское сельское поселение","05607413","26470185","КГУП \"Примтеплоэнерго\"","2536112729","250132001","Сбытовая компания","EE"]
[78,"Приморский край","Дальнереченский муниципальный район","05607000","Малиновское сельское поселение","05607413","27051081","ОАО \"ДГК\"","1434031363","997450001","Станция - поставщик ЭЭ","EE"]
[79,"Приморский край","Дальнереченский муниципальный район","05607000","Ореховское сельское поселение","05607422","26470185","КГУП \"Примтеплоэнерго\"","2536112729","250132001","Сбытовая компания","EE"]
[80,"Приморский край","Дальнереченский муниципальный район","05607000","Ореховское сельское поселение","05607422","27051081","ОАО \"ДГК\"","1434031363","997450001","Станция - поставщик ЭЭ","EE"]
[81,"Приморский край","Дальнереченский муниципальный район","05607000","Ракитненское сельское поселение","05607425","26470185","КГУП \"Примтеплоэнерго\"","2536112729","250132001","Сбытовая компания","EE"]
[82,"Приморский край","Дальнереченский муниципальный район","05607000","Ракитненское сельское поселение","05607425","27051081","ОАО \"ДГК\"","1434031363","997450001","Станция - поставщик ЭЭ","EE"]
[83,"Приморский край","Дальнереченский муниципальный район","05607000","Рождественское сельское поселение","05607428","26470185","КГУП \"Примтеплоэнерго\"","2536112729","250132001","Сбытовая компания","EE"]
[84,"Приморский край","Дальнереченский муниципальный район","05607000","Рождественское сельское поселение","05607428","27051081","ОАО \"ДГК\"","1434031363","997450001","Станция - поставщик ЭЭ","EE"]
[85,"Приморский край","Дальнереченский муниципальный район","05607000","Сальское сельское поселение","05607431","26470185","КГУП \"Примтеплоэнерго\"","2536112729","250132001","Сбытовая компания","EE"]
[86,"Приморский край","Дальнереченский муниципальный район","05607000","Сальское сельское поселение","05607431","27051081","ОАО \"ДГК\"","1434031363","997450001","Станция - поставщик ЭЭ","EE"]
[87,"Приморский край","Кавалеровский муниципальный район","05610000","Горнореченское сельское поселение","05610155","26470185","КГУП \"Примтеплоэнерго\"","2536112729","250132001","Сбытовая компания","EE"]
[88,"Приморский край","Кавалеровский муниципальный район","05610000","Горнореченское сельское поселение","05610155","27051081","ОАО \"ДГК\"","1434031363","997450001","Станция - поставщик ЭЭ","EE"]
[89,"Приморский край","Кавалеровский муниципальный район","05610000","Кавалеровкое городское поселение","05610151","26470185","КГУП \"Примтеплоэнерго\"","2536112729","250132001","Сбытовая компания","EE"]
[90,"Приморский край","Кавалеровский муниципальный район","05610000","Кавалеровкое городское поселение","05610151","27051081","ОАО \"ДГК\"","1434031363","997450001","Станция - поставщик ЭЭ","EE"]
[91,"Приморский край","Кавалеровский муниципальный район","05610000","Кавалеровский муниципальный район","05610000","26470185","КГУП \"Примтеплоэнерго\"","2536112729","250132001","Сбытовая компания","EE"]
[92,"Приморский край","Кавалеровский муниципальный район","05610000","Кавалеровский муниципальный район","05610000","27051081","ОАО \"ДГК\"","1434031363","997450001","Станция - поставщик ЭЭ","EE"]
[93,"Приморский край","Кавалеровский муниципальный район","05610000","Кавалеровский муниципальный район","05610000","26320284","ОАО \"Электросервис\" п. Кавалерово","2515006938","251501001","Сетевая компания","EE"]
[94,"Приморский край","Кавалеровский муниципальный район","05610000","Кавалеровский муниципальный район","05610000","26804193","ООО \"Эксперт\"","2515011007","251501001","Сетевая компания","EE"]
[95,"Приморский край","Кавалеровский муниципальный район","05610000","Рудненское сельское поселение","05610408","26470185","КГУП \"Примтеплоэнерго\"","2536112729","250132001","Сбытовая компания","EE"]
[96,"Приморский край","Кавалеровский муниципальный район","05610000","Рудненское сельское поселение","05610408","27051081","ОАО \"ДГК\"","1434031363","997450001","Станция - поставщик ЭЭ","EE"]
[97,"Приморский край","Кавалеровский муниципальный район","05610000","Устиновское сельское поселение","05610404","26470185","КГУП \"Примтеплоэнерго\"","2536112729","250132001","Сбытовая компания","EE"]
[98,"Приморский край","Кавалеровский муниципальный район","05610000","Устиновское сельское поселение","05610404","27051081","ОАО \"ДГК\"","1434031363","997450001","Станция - поставщик ЭЭ","EE"]
[99,"Приморский край","Кавалеровский муниципальный район","05610000","Хрустальненское городское поселение","05610160","26470185","КГУП \"Примтеплоэнерго\"","2536112729","250132001","Сбытовая компания","EE"]
[100,"Приморский край","Кавалеровский муниципальный район","05610000","Хрустальненское городское поселение","05610160","27051081","ОАО \"ДГК\"","1434031363","997450001","Станция - поставщик ЭЭ","EE"]
[101,"Приморский край","Кировский муниципальный район","05612000","Горноключевское гороское поселение","05612154","26470185","КГУП \"Примтеплоэнерго\"","2536112729","250132001","Сбытовая компания","EE"]
[102,"Приморский край","Кировский муниципальный район","05612000","Горноключевское гороское поселение","05612154","27051081","ОАО \"ДГК\"","1434031363","997450001","Станция - поставщик ЭЭ","EE"]
[103,"Приморский край","Кировский муниципальный район","05612000","Кировский муниципальный район","05612000","26470185","КГУП \"Примтеплоэнерго\"","2536112729","250132001","Сбытовая компания","EE"]
[104,"Приморский край","Кировский муниципальный район","05612000","Кировский муниципальный район","05612000","27051081","ОАО \"ДГК\"","1434031363","997450001","Станция - поставщик ЭЭ","EE"]
[105,"Приморский край","Кировский муниципальный район","05612000","Кировское городское поселение","05612151","26470185","КГУП \"Примтеплоэнерго\"","2536112729","250132001","Сбытовая компания","EE"]
[106,"Приморский край","Кировский муниципальный район","05612000","Кировское городское поселение","05612151","27051081","ОАО \"ДГК\"","1434031363","997450001","Станция - поставщик ЭЭ","EE"]
[107,"Приморский край","Кировский муниципальный район","05612000","Кировское городское поселение","05612151","26320286","ООО \"Кировская электросеть\"","2516606166","251601001","Сетевая компания","EE"]
[108,"Приморский край","Кировский муниципальный район","05612000","Крыловское сельское поселение","05612413","26470185","КГУП \"Примтеплоэнерго\"","2536112729","250132001","Сбытовая компания","EE"]
[109,"Приморский край","Кировский муниципальный район","05612000","Крыловское сельское поселение","05612413","27051081","ОАО \"ДГК\"","1434031363","997450001","Станция - поставщик ЭЭ","EE"]
[110,"Приморский край","Кировский муниципальный район","05612000","Руновское сельское поселение","05612428","26470185","КГУП \"Примтеплоэнерго\"","2536112729","250132001","Сбытовая компания","EE"]
[111,"Приморский край","Кировский муниципальный район","05612000","Руновское сельское поселение","05612428","27051081","ОАО \"ДГК\"","1434031363","997450001","Станция - поставщик ЭЭ","EE"]
[112,"Приморский край","Кировский муниципальный район","05612000","Хвищанское сельское поселение","05612434","26470185","КГУП \"Примтеплоэнерго\"","2536112729","250132001","Сбытовая компания","EE"]
[113,"Приморский край","Кировский муниципальный район","05612000","Хвищанское сельское поселение","05612434","27051081","ОАО \"ДГК\"","1434031363","997450001","Станция - поставщик ЭЭ","EE"]
[114,"Приморский край","Красноармейский муниципальный район","05614000","Востокское городское поселение","05614154","26470185","КГУП \"Примтеплоэнерго\"","2536112729","250132001","Сбытовая компания","EE"]
[115,"Приморский край","Красноармейский муниципальный район","05614000","Востокское городское поселение","05614154","27051081","ОАО \"ДГК\"","1434031363","997450001","Станция - поставщик ЭЭ","EE"]
[116,"Приморский край","Красноармейский муниципальный район","05614000","Красноармейский муниципальный район","05614000","26470185","КГУП \"Примтеплоэнерго\"","2536112729","250132001","Сбытовая компания","EE"]
[117,"Приморский край","Красноармейский муниципальный район","05614000","Красноармейский муниципальный район","05614000","27051081","ОАО \"ДГК\"","1434031363","997450001","Станция - поставщик ЭЭ","EE"]
[118,"Приморский край","Красноармейский муниципальный район","05614000","Лукъяновское сельское поселение","05614420","26470185","КГУП \"Примтеплоэнерго\"","2536112729","250132001","Сбытовая компания","EE"]
[119,"Приморский край","Красноармейский муниципальный район","05614000","Лукъяновское сельское поселение","05614420","27051081","ОАО \"ДГК\"","1434031363","997450001","Станция - поставщик ЭЭ","EE"]
[120,"Приморский край","Красноармейский муниципальный район","05614000","Мельничное сельское поселение","05614422","26470185","КГУП \"Примтеплоэнерго\"","2536112729","250132001","Сбытовая компания","EE"]
[121,"Приморский край","Красноармейский муниципальный район","05614000","Мельничное сельское поселение","05614422","27051081","ОАО \"ДГК\"","1434031363","997450001","Станция - поставщик ЭЭ","EE"]
[122,"Приморский край","Красноармейский муниципальный район","05614000","Новопокровское сельское поселение","05614428","26470185","КГУП \"Примтеплоэнерго\"","2536112729","250132001","Сбытовая компания","EE"]
[123,"Приморский край","Красноармейский муниципальный район","05614000","Новопокровское сельское поселение","05614428","27051081","ОАО \"ДГК\"","1434031363","997450001","Станция - поставщик ЭЭ","EE"]
[124,"Приморский край","Красноармейский муниципальный район","05614000","Новопокровское сельское поселение","05614428","27154026","ООО \"Красноармейские электрические сети\"","2517007711","251701001","Сбытовая компания","EE"]
[125,"Приморский край","Красноармейский муниципальный район","05614000","Рощинское сельское поселение","05614431","26470185","КГУП \"Примтеплоэнерго\"","2536112729","250132001","Сбытовая компания","EE"]
[126,"Приморский край","Красноармейский муниципальный район","05614000","Рощинское сельское поселение","05614431","27051081","ОАО \"ДГК\"","1434031363","997450001","Станция - поставщик ЭЭ","EE"]
[127,"Приморский край","Лазовский муниципальный район","05617000","Беневское сельское поселение","05617402","26470185","КГУП \"Примтеплоэнерго\"","2536112729","250132001","Сбытовая компания","EE"]
[128,"Приморский край","Лазовский муниципальный район","05617000","Беневское сельское поселение","05617402","27051081","ОАО \"ДГК\"","1434031363","997450001","Станция - поставщик ЭЭ","EE"]
[129,"Приморский край","Лазовский муниципальный район","05617000","Валентиновское сельское поселение","05617403","26470185","КГУП \"Примтеплоэнерго\"","2536112729","250132001","Сбытовая компания","EE"]
[130,"Приморский край","Лазовский муниципальный район","05617000","Валентиновское сельское поселение","05617403","26470369","МУП ДЭС-Глазковка","2518111507","251801001","Сбытовая компания","EE"]
[131,"Приморский край","Лазовский муниципальный район","05617000","Валентиновское сельское поселение","05617403","27051081","ОАО \"ДГК\"","1434031363","997450001","Станция - поставщик ЭЭ","EE"]
[132,"Приморский край","Лазовский муниципальный район","05617000","Лазовский муниципальный район","05617000","26470185","КГУП \"Примтеплоэнерго\"","2536112729","250132001","Сбытовая компания","EE"]
[133,"Приморский край","Лазовский муниципальный район","05617000","Лазовский муниципальный район","05617000","27051081","ОАО \"ДГК\"","1434031363","997450001","Станция - поставщик ЭЭ","EE"]
[134,"Приморский край","Лазовский муниципальный район","05617000","Лазовский муниципальный район","05617000","26525152","ООО \"Энергетические сети Преображения\"","2518117509","251801001","Сетевая компания","EE"]
[135,"Приморский край","Лазовский муниципальный район","05617000","Лазовское сельское поселение","05617407","26470185","КГУП \"Примтеплоэнерго\"","2536112729","250132001","Сбытовая компания","EE"]
[136,"Приморский край","Лазовский муниципальный район","05617000","Лазовское сельское поселение","05617407","27051081","ОАО \"ДГК\"","1434031363","997450001","Станция - поставщик ЭЭ","EE"]
[137,"Приморский край","Лазовский муниципальный район","05617000","Преображенское городское поселение","05617157","26470185","КГУП \"Примтеплоэнерго\"","2536112729","250132001","Сбытовая компания","EE"]
[138,"Приморский край","Лазовский муниципальный район","05617000","Преображенское городское поселение","05617157","27051081","ОАО \"ДГК\"","1434031363","997450001","Станция - поставщик ЭЭ","EE"]
[139,"Приморский край","Лесозаводский городской округ","05711000","Лесозаводский городской округ","05711000","26470185","КГУП \"Примтеплоэнерго\"","2536112729","250132001","Сбытовая компания","EE"]
[140,"Приморский край","Лесозаводский городской округ","05711000","Лесозаводский городской округ","05711000","27051081","ОАО \"ДГК\"","1434031363","997450001","Станция - поставщик ЭЭ","EE"]
[141,"Приморский край","Лесозаводский городской округ","05711000","Лесозаводский городской округ","05711000","26319157","ОАО \"Электросервис\"","2507003122","250701001","Сбытовая компания","EE"]
[142,"Приморский край","Лесозаводский городской округ","05711000","Лесозаводский городской округ","05711000","26320287","ООО \"Коммунальные сети\"","2507228334","250701001","Сетевая компания","EE"]
[143,"Приморский край","Михайловский муниципальный район","05620000","Григорьевское сельское поселение","05620406","26470185","КГУП \"Примтеплоэнерго\"","2536112729","250132001","Сбытовая компания","EE"]
[144,"Приморский край","Михайловский муниципальный район","05620000","Григорьевское сельское поселение","05620406","27051081","ОАО \"ДГК\"","1434031363","997450001","Станция - поставщик ЭЭ","EE"]
[145,"Приморский край","Михайловский муниципальный район","05620000","Ивановкое сельское поселение","05620408","26470185","КГУП \"Примтеплоэнерго\"","2536112729","250132001","Сбытовая компания","EE"]
[146,"Приморский край","Михайловский муниципальный район","05620000","Ивановкое сельское поселение","05620408","27051081","ОАО \"ДГК\"","1434031363","997450001","Станция - поставщик ЭЭ","EE"]
[147,"Приморский край","Михайловский муниципальный район","05620000","Кремовское сельское поселение","05620410","26470185","КГУП \"Примтеплоэнерго\"","2536112729","250132001","Сбытовая компания","EE"]
[148,"Приморский край","Михайловский муниципальный район","05620000","Кремовское сельское поселение","05620410","27051081","ОАО \"ДГК\"","1434031363","997450001","Станция - поставщик ЭЭ","EE"]
[149,"Приморский край","Михайловский муниципальный район","05620000","Михайловское сельское поселение","05620419","26470185","КГУП \"Примтеплоэнерго\"","2536112729","250132001","Сбытовая компания","EE"]
[150,"Приморский край","Михайловский муниципальный район","05620000","Михайловское сельское поселение","05620419","27051081","ОАО \"ДГК\"","1434031363","997450001","Станция - поставщик ЭЭ","EE"]
[151,"Приморский край","Михайловский муниципальный район","05620000","Михайловское сельское поселение","05620419","26320281","ОАО \"Михайловскагропромэнерго\"","2520000498","252001001","Сетевая компания","EE"]
[152,"Приморский край","Михайловский муниципальный район","05620000","Новошахтинское городское поселение","05620154","26470185","КГУП \"Примтеплоэнерго\"","2536112729","250132001","Сбытовая компания","EE"]
[153,"Приморский край","Михайловский муниципальный район","05620000","Новошахтинское городское поселение","05620154","27051081","ОАО \"ДГК\"","1434031363","997450001","Станция - поставщик ЭЭ","EE"]
[154,"Приморский край","Михайловский муниципальный район","05620000","Осиновское сельское поселение","05620425","26470185","КГУП \"Примтеплоэнерго\"","2536112729","250132001","Сбытовая компания","EE"]
[155,"Приморский край","Михайловский муниципальный район","05620000","Осиновское сельское поселение","05620425","27051081","ОАО \"ДГК\"","1434031363","997450001","Станция - поставщик ЭЭ","EE"]
[156,"Приморский край","Михайловский муниципальный район","05620000","Сунятсенское сельское поселение","05620428","26470185","КГУП \"Примтеплоэнерго\"","2536112729","250132001","Сбытовая компания","EE"]
[157,"Приморский край","Михайловский муниципальный район","05620000","Сунятсенское сельское поселение","05620428","27051081","ОАО \"ДГК\"","1434031363","997450001","Станция - поставщик ЭЭ","EE"]
[158,"Приморский край","Надеждинский муниципальный район","05623000","Надеждинский муниципальный район","05623000","26470185","КГУП \"Примтеплоэнерго\"","2536112729","250132001","Сбытовая компания","EE"]
[159,"Приморский край","Надеждинский муниципальный район","05623000","Надеждинский муниципальный район","05623000","27051081","ОАО \"ДГК\"","1434031363","997450001","Станция - поставщик ЭЭ","EE"]
[160,"Приморский край","Надеждинский муниципальный район","05623000","Надеждинское сельское поселение","05623402","26470185","КГУП \"Примтеплоэнерго\"","2536112729","250132001","Сбытовая компания","EE"]
[161,"Приморский край","Надеждинский муниципальный район","05623000","Надеждинское сельское поселение","05623402","27051081","ОАО \"ДГК\"","1434031363","997450001","Станция - поставщик ЭЭ","EE"]
[162,"Приморский край","Надеждинский муниципальный район","05623000","Раздольненское сельское поселение","05623404","26470185","КГУП \"Примтеплоэнерго\"","2536112729","250132001","Сбытовая компания","EE"]
[163,"Приморский край","Надеждинский муниципальный район","05623000","Раздольненское сельское поселение","05623404","27051081","ОАО \"ДГК\"","1434031363","997450001","Станция - поставщик ЭЭ","EE"]
[164,"Приморский край","Надеждинский муниципальный район","05623000","Тавричанское сельское поселение","05623407","26470185","КГУП \"Примтеплоэнерго\"","2536112729","250132001","Сбытовая компания","EE"]
[165,"Приморский край","Надеждинский муниципальный район","05623000","Тавричанское сельское поселение","05623407","27051081","ОАО \"ДГК\"","1434031363","997450001","Станция - поставщик ЭЭ","EE"]
[166,"Приморский край","Находкинский городской округ","05714000","Находкинский городской округ","05714000","26320272","ЗАО \"Дальневосточный судомеханический завод\"","2508011006","250801001","Сетевая компания","EE"]
[167,"Приморский край","Находкинский городской округ","05714000","Находкинский городской округ","05714000","26470185","КГУП \"Примтеплоэнерго\"","2536112729","250132001","Сбытовая компания","EE"]
[168,"Приморский край","Находкинский городской округ","05714000","Находкинский городской округ","05714000","26320268","ОАО \"Восточный Порт\"","2508001544","250801001","Сетевая компания","EE"]
[169,"Приморский край","Находкинский городской округ","05714000","Находкинский городской округ","05714000","27051081","ОАО \"ДГК\"","1434031363","997450001","Станция - поставщик ЭЭ","EE"]
[170,"Приморский край","Находкинский городской округ","05714000","Находкинский городской округ","05714000","26470028","ОАО \"ЕВРАЗ Находкинский морской торговый порт\"","2508001449","254250001","Сетевая компания","EE"]
[171,"Приморский край","Находкинский городской округ","05714000","Находкинский городской округ","05714000","26320258","ОАО \"Находкинская база активного морского рыболовства\"","2508007948","254250001","Сетевая компания","EE"]
[172,"Приморский край","Находкинский городской округ","05714000","Находкинский городской округ","05714000","26470040","ОАО \"Находкинский морской рыбный порт\" г. Находка","2508012923","250801001","Сетевая компания","EE"]
[173,"Приморский край","Находкинский городской округ","05714000","Находкинский городской округ","05714000","26320276","ООО \"Инфраструктура\"","2508082399","250801001","Сетевая компания","EE"]
[174,"Приморский край","Находкинский городской округ","05714000","Находкинский городской округ","05714000","26836595","ООО \"Находкинская электросеть\"","2508069285","250801001","Сетевая компания","EE"]
[175,"Приморский край","Находкинский городской округ","05714000","Находкинский городской округ","05714000","26544267","ООО \"РН-Находканефтепродукт\"","2508070844","254250001","Сбытовая компания","EE"]
[176,"Приморский край","Находкинский городской округ","05714000","Находкинский городской округ","05714000","26544267","ООО \"РН-Находканефтепродукт\"","2508070844","254250001","Сетевая компания","EE"]
[177,"Приморский край","Находкинский городской округ","05714000","Находкинский городской округ","05714000","26544267","ООО \"РН-Находканефтепродукт\"","2508070844","254250001","ЭСО","EE"]
[178,"Приморский край","Находкинский городской округ","05714000","Находкинский городской округ","05714000","26320289","ООО \"Территориальная энергосетевая компания\"","2508113752","250801001","Сетевая компания","EE"]
[179,"Приморский край","Находкинский городской округ","05714000","Находкинский городской округ","05714000","28155822","ооо Находкинские электросети","2508087213","250801001","Сетевая компания","EE"]
[180,"Приморский край","Находкинский городской округ","05714000","Находкинский городской округ","05714000","28160732","ооо Региональная электросетевая компания","2508110744","250801001","Сетевая компания","EE"]
[181,"Приморский край","Октябрьский муниципальный район","05626000","Галенкинское сельское поселение","05626402","26470185","КГУП \"Примтеплоэнерго\"","2536112729","250132001","Сбытовая компания","EE"]
[182,"Приморский край","Октябрьский муниципальный район","05626000","Галенкинское сельское поселение","05626402","27051081","ОАО \"ДГК\"","1434031363","997450001","Станция - поставщик ЭЭ","EE"]
[183,"Приморский край","Октябрьский муниципальный район","05626000","Липовецкое городское поселение","05626154","26470185","КГУП \"Примтеплоэнерго\"","2536112729","250132001","Сбытовая компания","EE"]
[184,"Приморский край","Октябрьский муниципальный район","05626000","Липовецкое городское поселение","05626154","27051081","ОАО \"ДГК\"","1434031363","997450001","Станция - поставщик ЭЭ","EE"]
[185,"Приморский край","Октябрьский муниципальный район","05626000","Новогеоргиевское сельское поселение","05626407","26470185","КГУП \"Примтеплоэнерго\"","2536112729","250132001","Сбытовая компания","EE"]
[186,"Приморский край","Октябрьский муниципальный район","05626000","Новогеоргиевское сельское поселение","05626407","27051081","ОАО \"ДГК\"","1434031363","997450001","Станция - поставщик ЭЭ","EE"]
[187,"Приморский край","Октябрьский муниципальный район","05626000","Октябрьский муниципальный район","05626000","26470185","КГУП \"Примтеплоэнерго\"","2536112729","250132001","Сбытовая компания","EE"]
[188,"Приморский край","Октябрьский муниципальный район","05626000","Октябрьский муниципальный район","05626000","27051081","ОАО \"ДГК\"","1434031363","997450001","Станция - поставщик ЭЭ","EE"]
[189,"Приморский край","Октябрьский муниципальный район","05626000","Покровское сельское поселение","05626410","26470185","КГУП \"Примтеплоэнерго\"","2536112729","250132001","Сбытовая компания","EE"]
[190,"Приморский край","Октябрьский муниципальный район","05626000","Покровское сельское поселение","05626410","27051081","ОАО \"ДГК\"","1434031363","997450001","Станция - поставщик ЭЭ","EE"]
[191,"Приморский край","Октябрьский муниципальный район","05626000","Покровское сельское поселение","05626410","26320293","Октябрьское районное муниципальное унитарное предприятие электрических сетей","2522042180","252201001","Сетевая компания","EE"]
[192,"Приморский край","Ольгинский муниципальный район","05628000","Веселояровское сельское поселение","05628402","26470185","КГУП \"Примтеплоэнерго\"","2536112729","250132001","Сбытовая компания","EE"]
[193,"Приморский край","Ольгинский муниципальный район","05628000","Веселояровское сельское поселение","05628402","27051081","ОАО \"ДГК\"","1434031363","997450001","Станция - поставщик ЭЭ","EE"]
[194,"Приморский край","Ольгинский муниципальный район","05628000","Ольгинское городское поселение","05628151","26470185","КГУП \"Примтеплоэнерго\"","2536112729","250132001","Сбытовая компания","EE"]
[195,"Приморский край","Ольгинский муниципальный район","05628000","Ольгинское городское поселение","05628151","27051081","ОАО \"ДГК\"","1434031363","997450001","Станция - поставщик ЭЭ","EE"]
[196,"Приморский край","Ольгинский муниципальный район","05628000","Тимофеевское сельское поселение","05628416","26470185","КГУП \"Примтеплоэнерго\"","2536112729","250132001","Сбытовая компания","EE"]
[197,"Приморский край","Ольгинский муниципальный район","05628000","Тимофеевское сельское поселение","05628416","27051081","ОАО \"ДГК\"","1434031363","997450001","Станция - поставщик ЭЭ","EE"]
[198,"Приморский край","Партизанский городской округ","05717000","Партизанский городской округ","05717000","26470185","КГУП \"Примтеплоэнерго\"","2536112729","250132001","Сбытовая компания","EE"]
[199,"Приморский край","Партизанский городской округ","05717000","Партизанский городской округ","05717000","27051081","ОАО \"ДГК\"","1434031363","997450001","Станция - поставщик ЭЭ","EE"]
[200,"Приморский край","Партизанский городской округ","05717000","Партизанский городской округ","05717000","26813404","ОАО \"ДГК\" СП Партизанская ГРЭС","1434031363","250932001","Региональная генерация","EE"]
[201,"Приморский край","Партизанский городской округ","05717000","Партизанский городской округ","05717000","26650998","ОАО \"ДГК\" филиал \"Приморские тепловые сети\"","1434031363","254002001","Станция - поставщик ЭЭ","EE"]
[202,"Приморский край","Партизанский городской округ","05717000","Партизанский городской округ","05717000","26759238","ОАО \"ДГК\" филиал Приморская генерация","1434031363","253602001","Региональная генерация","EE"]
[203,"Приморский край","Партизанский городской округ","05717000","Партизанский городской округ","05717000","26930742","ОАО \"Российские железные дороги\"","7708503727","272131009","Сетевая компания","EE"]
[204,"Приморский край","Партизанский муниципальный район","05630000","Владимиро-Александровское сельское поселение","05630402","26470185","КГУП \"Примтеплоэнерго\"","2536112729","250132001","Сбытовая компания","EE"]
[205,"Приморский край","Партизанский муниципальный район","05630000","Владимиро-Александровское сельское поселение","05630402","27051081","ОАО \"ДГК\"","1434031363","997450001","Станция - поставщик ЭЭ","EE"]
[206,"Приморский край","Партизанский муниципальный район","05630000","Екатериновское сельское поселение","05630404","26470185","КГУП \"Примтеплоэнерго\"","2536112729","250132001","Сбытовая компания","EE"]
[207,"Приморский край","Партизанский муниципальный район","05630000","Екатериновское сельское поселение","05630404","27051081","ОАО \"ДГК\"","1434031363","997450001","Станция - поставщик ЭЭ","EE"]
[208,"Приморский край","Партизанский муниципальный район","05630000","Золотодолинское сельское поселение","05630406","26470185","КГУП \"Примтеплоэнерго\"","2536112729","250132001","Сбытовая компания","EE"]
[209,"Приморский край","Партизанский муниципальный район","05630000","Золотодолинское сельское поселение","05630406","27051081","ОАО \"ДГК\"","1434031363","997450001","Станция - поставщик ЭЭ","EE"]
[210,"Приморский край","Партизанский муниципальный район","05630000","Новицкое сельское поселение","05630410","26470185","КГУП \"Примтеплоэнерго\"","2536112729","250132001","Сбытовая компания","EE"]
[211,"Приморский край","Партизанский муниципальный район","05630000","Новицкое сельское поселение","05630410","27051081","ОАО \"ДГК\"","1434031363","997450001","Станция - поставщик ЭЭ","EE"]
[212,"Приморский край","Партизанский муниципальный район","05630000","Новолитовское сельское поселение","05630413","26470185","КГУП \"Примтеплоэнерго\"","2536112729","250132001","Сбытовая компания","EE"]
[213,"Приморский край","Партизанский муниципальный район","05630000","Новолитовское сельское поселение","05630413","27051081","ОАО \"ДГК\"","1434031363","997450001","Станция - поставщик ЭЭ","EE"]
[214,"Приморский край","Партизанский муниципальный район","05630000","Партизанский муниципальный район","05630000","26470185","КГУП \"Примтеплоэнерго\"","2536112729","250132001","Сбытовая компания","EE"]
[215,"Приморский край","Партизанский муниципальный район","05630000","Партизанский муниципальный район","05630000","27051081","ОАО \"ДГК\"","1434031363","997450001","Станция - поставщик ЭЭ","EE"]
[216,"Приморский край","Партизанский муниципальный район","05630000","Партизанский муниципальный район","05630000","26470076","ООО \"Жилищно-коммунальное хозяйство\"","2524111706","252401001","Сбытовая компания","EE"]
[217,"Приморский край","Партизанский муниципальный район","05630000","Сергеевское сельское поселение","05630419","26470185","КГУП \"Примтеплоэнерго\"","2536112729","250132001","Сбытовая компания","EE"]
[218,"Приморский край","Партизанский муниципальный район","05630000","Сергеевское сельское поселение","05630419","27051081","ОАО \"ДГК\"","1434031363","997450001","Станция - поставщик ЭЭ","EE"]
[219,"Приморский край","Пограничный муниципальный район","05632000","Барабаш-Ливадинское сельское поселение","05632402","26470185","КГУП \"Примтеплоэнерго\"","2536112729","250132001","Сбытовая компания","EE"]
[220,"Приморский край","Пограничный муниципальный район","05632000","Барабаш-Ливадинское сельское поселение","05632402","27051081","ОАО \"ДГК\"","1434031363","997450001","Станция - поставщик ЭЭ","EE"]
[221,"Приморский край","Пограничный муниципальный район","05632000","Жариковское сельское поселение","05632410","26470185","КГУП \"Примтеплоэнерго\"","2536112729","250132001","Сбытовая компания","EE"]
[222,"Приморский край","Пограничный муниципальный район","05632000","Жариковское сельское поселение","05632410","27051081","ОАО \"ДГК\"","1434031363","997450001","Станция - поставщик ЭЭ","EE"]
[223,"Приморский край","Пограничный муниципальный район","05632000","Пограничное городское поселение","05632151","26470185","КГУП \"Примтеплоэнерго\"","2536112729","250132001","Сбытовая компания","EE"]
[224,"Приморский край","Пограничный муниципальный район","05632000","Пограничное городское поселение","05632151","27051081","ОАО \"ДГК\"","1434031363","997450001","Станция - поставщик ЭЭ","EE"]
[225,"Приморский край","Пограничный муниципальный район","05632000","Пограничный муниципальный район","05632000","26470185","КГУП \"Примтеплоэнерго\"","2536112729","250132001","Сбытовая компания","EE"]
[226,"Приморский край","Пограничный муниципальный район","05632000","Пограничный муниципальный район","05632000","27051081","ОАО \"ДГК\"","1434031363","997450001","Станция - поставщик ЭЭ","EE"]
[227,"Приморский край","Пограничный муниципальный район","05632000","Пограничный муниципальный район","05632000","26320297","ОАО \"Погранэлектросеть\"","2525012151","252501001","Сетевая компания","EE"]
[228,"Приморский край","Пограничный муниципальный район","05632000","Пограничный муниципальный район","05632000","26930742","ОАО \"Российские железные дороги\"","7708503727","272131009","Сетевая компания","EE"]
[229,"Приморский край","Пограничный муниципальный район","05632000","Пограничный муниципальный район","05632000","28135760","ОАО «Электробытсервис»","2525007560","252501001","Сетевая компания","EE"]
[230,"Приморский край","Пограничный муниципальный район","05632000","Сергеевское сельское поселение","05632416","26470185","КГУП \"Примтеплоэнерго\"","2536112729","250132001","Сбытовая компания","EE"]
[231,"Приморский край","Пограничный муниципальный район","05632000","Сергеевское сельское поселение","05632416","27051081","ОАО \"ДГК\"","1434031363","997450001","Станция - поставщик ЭЭ","EE"]
[232,"Приморский край","Пожарский муниципальный район","05634000","Верхнеперевальское сельское поселение","05634404","26470185","КГУП \"Примтеплоэнерго\"","2536112729","250132001","Сбытовая компания","EE"]
[233,"Приморский край","Пожарский муниципальный район","05634000","Верхнеперевальское сельское поселение","05634404","27051081","ОАО \"ДГК\"","1434031363","997450001","Станция - поставщик ЭЭ","EE"]
[234,"Приморский край","Пожарский муниципальный район","05634000","Губеровское сельское поселение","05634407","26470185","КГУП \"Примтеплоэнерго\"","2536112729","250132001","Сбытовая компания","EE"]
[235,"Приморский край","Пожарский муниципальный район","05634000","Губеровское сельское поселение","05634407","27051081","ОАО \"ДГК\"","1434031363","997450001","Станция - поставщик ЭЭ","EE"]
[236,"Приморский край","Пожарский муниципальный район","05634000","Игнатьевское сельское поселение","05634413","26470185","КГУП \"Примтеплоэнерго\"","2536112729","250132001","Сбытовая компания","EE"]
[237,"Приморский край","Пожарский муниципальный район","05634000","Игнатьевское сельское поселение","05634413","27051081","ОАО \"ДГК\"","1434031363","997450001","Станция - поставщик ЭЭ","EE"]
[238,"Приморский край","Пожарский муниципальный район","05634000","Краснояровское сельское поселение","05634416","26470185","КГУП \"Примтеплоэнерго\"","2536112729","250132001","Сбытовая компания","EE"]
[239,"Приморский край","Пожарский муниципальный район","05634000","Краснояровское сельское поселение","05634416","27051081","ОАО \"ДГК\"","1434031363","997450001","Станция - поставщик ЭЭ","EE"]
[240,"Приморский край","Пожарский муниципальный район","05634000","Лучегорское городское поселение","05634151","26470185","КГУП \"Примтеплоэнерго\"","2536112729","250132001","Сбытовая компания","EE"]
[241,"Приморский край","Пожарский муниципальный район","05634000","Лучегорское городское поселение","05634151","27051081","ОАО \"ДГК\"","1434031363","997450001","Станция - поставщик ЭЭ","EE"]
[242,"Приморский край","Пожарский муниципальный район","05634000","Нагорненское сельское поселение","05634418","26470185","КГУП \"Примтеплоэнерго\"","2536112729","250132001","Сбытовая компания","EE"]
[243,"Приморский край","Пожарский муниципальный район","05634000","Нагорненское сельское поселение","05634418","27051081","ОАО \"ДГК\"","1434031363","997450001","Станция - поставщик ЭЭ","EE"]
[244,"Приморский край","Пожарский муниципальный район","05634000","Пожарский муниципальный район","05634000","26470185","КГУП \"Примтеплоэнерго\"","2536112729","250132001","Сбытовая компания","EE"]
[245,"Приморский край","Пожарский муниципальный район","05634000","Пожарский муниципальный район","05634000","27051081","ОАО \"ДГК\"","1434031363","997450001","Станция - поставщик ЭЭ","EE"]
[246,"Приморский край","Пожарский муниципальный район","05634000","Пожарский муниципальный район","05634000","26759235","ОАО \"ДГК\" филиал ЛуТЭК","1434031363","252602001","Региональная генерация","EE"]
[247,"Приморский край","Пожарский муниципальный район","05634000","Пожарский муниципальный район","05634000","26525181","ООО \"ПВЭСиК\"","2526007193","252601001","Сетевая компания","EE"]
[248,"Приморский край","Пожарский муниципальный район","05634000","Пожарский муниципальный район","05634000","26470092","ООО \"ТТП НЛХ Бикин\"","2526008126","252601001","Сбытовая компания","EE"]
[249,"Приморский край","Пожарский муниципальный район","05634000","Пожарское сельское поселение","05634420","26470185","КГУП \"Примтеплоэнерго\"","2536112729","250132001","Сбытовая компания","EE"]
[250,"Приморский край","Пожарский муниципальный район","05634000","Пожарское сельское поселение","05634420","27051081","ОАО \"ДГК\"","1434031363","997450001","Станция - поставщик ЭЭ","EE"]
[251,"Приморский край","Пожарский муниципальный район","05634000","Светлогорское сельское поселение","05634421","26470185","КГУП \"Примтеплоэнерго\"","2536112729","250132001","Сбытовая компания","EE"]
[252,"Приморский край","Пожарский муниципальный район","05634000","Светлогорское сельское поселение","05634421","27051081","ОАО \"ДГК\"","1434031363","997450001","Станция - поставщик ЭЭ","EE"]
[253,"Приморский край","Пожарский муниципальный район","05634000","Соболинское сельское поселение","05634424","26470185","КГУП \"Примтеплоэнерго\"","2536112729","250132001","Сбытовая компания","EE"]
[254,"Приморский край","Пожарский муниципальный район","05634000","Соболинское сельское поселение","05634424","27051081","ОАО \"ДГК\"","1434031363","997450001","Станция - поставщик ЭЭ","EE"]
[255,"Приморский край","Пожарский муниципальный район","05634000","Федосьевское сельское поселение","05634422","26470185","КГУП \"Примтеплоэнерго\"","2536112729","250132001","Сбытовая компания","EE"]
[256,"Приморский край","Пожарский муниципальный район","05634000","Федосьевское сельское поселение","05634422","27051081","ОАО \"ДГК\"","1434031363","997450001","Станция - поставщик ЭЭ","EE"]
[257,"Приморский край","Спасский муниципальный район","05637000","Александровское сельское поселение","05637402","26470185","КГУП \"Примтеплоэнерго\"","2536112729","250132001","Сбытовая компания","EE"]
[258,"Приморский край","Спасский муниципальный район","05637000","Александровское сельское поселение","05637402","27051081","ОАО \"ДГК\"","1434031363","997450001","Станция - поставщик ЭЭ","EE"]
[259,"Приморский край","Спасский муниципальный район","05637000","Дубовское сельское поселение","05637419","26470185","КГУП \"Примтеплоэнерго\"","2536112729","250132001","Сбытовая компания","EE"]
[260,"Приморский край","Спасский муниципальный район","05637000","Дубовское сельское поселение","05637419","27051081","ОАО \"ДГК\"","1434031363","997450001","Станция - поставщик ЭЭ","EE"]
[261,"Приморский край","Спасский муниципальный район","05637000","Духовское сельскоепоселение","05637422","26470185","КГУП \"Примтеплоэнерго\"","2536112729","250132001","Сбытовая компания","EE"]
[262,"Приморский край","Спасский муниципальный район","05637000","Духовское сельскоепоселение","05637422","27051081","ОАО \"ДГК\"","1434031363","997450001","Станция - поставщик ЭЭ","EE"]
[263,"Приморский край","Спасский муниципальный район","05637000","Краснокутское сельское поселение","05637424","26470185","КГУП \"Примтеплоэнерго\"","2536112729","250132001","Сбытовая компания","EE"]
[264,"Приморский край","Спасский муниципальный район","05637000","Краснокутское сельское поселение","05637424","27051081","ОАО \"ДГК\"","1434031363","997450001","Станция - поставщик ЭЭ","EE"]
[265,"Приморский край","Спасский муниципальный район","05637000","Прохорское сельское поселение","05637434","26470185","КГУП \"Примтеплоэнерго\"","2536112729","250132001","Сбытовая компания","EE"]
[266,"Приморский край","Спасский муниципальный район","05637000","Прохорское сельское поселение","05637434","27051081","ОАО \"ДГК\"","1434031363","997450001","Станция - поставщик ЭЭ","EE"]
[267,"Приморский край","Спасский муниципальный район","05637000","Спасское сельское поселение","05637440","26470185","КГУП \"Примтеплоэнерго\"","2536112729","250132001","Сбытовая компания","EE"]
[268,"Приморский край","Спасский муниципальный район","05637000","Спасское сельское поселение","05637440","27051081","ОАО \"ДГК\"","1434031363","997450001","Станция - поставщик ЭЭ","EE"]
[269,"Приморский край","Спасский муниципальный район","05637000","Хвалынское сельское поселение","05637443","26470185","КГУП \"Примтеплоэнерго\"","2536112729","250132001","Сбытовая компания","EE"]
[270,"Приморский край","Спасский муниципальный район","05637000","Хвалынское сельское поселение","05637443","27051081","ОАО \"ДГК\"","1434031363","997450001","Станция - поставщик ЭЭ","EE"]
[271,"Приморский край","Спасский муниципальный район","05637000","Хвалынское сельское поселение","05637443","26525141","ООО ФСК \"Никита\"","2510008240","251001001","Сетевая компания","EE"]
[272,"Приморский край","Спасский муниципальный район","05637000","Чкаловское сельское поселение","05637446","26470185","КГУП \"Примтеплоэнерго\"","2536112729","250132001","Сбытовая компания","EE"]
[273,"Приморский край","Спасский муниципальный район","05637000","Чкаловское сельское поселение","05637446","27051081","ОАО \"ДГК\"","1434031363","997450001","Станция - поставщик ЭЭ","EE"]
[274,"Приморский край","Тернейский муниципальный район","05640000","Единкинское сельское поселение","05640404","26470185","КГУП \"Примтеплоэнерго\"","2536112729","250132001","Сбытовая компания","EE"]
[275,"Приморский край","Тернейский муниципальный район","05640000","Единкинское сельское поселение","05640404","27051081","ОАО \"ДГК\"","1434031363","997450001","Станция - поставщик ЭЭ","EE"]
[276,"Приморский край","Тернейский муниципальный район","05640000","Максимовское сельское поселение","05640413","26470185","КГУП \"Примтеплоэнерго\"","2536112729","250132001","Сбытовая компания","EE"]
[277,"Приморский край","Тернейский муниципальный район","05640000","Максимовское сельское поселение","05640413","27051081","ОАО \"ДГК\"","1434031363","997450001","Станция - поставщик ЭЭ","EE"]
[278,"Приморский край","Тернейский муниципальный район","05640000","Пластунское городское поселение","05640155","26470185","КГУП \"Примтеплоэнерго\"","2536112729","250132001","Сбытовая компания","EE"]
[279,"Приморский край","Тернейский муниципальный район","05640000","Пластунское городское поселение","05640155","27051081","ОАО \"ДГК\"","1434031363","997450001","Станция - поставщик ЭЭ","EE"]
[280,"Приморский край","Тернейский муниципальный район","05640000","Тернейский муниципальный район","05640000","26470185","КГУП \"Примтеплоэнерго\"","2536112729","250132001","Сбытовая компания","EE"]
[281,"Приморский край","Тернейский муниципальный район","05640000","Тернейский муниципальный район","05640000","27051081","ОАО \"ДГК\"","1434031363","997450001","Станция - поставщик ЭЭ","EE"]
[282,"Приморский край","Тернейский муниципальный район","05640000","Тернейский муниципальный район","05640000","26470108","ОАО \"Тернейлес\"","2528000813","252801001","Региональная генерация","EE"]
[283,"Приморский край","Тернейский муниципальный район","05640000","Тернейское городское поселение","05640151","26470185","КГУП \"Примтеплоэнерго\"","2536112729","250132001","Сбытовая компания","EE"]
[284,"Приморский край","Тернейский муниципальный район","05640000","Тернейское городское поселение","05640151","27051081","ОАО \"ДГК\"","1434031363","997450001","Станция - поставщик ЭЭ","EE"]
[285,"Приморский край","Тернейский муниципальный район","05640000","Тернейское городское поселение","05640151","26470108","ОАО \"Тернейлес\"","2528000813","252801001","Региональная генерация","EE"]
[286,"Приморский край","Уссурийский городской округ","05723000","Уссурийский городской округ","05723000","26469956","ЗАО \"УМЖК \"Приморская соя\"","2511033899","251101001","Сетевая компания","EE"]
[287,"Приморский край","Уссурийский городской округ","05723000","Уссурийский городской округ","05723000","26470185","КГУП \"Примтеплоэнерго\"","2536112729","250132001","Сбытовая компания","EE"]
[288,"Приморский край","Уссурийский городской округ","05723000","Уссурийский городской округ","05723000","26320279","МУП \"Уссурийск-Электросеть\"","2511002019","251101001","Сетевая компания","EE"]
[289,"Приморский край","Уссурийский городской округ","05723000","Уссурийский городской округ","05723000","27051081","ОАО \"ДГК\"","1434031363","997450001","Станция - поставщик ЭЭ","EE"]
[290,"Приморский край","Уссурийский городской округ","05723000","Уссурийский городской округ","05723000","26469940","ОАО \"Уссурийское пиво\"","2511031108","251101001","Сетевая компания","EE"]
[291,"Приморский край","Уссурийский городской округ","05723000","Уссурийский городской округ","05723000","26469938","ООО \"Уссурийский авторемонтный завод\"","2511078522","251101001","Сетевая компания","EE"]
[292,"Приморский край","Ханкайский муниципальный район","05646000","Ильинское сельское поселение","05646402","26470185","КГУП \"Примтеплоэнерго\"","2536112729","250132001","Сбытовая компания","EE"]
[293,"Приморский край","Ханкайский муниципальный район","05646000","Ильинское сельское поселение","05646402","27051081","ОАО \"ДГК\"","1434031363","997450001","Станция - поставщик ЭЭ","EE"]
[294,"Приморский край","Ханкайский муниципальный район","05646000","Камень-Рыболовское сельское поселение","05646404","26470185","КГУП \"Примтеплоэнерго\"","2536112729","250132001","Сбытовая компания","EE"]
[295,"Приморский край","Ханкайский муниципальный район","05646000","Камень-Рыболовское сельское поселение","05646404","27051081","ОАО \"ДГК\"","1434031363","997450001","Станция - поставщик ЭЭ","EE"]
[296,"Приморский край","Ханкайский муниципальный район","05646000","Новокачалинское сельское поселение","05646410","26470185","КГУП \"Примтеплоэнерго\"","2536112729","250132001","Сбытовая компания","EE"]
[297,"Приморский край","Ханкайский муниципальный район","05646000","Новокачалинское сельское поселение","05646410","27051081","ОАО \"ДГК\"","1434031363","997450001","Станция - поставщик ЭЭ","EE"]
[298,"Приморский край","Ханкайский муниципальный район","05646000","Новоселищенское сельское поселение","05646413","26470185","КГУП \"Примтеплоэнерго\"","2536112729","250132001","Сбытовая компания","EE"]
[299,"Приморский край","Ханкайский муниципальный район","05646000","Новоселищенское сельское поселение","05646413","27051081","ОАО \"ДГК\"","1434031363","997450001","Станция - поставщик ЭЭ","EE"]
[300,"Приморский край","Ханкайский муниципальный район","05646000","Октябрьское сельское поселение","05646415","26470185","КГУП \"Примтеплоэнерго\"","2536112729","250132001","Сбытовая компания","EE"]
[301,"Приморский край","Ханкайский муниципальный район","05646000","Октябрьское сельское поселение","05646415","27051081","ОАО \"ДГК\"","1434031363","997450001","Станция - поставщик ЭЭ","EE"]
[302,"Приморский край","Ханкайский муниципальный район","05646000","Первомайское сельское поселение","05646418","26470185","КГУП \"Примтеплоэнерго\"","2536112729","250132001","Сбытовая компания","EE"]
[303,"Приморский край","Ханкайский муниципальный район","05646000","Первомайское сельское поселение","05646418","27051081","ОАО \"ДГК\"","1434031363","997450001","Станция - поставщик ЭЭ","EE"]
[304,"Приморский край","Ханкайский муниципальный район","05646000","Ханкайский муниципальный район","05646000","26470185","КГУП \"Примтеплоэнерго\"","2536112729","250132001","Сбытовая компания","EE"]
[305,"Приморский край","Ханкайский муниципальный район","05646000","Ханкайский муниципальный район","05646000","27051081","ОАО \"ДГК\"","1434031363","997450001","Станция - поставщик ЭЭ","EE"]
[306,"Приморский край","Хасанский муниципальный район","05648000","Барабашское сельское поселение","05648402","26470185","КГУП \"Примтеплоэнерго\"","2536112729","250132001","Сбытовая компания","EE"]
[307,"Приморский край","Хасанский муниципальный район","05648000","Барабашское сельское поселение","05648402","27051081","ОАО \"ДГК\"","1434031363","997450001","Станция - поставщик ЭЭ","EE"]
[308,"Приморский край","Хасанский муниципальный район","05648000","Барабашское сельское поселение","05648402","26320295","ОАО \"ДРСК\" филиал \"Приморские электрические сети\"","2801108200","253731001","Сбытовая компания","EE"]
[309,"Приморский край","Хасанский муниципальный район","05648000","Барабашское сельское поселение","05648402","26320295","ОАО \"ДРСК\" филиал \"Приморские электрические сети\"","2801108200","253731001","Сетевая компания","EE"]
[310,"Приморский край","Хасанский муниципальный район","05648000","Барабашское сельское поселение","05648402","26319155","ООО \"Энергосбыт\"","2531001655","254001001","Сбытовая компания","EE"]
[311,"Приморский край","Хасанский муниципальный район","05648000","Безверховское сельское поселение","05648404","26470185","КГУП \"Примтеплоэнерго\"","2536112729","250132001","Сбытовая компания","EE"]
[312,"Приморский край","Хасанский муниципальный район","05648000","Безверховское сельское поселение","05648404","27051081","ОАО \"ДГК\"","1434031363","997450001","Станция - поставщик ЭЭ","EE"]
[313,"Приморский край","Хасанский муниципальный район","05648000","Безверховское сельское поселение","05648404","26320295","ОАО \"ДРСК\" филиал \"Приморские электрические сети\"","2801108200","253731001","Сбытовая компания","EE"]
[314,"Приморский край","Хасанский муниципальный район","05648000","Безверховское сельское поселение","05648404","26320295","ОАО \"ДРСК\" филиал \"Приморские электрические сети\"","2801108200","253731001","Сетевая компания","EE"]
[315,"Приморский край","Хасанский муниципальный район","05648000","Безверховское сельское поселение","05648404","26319155","ООО \"Энергосбыт\"","2531001655","254001001","Сбытовая компания","EE"]
[316,"Приморский край","Хасанский муниципальный район","05648000","Зарубинское городское поселение","05648153","26470185","КГУП \"Примтеплоэнерго\"","2536112729","250132001","Сбытовая компания","EE"]
[317,"Приморский край","Хасанский муниципальный район","05648000","Зарубинское городское поселение","05648153","27051081","ОАО \"ДГК\"","1434031363","997450001","Станция - поставщик ЭЭ","EE"]
[318,"Приморский край","Хасанский муниципальный район","05648000","Зарубинское городское поселение","05648153","26320295","ОАО \"ДРСК\" филиал \"Приморские электрические сети\"","2801108200","253731001","Сетевая компания","EE"]
[319,"Приморский край","Хасанский муниципальный район","05648000","Зарубинское городское поселение","05648153","26320295","ОАО \"ДРСК\" филиал \"Приморские электрические сети\"","2801108200","253731001","Сбытовая компания","EE"]
[320,"Приморский край","Хасанский муниципальный район","05648000","Зарубинское городское поселение","05648153","26319155","ООО \"Энергосбыт\"","2531001655","254001001","Сбытовая компания","EE"]
[321,"Приморский край","Хасанский муниципальный район","05648000","Краскинское городское поселение","05648155","26320295","ОАО \"ДРСК\" филиал \"Приморские электрические сети\"","2801108200","253731001","Сетевая компания","EE"]
[322,"Приморский край","Хасанский муниципальный район","05648000","Краскинское городское поселение","05648155","26320295","ОАО \"ДРСК\" филиал \"Приморские электрические сети\"","2801108200","253731001","Сбытовая компания","EE"]
[323,"Приморский край","Хасанский муниципальный район","05648000","Посьетское городское поселение","05648158","26470185","КГУП \"Примтеплоэнерго\"","2536112729","250132001","Сбытовая компания","EE"]
[324,"Приморский край","Хасанский муниципальный район","05648000","Посьетское городское поселение","05648158","27051081","ОАО \"ДГК\"","1434031363","997450001","Станция - поставщик ЭЭ","EE"]
[325,"Приморский край","Хасанский муниципальный район","05648000","Посьетское городское поселение","05648158","26320295","ОАО \"ДРСК\" филиал \"Приморские электрические сети\"","2801108200","253731001","Сетевая компания","EE"]
[326,"Приморский край","Хасанский муниципальный район","05648000","Посьетское городское поселение","05648158","26320295","ОАО \"ДРСК\" филиал \"Приморские электрические сети\"","2801108200","253731001","Сбытовая компания","EE"]
[327,"Приморский край","Хасанский муниципальный район","05648000","Посьетское городское поселение","05648158","26319155","ООО \"Энергосбыт\"","2531001655","254001001","Сбытовая компания","EE"]
[328,"Приморский край","Хасанский муниципальный район","05648000","Приморское городское поселение","05648161","26470185","КГУП \"Примтеплоэнерго\"","2536112729","250132001","Сбытовая компания","EE"]
[329,"Приморский край","Хасанский муниципальный район","05648000","Приморское городское поселение","05648161","27051081","ОАО \"ДГК\"","1434031363","997450001","Станция - поставщик ЭЭ","EE"]
[330,"Приморский край","Хасанский муниципальный район","05648000","Приморское городское поселение","05648161","26320295","ОАО \"ДРСК\" филиал \"Приморские электрические сети\"","2801108200","253731001","Сетевая компания","EE"]
[331,"Приморский край","Хасанский муниципальный район","05648000","Приморское городское поселение","05648161","26320295","ОАО \"ДРСК\" филиал \"Приморские электрические сети\"","2801108200","253731001","Сбытовая компания","EE"]
[332,"Приморский край","Хасанский муниципальный район","05648000","Приморское городское поселение","05648161","26319155","ООО \"Энергосбыт\"","2531001655","254001001","Сбытовая компания","EE"]
[333,"Приморский край","Хасанский муниципальный район","05648000","Славянское городское поселение","05648151","26470185","КГУП \"Примтеплоэнерго\"","2536112729","250132001","Сбытовая компания","EE"]
[334,"Приморский край","Хасанский муниципальный район","05648000","Славянское городское поселение","05648151","27051081","ОАО \"ДГК\"","1434031363","997450001","Станция - поставщик ЭЭ","EE"]
[335,"Приморский край","Хасанский муниципальный район","05648000","Славянское городское поселение","05648151","26320295","ОАО \"ДРСК\" филиал \"Приморские электрические сети\"","2801108200","253731001","Сбытовая компания","EE"]
[336,"Приморский край","Хасанский муниципальный район","05648000","Славянское городское поселение","05648151","26320295","ОАО \"ДРСК\" филиал \"Приморские электрические сети\"","2801108200","253731001","Сетевая компания","EE"]
[337,"Приморский край","Хасанский муниципальный район","05648000","Славянское городское поселение","05648151","26320283","ОАО \"Хасанкоммунэнерго\"","2531006580","253101001","Сетевая компания","EE"]
[338,"Приморский край","Хасанский муниципальный район","05648000","Славянское городское поселение","05648151","26319155","ООО \"Энергосбыт\"","2531001655","254001001","Сбытовая компания","EE"]
[339,"Приморский край","Хасанский муниципальный район","05648000","Хасанский муниципальный район","05648000","26470185","КГУП \"Примтеплоэнерго\"","2536112729","250132001","Сбытовая компания","EE"]
[340,"Приморский край","Хасанский муниципальный район","05648000","Хасанский муниципальный район","05648000","27051081","ОАО \"ДГК\"","1434031363","997450001","Станция - поставщик ЭЭ","EE"]
[341,"Приморский край","Хасанский муниципальный район","05648000","Хасанский муниципальный район","05648000","26320295","ОАО \"ДРСК\" филиал \"Приморские электрические сети\"","2801108200","253731001","Сетевая компания","EE"]
[342,"Приморский край","Хасанский муниципальный район","05648000","Хасанский муниципальный район","05648000","26320295","ОАО \"ДРСК\" филиал \"Приморские электрические сети\"","2801108200","253731001","Сбытовая компания","EE"]
[343,"Приморский край","Хасанский муниципальный район","05648000","Хасанский муниципальный район","05648000","26319155","ООО \"Энергосбыт\"","2531001655","254001001","Сбытовая компания","EE"]
[344,"Приморский край","Хасанский муниципальный район","05648000","Хасанское городское поселение","05648170","26470185","КГУП \"Примтеплоэнерго\"","2536112729","250132001","Сбытовая компания","EE"]
[345,"Приморский край","Хасанский муниципальный район","05648000","Хасанское городское поселение","05648170","27051081","ОАО \"ДГК\"","1434031363","997450001","Станция - поставщик ЭЭ","EE"]
[346,"Приморский край","Хасанский муниципальный район","05648000","Хасанское городское поселение","05648170","26320295","ОАО \"ДРСК\" филиал \"Приморские электрические сети\"","2801108200","253731001","Сбытовая компания","EE"]
[347,"Приморский край","Хасанский муниципальный район","05648000","Хасанское городское поселение","05648170","26320295","ОАО \"ДРСК\" филиал \"Приморские электрические сети\"","2801108200","253731001","Сетевая компания","EE"]
[348,"Приморский край","Хасанский муниципальный район","05648000","Хасанское городское поселение","05648170","28175840","ооо \"Хасанское ПЭС\"","2531011893","253101001","Сетевая компания","EE"]
[349,"Приморский край","Хорольский муниципальный район","05650000","Благодатненское сельское поселение","05650402","26470185","КГУП \"Примтеплоэнерго\"","2536112729","250132001","Сбытовая компания","EE"]
[350,"Приморский край","Хорольский муниципальный район","05650000","Благодатненское сельское поселение","05650402","27051081","ОАО \"ДГК\"","1434031363","997450001","Станция - поставщик ЭЭ","EE"]
[351,"Приморский край","Хорольский муниципальный район","05650000","Лучкинское сельское поселение","05650407","26470185","КГУП \"Примтеплоэнерго\"","2536112729","250132001","Сбытовая компания","EE"]
[352,"Приморский край","Хорольский муниципальный район","05650000","Лучкинское сельское поселение","05650407","27051081","ОАО \"ДГК\"","1434031363","997450001","Станция - поставщик ЭЭ","EE"]
[353,"Приморский край","Хорольский муниципальный район","05650000","Новодевицкое сельское поселение","05650413","26470185","КГУП \"Примтеплоэнерго\"","2536112729","250132001","Сбытовая компания","EE"]
[354,"Приморский край","Хорольский муниципальный район","05650000","Новодевицкое сельское поселение","05650413","27051081","ОАО \"ДГК\"","1434031363","997450001","Станция - поставщик ЭЭ","EE"]
[355,"Приморский край","Хорольский муниципальный район","05650000","Сиваковское сельское поселение","05650422","26470185","КГУП \"Примтеплоэнерго\"","2536112729","250132001","Сбытовая компания","EE"]
[356,"Приморский край","Хорольский муниципальный район","05650000","Сиваковское сельское поселение","05650422","27051081","ОАО \"ДГК\"","1434031363","997450001","Станция - поставщик ЭЭ","EE"]
[357,"Приморский край","Хорольский муниципальный район","05650000","Хорольский муниципальный район","05650000","26470185","КГУП \"Примтеплоэнерго\"","2536112729","250132001","Сбытовая компания","EE"]
[358,"Приморский край","Хорольский муниципальный район","05650000","Хорольский муниципальный район","05650000","27051081","ОАО \"ДГК\"","1434031363","997450001","Станция - поставщик ЭЭ","EE"]
[359,"Приморский край","Хорольский муниципальный район","05650000","Хорольское сельское поселение","05650425","26470185","КГУП \"Примтеплоэнерго\"","2536112729","250132001","Сбытовая компания","EE"]
[360,"Приморский край","Хорольский муниципальный район","05650000","Хорольское сельское поселение","05650425","27051081","ОАО \"ДГК\"","1434031363","997450001","Станция - поставщик ЭЭ","EE"]
[361,"Приморский край","Хорольский муниципальный район","05650000","Хорольское сельское поселение","05650425","26320296","Хорольское муниципальное унитарное предприятие электрических сетей","2532002210","253201001","Сетевая компания","EE"]
[362,"Приморский край","Хорольский муниципальный район","05650000","Ярославское городское поселение","05650156","26470185","КГУП \"Примтеплоэнерго\"","2536112729","250132001","Сбытовая компания","EE"]
[363,"Приморский край","Хорольский муниципальный район","05650000","Ярославское городское поселение","05650156","27051081","ОАО \"ДГК\"","1434031363","997450001","Станция - поставщик ЭЭ","EE"]
[364,"Приморский край","Хорольский муниципальный район","05650000","Ярославское городское поселение","05650156","26470034","ООО \"Ярославская горно-рудная компания\"","2532008780","253201001","Сетевая компания","EE"]
[365,"Приморский край","Черниговский муниципальный район","05653000","Дмитриевское сельское поселение","05653410","26470185","КГУП \"Примтеплоэнерго\"","2536112729","250132001","Сбытовая компания","EE"]
[366,"Приморский край","Черниговский муниципальный район","05653000","Дмитриевское сельское поселение","05653410","27051081","ОАО \"ДГК\"","1434031363","997450001","Станция - поставщик ЭЭ","EE"]
[367,"Приморский край","Черниговский муниципальный район","05653000","Реттиховское городское поселение","05653422","26470185","КГУП \"Примтеплоэнерго\"","2536112729","250132001","Сбытовая компания","EE"]
[368,"Приморский край","Черниговский муниципальный район","05653000","Реттиховское городское поселение","05653422","27051081","ОАО \"ДГК\"","1434031363","997450001","Станция - поставщик ЭЭ","EE"]
[369,"Приморский край","Черниговский муниципальный район","05653000","Сибирцевское городское поселение","05653158","26470185","КГУП \"Примтеплоэнерго\"","2536112729","250132001","Сбытовая компания","EE"]
[370,"Приморский край","Черниговский муниципальный район","05653000","Сибирцевское городское поселение","05653158","27051081","ОАО \"ДГК\"","1434031363","997450001","Станция - поставщик ЭЭ","EE"]
[371,"Приморский край","Черниговский муниципальный район","05653000","Черниговский муниципальный район","05653000","26470185","КГУП \"Примтеплоэнерго\"","2536112729","250132001","Сбытовая компания","EE"]
[372,"Приморский край","Черниговский муниципальный район","05653000","Черниговский муниципальный район","05653000","27051081","ОАО \"ДГК\"","1434031363","997450001","Станция - поставщик ЭЭ","EE"]
[373,"Приморский край","Черниговский муниципальный район","05653000","Черниговское сельское поселение","05653425","26470185","КГУП \"Примтеплоэнерго\"","2536112729","250132001","Сбытовая компания","EE"]
[374,"Приморский край","Черниговский муниципальный район","05653000","Черниговское сельское поселение","05653425","27051081","ОАО \"ДГК\"","1434031363","997450001","Станция - поставщик ЭЭ","EE"]
[375,"Приморский край","Черниговский муниципальный район","05653000","Черниговское сельское поселение","05653425","26815605","ООО \"Электросеть\"","2533010285","253301001","Сбытовая компания","EE"]
[376,"Приморский край","Черниговский муниципальный район","05653000","Черниговское сельское поселение","05653425","26815605","ООО \"Электросеть\"","2533010285","253301001","Сетевая компания","EE"]
[377,"Приморский край","Черниговский муниципальный район","05653000","Черниговское сельское поселение","05653425","26320292","ООО \"Энергия\"","2533008938","253301001","Сетевая компания","EE"]
[378,"Приморский край","Чугуевский муниципальный район","05655000","Чугуевский муниципальный район","05655000","26470185","КГУП \"Примтеплоэнерго\"","2536112729","250132001","Сбытовая компания","EE"]
[379,"Приморский край","Чугуевский муниципальный район","05655000","Чугуевский муниципальный район","05655000","26470118","МКП \"Энергетик\"","2534006718","253401001","Сбытовая компания","EE"]
[380,"Приморский край","Чугуевский муниципальный район","05655000","Чугуевский муниципальный район","05655000","27051081","ОАО \"ДГК\"","1434031363","997450001","Станция - поставщик ЭЭ","EE"]
[381,"Приморский край","Чугуевский муниципальный район","05655000","Чугуевское сельское поселение","05655437","26470185","КГУП \"Примтеплоэнерго\"","2536112729","250132001","Сбытовая компания","EE"]
[382,"Приморский край","Чугуевский муниципальный район","05655000","Чугуевское сельское поселение","05655437","27051081","ОАО \"ДГК\"","1434031363","997450001","Станция - поставщик ЭЭ","EE"]
[383,"Приморский край","Шкотовский муниципальный район","05657000","Новонежинское сельское поселение","05657413","26470185","КГУП \"Примтеплоэнерго\"","2536112729","250132001","Сбытовая компания","EE"]
[384,"Приморский край","Шкотовский муниципальный район","05657000","Новонежинское сельское поселение","05657413","27051081","ОАО \"ДГК\"","1434031363","997450001","Станция - поставщик ЭЭ","EE"]
[385,"Приморский край","Шкотовский муниципальный район","05657000","Новонежинское сельское поселение","05657413","27674178","ООО \"Энергетическая Управляющая Компания\"","2503028020","250301001","Сетевая компания","EE"]
[386,"Приморский край","Шкотовский муниципальный район","05657000","Подъяпольское сельское поселение","05657422","26470185","КГУП \"Примтеплоэнерго\"","2536112729","250132001","Сбытовая компания","EE"]
[387,"Приморский край","Шкотовский муниципальный район","05657000","Подъяпольское сельское поселение","05657422","27051081","ОАО \"ДГК\"","1434031363","997450001","Станция - поставщик ЭЭ","EE"]
[388,"Приморский край","Шкотовский муниципальный район","05657000","Подъяпольское сельское поселение","05657422","27674178","ООО \"Энергетическая Управляющая Компания\"","2503028020","250301001","Сетевая компания","EE"]
[389,"Приморский край","Шкотовский муниципальный район","05657000","Романовское сельское поселение","05657425","26470185","КГУП \"Примтеплоэнерго\"","2536112729","250132001","Сбытовая компания","EE"]
[390,"Приморский край","Шкотовский муниципальный район","05657000","Романовское сельское поселение","05657425","27051081","ОАО \"ДГК\"","1434031363","997450001","Станция - поставщик ЭЭ","EE"]
[391,"Приморский край","Шкотовский муниципальный район","05657000","Романовское сельское поселение","05657425","27674178","ООО \"Энергетическая Управляющая Компания\"","2503028020","250301001","Сетевая компания","EE"]
[392,"Приморский край","Шкотовский муниципальный район","05657000","Смоляниновское городское поселение","05657158","26470185","КГУП \"Примтеплоэнерго\"","2536112729","250132001","Сбытовая компания","EE"]
[393,"Приморский край","Шкотовский муниципальный район","05657000","Смоляниновское городское поселение","05657158","27051081","ОАО \"ДГК\"","1434031363","997450001","Станция - поставщик ЭЭ","EE"]
[394,"Приморский край","Шкотовский муниципальный район","05657000","Смоляниновское городское поселение","05657158","27674178","ООО \"Энергетическая Управляющая Компания\"","2503028020","250301001","Сетевая компания","EE"]
[395,"Приморский край","Шкотовский муниципальный район","05657000","Центральненское сельское поселение","05657428","26470185","КГУП \"Примтеплоэнерго\"","2536112729","250132001","Сбытовая компания","EE"]
[396,"Приморский край","Шкотовский муниципальный район","05657000","Центральненское сельское поселение","05657428","27051081","ОАО \"ДГК\"","1434031363","997450001","Станция - поставщик ЭЭ","EE"]
[397,"Приморский край","Шкотовский муниципальный район","05657000","Центральненское сельское поселение","05657428","27674178","ООО \"Энергетическая Управляющая Компания\"","2503028020","250301001","Сетевая компания","EE"]
[398,"Приморский край","Шкотовский муниципальный район","05657000","Шкотовский муниципальный район","05657000","26470185","КГУП \"Примтеплоэнерго\"","2536112729","250132001","Сбытовая компания","EE"]
[399,"Приморский край","Шкотовский муниципальный район","05657000","Шкотовский муниципальный район","05657000","27051081","ОАО \"ДГК\"","1434031363","997450001","Станция - поставщик ЭЭ","EE"]
[400,"Приморский край","Шкотовский муниципальный район","05657000","Шкотовский муниципальный район","05657000","27674178","ООО \"Энергетическая Управляющая Компания\"","2503028020","250301001","Сетевая компания","EE"]
[401,"Приморский край","Шкотовский муниципальный район","05657000","Шкотовское городское поселение","05657165","26470185","КГУП \"Примтеплоэнерго\"","2536112729","250132001","Сбытовая компания","EE"]
[402,"Приморский край","Шкотовский муниципальный район","05657000","Шкотовское городское поселение","05657165","27051081","ОАО \"ДГК\"","1434031363","997450001","Станция - поставщик ЭЭ","EE"]
[403,"Приморский край","Шкотовский муниципальный район","05657000","Шкотовское городское поселение","05657165","27674178","ООО \"Энергетическая Управляющая Компания\"","2503028020","250301001","Сетевая компания","EE"]
[404,"Приморский край","Шкотовский муниципальный район","05657000","Штыковское сельское поселение","05657432","26470185","КГУП \"Примтеплоэнерго\"","2536112729","250132001","Сбытовая компания","EE"]
[405,"Приморский край","Шкотовский муниципальный район","05657000","Штыковское сельское поселение","05657432","27051081","ОАО \"ДГК\"","1434031363","997450001","Станция - поставщик ЭЭ","EE"]
[406,"Приморский край","Шкотовский муниципальный район","05657000","Штыковское сельское поселение","05657432","27674178","ООО \"Энергетическая Управляющая Компания\"","2503028020","250301001","Сетевая компания","EE"]
[407,"Приморский край","Яковлевский муниципальный район","05659000","Варфоломеевское сельское поселение","05659407","26470185","КГУП \"Примтеплоэнерго\"","2536112729","250132001","Сбытовая компания","EE"]
[408,"Приморский край","Яковлевский муниципальный район","05659000","Варфоломеевское сельское поселение","05659407","27051081","ОАО \"ДГК\"","1434031363","997450001","Станция - поставщик ЭЭ","EE"]
[409,"Приморский край","Яковлевский муниципальный район","05659000","Новосысоевское сельское поселение","05659413","26470185","КГУП \"Примтеплоэнерго\"","2536112729","250132001","Сбытовая компания","EE"]
[410,"Приморский край","Яковлевский муниципальный район","05659000","Новосысоевское сельское поселение","05659413","27051081","ОАО \"ДГК\"","1434031363","997450001","Станция - поставщик ЭЭ","EE"]
[411,"Приморский край","Яковлевский муниципальный район","05659000","Покровское сельское поселение","05659416","26470185","КГУП \"Примтеплоэнерго\"","2536112729","250132001","Сбытовая компания","EE"]
[412,"Приморский край","Яковлевский муниципальный район","05659000","Покровское сельское поселение","05659416","27051081","ОАО \"ДГК\"","1434031363","997450001","Станция - поставщик ЭЭ","EE"]
[413,"Приморский край","Яковлевский муниципальный район","05659000","Яковлевское сельское поселение","05659422","26470185","КГУП \"Примтеплоэнерго\"","2536112729","250132001","Сбытовая компания","EE"]
[414,"Приморский край","Яковлевский муниципальный район","05659000","Яковлевское сельское поселение","05659422","27051081","ОАО \"ДГК\"","1434031363","997450001","Станция - поставщик ЭЭ","EE"]
[415,"Приморский край","городской округ ЗАТО Большой Камень","05706000","городской округ ЗАТО Большой Камень","05706000","26470185","КГУП \"Примтеплоэнерго\"","2536112729","250132001","Сбытовая компания","EE"]
[416,"Приморский край","городской округ ЗАТО Большой Камень","05706000","городской округ ЗАТО Большой Камень","05706000","27051081","ОАО \"ДГК\"","1434031363","997450001","Станция - поставщик ЭЭ","EE"]
[417,"Приморский край","городской округ ЗАТО Большой Камень","05706000","городской округ ЗАТО Большой Камень","05706000","26470018","ОАО \"Дальневосточный завод \"Звезда\"","2503026908","250301001","ЭСО","EE"]
[418,"Приморский край","городской округ ЗАТО Большой Камень","05706000","городской округ ЗАТО Большой Камень","05706000","26320290","ООО \"Приморская энергетическая сетевая компания\"","2503024153","250301001","Сетевая компания","EE"]
[419,"Приморский край","городской округ ЗАТО Большой Камень","05706000","городской округ ЗАТО Большой Камень","05706000","26503841","ООО \"РЭС-1\"","2503028006","250301001","Сетевая компания","EE"]
[420,"Приморский край","городской округ ЗАТО Большой Камень","05706000","городской округ ЗАТО Большой Камень","05706000","26503843","ООО \"РЭС-2\"","2503028013","250301001","Сетевая компания","EE"]
[421,"Приморский край","городской округ ЗАТО Большой Камень","05706000","городской округ ЗАТО Большой Камень","05706000","26503845","ООО \"РЭС-3\"","2503028038","250301001","Сетевая компания","EE"]
[422,"Приморский край","городской округ ЗАТО Большой Камень","05706000","городской округ ЗАТО Большой Камень","05706000","26470313","ООО \"Распределительные энергетические сети\"","2503027852","250301001","Сетевая компания","EE"]
[423,"Приморский край","городской округ ЗАТО Большой Камень","05706000","городской округ ЗАТО Большой Камень","05706000","27674178","ООО \"Энергетическая Управляющая Компания\"","2503028020","250301001","Сетевая компания","EE"]
[424,"Приморский край","городской округ ЗАТО Фокино","05747000","городской округ ЗАТО Фокино","05747000","26320294","ОАО \"42 Электрическая сеть\"","2512304069","253601001","Сетевая компания","EE"]
[425,"Приморский край","городской округ ЗАТО Фокино","05747000","городской округ ЗАТО Фокино","05747000","27051081","ОАО \"ДГК\"","1434031363","997450001","Станция - поставщик ЭЭ","EE"]
[426,"Приморский край","городской округ ЗАТО Фокино","05747000","городской округ ЗАТО Фокино","05747000","27674178","ООО \"Энергетическая Управляющая Компания\"","2503028020","250301001","Сетевая компания","EE"]
[427,"Приморский край","","","","","26530078","Дальневосточная дирекция по энергообеспечению – СП Трансэнерго - филиала ОАО \"РЖД\"","7708503727","272145007","Сетевая компания","EE"]
[428,"Приморский край","","","","","26831572","Другие поставщики","000000000000","000000000","Региональная генерация","EE"]
[429,"Приморский край","","","","","26519096","ЗАО \"Система\"","4205173700","420501001","Сбытовая компания","EE"]
[430,"Приморский край","","","","","26469956","ЗАО \"УМЖК \"Приморская соя\"","2511033899","251101001","Сетевая компания","EE"]
[431,"Приморский край","","","","","26516002","Закрытое акционерное общество \"Энергопромышленная компания\", г. Екатеринбург","6661105959","666101001","Сбытовая компания","EE"]
[432,"Приморский край","","","","","26470185","КГУП \"Примтеплоэнерго\"","2536112729","250132001","Сбытовая компания","EE"]
[433,"Приморский край","","","","","26320288","МУПВ \"Владивостокское предприятие электрических сетей\"","2504000684","254250001","Сетевая компания","EE"]
[434,"Приморский край","","","","","26320288","МУПВ \"Владивостокское предприятие электрических сетей\"","2504000684","254250001","Сбытовая компания","EE"]
[435,"Приморский край","","","","","27051081","ОАО \"ДГК\"","1434031363","997450001","Станция - поставщик ЭЭ","EE"]
[436,"Приморский край","","","","","27630251","ОАО \"ДГК\" Приморская ГРЭС","1434031363","254003001","Станция - поставщик ЭЭ","EE"]
[437,"Приморский край","","","","","27630255","ОАО \"ДГК\" СП Владивостокская ТЭЦ-2","1434031363","253632001","Станция - поставщик ЭЭ","EE"]
[438,"Приморский край","","","","","26813404","ОАО \"ДГК\" СП Партизанская ГРЭС","1434031363","250932001","Региональная генерация","EE"]
[439,"Приморский край","","","","","26650998","ОАО \"ДГК\" филиал \"Приморские тепловые сети\"","1434031363","254002001","Станция - поставщик ЭЭ","EE"]
[440,"Приморский край","","","","","26759238","ОАО \"ДГК\" филиал Приморская генерация","1434031363","253602001","Региональная генерация","EE"]
[441,"Приморский край","","","","","26838917","ОАО \"ДРСК\"","2801108200","280150001","Сетевая компания","EE"]
[442,"Приморский край","","","","","26515061","ОАО \"ДРСК\" филиал \"Амурские электрические сети\"","2801108200","280102003","Сетевая компания","EE"]
[443,"Приморский край","","","","","26617749","ОАО \"Дальневосточная энергетическая компания\"","2723088770","997450001","Сбытовая компания","EE"]
[444,"Приморский край","","","","","26802692","ОАО \"Курский завод медстекла\"","4629005515","463201001","Сетевая компания","EE"]
[445,"Приморский край","","","","","26809138","ОАО \"МРСК Волги\"","6450925977","645001001","Сетевая компания","EE"]
[446,"Приморский край","","","","","26538809","ОАО \"Международный аэропорт Владивосток\" ","2502035642","250201001","ЭСО","EE"]
[447,"Приморский край","","","","","26318876","ОАО \"Мосэнергосбыт\"","7736520080","997450001","Сбытовая компания","EE"]
[448,"Приморский край","","","","","26470040","ОАО \"Находкинский морской рыбный порт\" г. Находка","2508012923","250801001","Сетевая компания","EE"]
[449,"Приморский край","","","","","26617350","ОАО \"Оборонэнергосбыт\"","7704731218","770401001","Сбытовая компания","EE"]
[450,"Приморский край","","","","","26930742","ОАО \"Российские железные дороги\"","7708503727","272131009","Сетевая компания","EE"]
[451,"Приморский край","","","","","26469940","ОАО \"Уссурийское пиво\"","2511031108","251101001","Сетевая компания","EE"]
[452,"Приморский край","","","","","26832761","ОАО \"ФСК ЕЭС\"","4716016979","772801001","Сетевая компания","EE"]
[453,"Приморский край","","","","","27954259","ОАО \"ФСК ЕЭС\"","4716016979","997450001","Сетевая компания","EE"]
[454,"Приморский край","","","","","26319157","ОАО \"Электросервис\"","2507003122","250701001","Сбытовая компания","EE"]
[455,"Приморский край","","","","","26836586","ООО \"Артемовская электросеть\"","2502031246","250201001","Сетевая компания","EE"]
[456,"Приморский край","","","","","26766814","ООО \"ГРИНН Энергосбыт\"","4632116134","463201001","Сбытовая компания","EE"]
[457,"Приморский край","","","","","26427401","ООО \"Дизаж М\"","7728587330","772801001","Сбытовая компания","EE"]
[458,"Приморский край","","","","","26550788","ООО \"ЛУКОЙЛ-ЭНЕРГОСЕРВИС\"","5030040730","503001000","Сбытовая компания","EE"]
[459,"Приморский край","","","","","26836595","ООО \"Находкинская электросеть\"","2508069285","250801001","Сетевая компания","EE"]
[460,"Приморский край","","","","","26416221","ООО \"РН-Энерго\"","7706525041","772501001","Сбытовая компания","EE"]
[461,"Приморский край","","","","","26416221","ООО \"РН-Энерго\"","7706525041","772501001","ЭСО","EE"]
[462,"Приморский край","","","","","26502786","ООО \"РУСЭНЕРГОСБЫТ\"","7706284124","770601001","Сбытовая компания","EE"]
[463,"Приморский край","","","","","26318820","ООО \"Региональная энергосбытовая компания\" (ОПП)","4633017746","463301001","Сбытовая компания","EE"]
[464,"Приморский край","","","","","26406211","ООО \"Русэнергоресурс\"","7706288496","770601001","Сбытовая компания","EE"]
[465,"Приморский край","","","","","26509583","ООО \"Саратовская ТЭЦ-1\"","6451424934","645101001","Станция - поставщик ЭЭ","EE"]
[466,"Приморский край","","","","","26318821","ООО \"Сбытэнерго\"","4632039190","463201001","Сбытовая компания","EE"]
[467,"Приморский край","","","","","26320289","ООО \"Территориальная энергосетевая компания\"","2508113752","250801001","Сетевая компания","EE"]
[468,"Приморский край","","","","","26497668","ООО \"Транснефтьэнерго\"","7703552167","772301001","Сбытовая компания","EE"]
[469,"Приморский край","","","","","26573160","ООО \"Управляющая Компания \"ТЭК Арсеньев\"","2501014449","250101001","Сетевая компания","EE"]
[470,"Приморский край","","","","","26794253","ООО \"Электроснабжение\"","4632118318","463201001","Сетевая компания","EE"]
[471,"Приморский край","","","","","27674178","ООО \"Энергетическая Управляющая Компания\"","2503028020","250301001","Сетевая компания","EE"]
[472,"Приморский край","","","","","26318816","ООО \"Энерголинк\"","7727223010","772801001","Сбытовая компания","EE"]
[473,"Приморский край","","","","","28175693","ООО «АЭСК»","2502046690","250201001","Сетевая компания","EE"]
[474,"Приморский край","","","","","26644674","Филиал ОАО \"РЖД\" Трансэнерго Юго-Восточная дирекция по энергообеспечению","7708503727","366631028","Сетевая компания","EE"]
[475,"Приморский край","","","","","26643263","Южно-Уральская дирекция по энергообеспечению – структурное подразделение Трансэнерго – филиала ОАО «РЖД»","7708503727","745145018","Сетевая компания","EE"]
[476,"Приморский край","","","","","28160732","ооо Региональная электросетевая компания","2508110744","250801001","Сетевая компания","EE"]

{"sheet":"modfrmCheckUpdates","index":29,"n_rows":0,"n_cols":0,"rows_kept":0,"cut":false,"hidden":true,"merged":[]}

{"sheet":"REESTR_MO","index":30,"n_rows":167,"n_cols":5,"rows_kept":167,"cut":false,"hidden":true,"merged":[]}
["МР","МО","МО_ОКТМО","МР","ИМЯ ДИАПАЗОНА"]
["Анучинский муниципальный район","Анучинский муниципальный район","05602000","Анучинский муниципальный район","MO_LIST_2"]
["Анучинский муниципальный район","Анучинское сельское поселение","05602402","Арсеньевский городской округ","MO_LIST_3"]
["Анучинский муниципальный район","Виноградовское сельское поселение","05602404","Артемовский городской округ","MO_LIST_4"]
["Анучинский муниципальный район","Гражданское сельское поселение","05602406","Владивостокский городской округ","MO_LIST_5"]
["Анучинский муниципальный район","Чернышевское сельское поселение","05602419","Городской округ Спасск-Дальний","MO_LIST_6"]
["Арсеньевский городской округ","Арсеньевский городской округ","05703000","Дальнегорский городской округ","MO_LIST_7"]
["Артемовский городской округ","Артемовский городской округ","05705000","Дальнереченский городской округ","MO_LIST_8"]
["Владивостокский городской округ","Владивостокский городской округ","05701000","Дальнереченский муниципальный район","MO_LIST_9"]
["Городской округ Спасск-Дальний","Городской округ Спасск-Дальний","05720000","Кавалеровский муниципальный район","MO_LIST_10"]
["Дальнегорский городской округ","Дальнегорский городской округ","05707000","Кировский муниципальный район","MO_LIST_11"]
["Дальнереченский городской округ","Дальнереченский городской округ","05708000","Красноармейский муниципальный район","MO_LIST_12"]
["Дальнереченский муниципальный район","Веденкинское сельское поселение","05607408","Лазовский муниципальный район","MO_LIST_13"]
["Дальнереченский муниципальный район","Дальнереченский муниципальный район","05607000","Лесозаводский городской округ","MO_LIST_14"]
["Дальнереченский муниципальный район","Малиновское сельское поселение","05607413","Михайловский муниципальный район","MO_LIST_15"]
["Дальнереченский муниципальный район","Межселенные территории Дальнереченского муниципального района, находящиеся вне границ сельских поселений","05607701","Надеждинский муниципальный район","MO_LIST_16"]
["Дальнереченский муниципальный район","Ореховское сельское поселение","05607422","Находкинский городской округ","MO_LIST_17"]
["Дальнереченский муниципальный район","Ракитненское сельское поселение","05607425","Октябрьский муниципальный район","MO_LIST_18"]
["Дальнереченский муниципальный район","Рождественское сельское поселение","05607428","Ольгинский муниципальный район","MO_LIST_19"]
["Дальнереченский муниципальный район","Сальское сельское поселение","05607431","Партизанский городской округ","MO_LIST_20"]
["Кавалеровский муниципальный район","Кавалеровкое городское поселение","05610151","Партизанский муниципальный район","MO_LIST_21"]
["Кавалеровский муниципальный район","Кавалеровский муниципальный район","05610000","Пограничный муниципальный район","MO_LIST_22"]
["Кавалеровский муниципальный район","Устиновское сельское поселение","05610404","Пожарский муниципальный район","MO_LIST_23"]
["Кировский муниципальный район","Горненское","05612407","Спасский муниципальный район","MO_LIST_24"]
["Кировский муниципальный район","Горноключевское гороское поселение","05612154","Тернейский муниципальный район","MO_LIST_25"]
["Кировский муниципальный район","Кировский муниципальный район","05612000","Уссурийский городской округ","MO_LIST_26"]
["Кировский муниципальный район","Кировское городское поселение","05612151","Ханкайский муниципальный район","MO_LIST_27"]
["Кировский муниципальный район","Крыловское сельское поселение","05612413","Хасанский муниципальный район","MO_LIST_28"]
["Кировский муниципальный район","Межселенные территории Кировского муниципального района, находящиеся вне границ городских и сельских поселений","05612701","Хорольский муниципальный район","MO_LIST_29"]
["Кировский муниципальный район","Руновское сельское поселение","05612428","Черниговский муниципальный район","MO_LIST_30"]
["Кировский муниципальный район","Хвищанское сельское поселение","05612434","Чугуевский муниципальный район","MO_LIST_31"]
["Красноармейский муниципальный район","Востокское городское поселение","05614154","Шкотовский муниципальный район","MO_LIST_32"]
["Красноармейский муниципальный район","Вострецовское","05614406","Яковлевский муниципальный район","MO_LIST_33"]
["Красноармейский муниципальный район","Глубинненское","05614408","городской округ Большой Камень","MO_LIST_34"]
["Красноармейский муниципальный район","Дальнекутское","05614413","городской округ ЗАТО Фокино","MO_LIST_35"]
["Красноармейский муниципальный район","Измайлихинское","05614416"]
["Красноармейский муниципальный район","Красноармейский муниципальный район","05614000"]
["Красноармейский муниципальный район","Лукъяновское сельское поселение","05614420"]
["Красноармейский муниципальный район","Мельничное сельское поселение","05614422"]
["Красноармейский муниципальный район","Новопокровское сельское поселение","05614428"]
["Красноармейский муниципальный район","Рощинское сельское поселение","05614431"]
["Красноармейский муниципальный район","Таежненское","05614437"]
["Лазовский муниципальный район","Беневское сельское поселение","05617402"]
["Лазовский муниципальный район","Валентиновское сельское поселение","05617403"]
["Лазовский муниципальный район","Лазовский муниципальный район","05617000"]
["Лазовский муниципальный район","Лазовское сельское поселение","05617407"]
["Лазовский муниципальный район","Преображенское городское поселение","05617157"]
["Лазовский муниципальный район","Чернорученское","05617410"]
["Лесозаводский городской округ","Лесозаводский городской округ","05711000"]
["Михайловский муниципальный район","Григорьевское сельское поселение","05620406"]
["Михайловский муниципальный район","Ивановкое сельское поселение","05620408"]
["Михайловский муниципальный район","Кремовское сельское поселение","05620410"]
["Михайловский муниципальный район","Михайловский муниципальный район","05620000"]
["Михайловский муниципальный район","Михайловское сельское поселение","05620419"]
["Михайловский муниципальный район","Новошахтинское городское поселение","05620154"]
["Михайловский муниципальный район","Осиновское сельское поселение","05620425"]
["Михайловский муниципальный район","Сунятсенское сельское поселение","05620428"]
["Надеждинский муниципальный район","Надеждинский муниципальный район","05623000"]
["Надеждинский муниципальный район","Надеждинское сельское поселение","05623402"]
["Надеждинский муниципальный район","Раздольненское сельское поселение","05623404"]
["Надеждинский муниципальный район","Тавричанское сельское поселение","05623407"]
["Находкинский городской округ","Находкинский городской округ","05714000"]
["Октябрьский муниципальный район","Липовецкое городское поселение","05626154"]
["Октябрьский муниципальный район","Межселенные территории Октябрьского муниципального района, находящиеся вне границ городского и сельских поселений","05626701"]
["Октябрьский муниципальный район","Октябрьский муниципальный район","05626000"]
["Октябрьский муниципальный район","Покровское сельское поселение","05626410"]
["Ольгинский муниципальный район","Веселояровское сельское поселение","05628402"]
["Ольгинский муниципальный район","Межселенная территория Ольгинского муниципального района, находящаяся вне границ городского и сельских поселений, с расположенным на этой территории селом Щербаковка","05628701"]
["Ольгинский муниципальный район","Милоградовское","05628407"]
["Ольгинский муниципальный район","Молдавановское","05628410"]
["Ольгинский муниципальный район","Моряк-Рыболовское","05628404"]
["Ольгинский муниципальный район","Ольгинский муниципальный район","05628000"]
["Ольгинский муниципальный район","Ольгинское городское поселение","05628151"]
["Ольгинский муниципальный район","Пермское","05628413"]
["Ольгинский муниципальный район","Тимофеевское сельское поселение","05628416"]
["Партизанский городской округ","Партизанский городской округ","05717000"]
["Партизанский муниципальный район","Владимиро-Александровское сельское поселение","05630402"]
["Партизанский муниципальный район","Екатериновское сельское поселение","05630404"]
["Партизанский муниципальный район","Золотодолинское сельское поселение","05630406"]
["Партизанский муниципальный район","Межселенная территория Партизанского муниципального района, находящаяся вне границ сельских поселений, с расположенным на этой территории поселком Партизан","05630701"]
["Партизанский муниципальный район","Новицкое сельское поселение","05630410"]
["Партизанский муниципальный район","Новолитовское сельское поселение","05630413"]
["Партизанский муниципальный район","Партизанский муниципальный район","05630000"]
["Партизанский муниципальный район","Сергеевское сельское поселение","05630419"]
["Пограничный муниципальный район","Жариковское сельское поселение","05632410"]
["Пограничный муниципальный район","Пограничное городское поселение","05632151"]
["Пограничный муниципальный район","Пограничный муниципальный район","05632000"]
["Пограничный муниципальный район","Сергеевское сельское поселение","05632416"]
["Пожарский муниципальный район","Верхнеперевальское сельское поселение","05634404"]
["Пожарский муниципальный район","Губеровское сельское поселение","05634407"]
["Пожарский муниципальный район","Игнатьевское сельское поселение","05634413"]
["Пожарский муниципальный район","Краснояровское сельское поселение","05634416"]
["Пожарский муниципальный район","Лучегорское городское поселение","05634151"]
["Пожарский муниципальный район","Нагорненское сельское поселение","05634418"]
["Пожарский муниципальный район","Пожарский муниципальный район","05634000"]
["Пожарский муниципальный район","Пожарское сельское поселение","05634420"]
["Пожарский муниципальный район","Светлогорское сельское поселение","05634421"]
["Пожарский муниципальный район","Соболинское сельское поселение","05634424"]
["Пожарский муниципальный район","Федосьевское сельское поселение","05634422"]
["Спасский муниципальный район","Александровское сельское поселение","05637402"]
["Спасский муниципальный район","Дубовское сельское поселение","05637419"]
["Спасский муниципальный район","Духовское сельскоепоселение","05637422"]
["Спасский муниципальный район","Краснокутское сельское поселение","05637424"]
["Спасский муниципальный район","Прохорское сельское поселение","05637434"]
["Спасский муниципальный район","Спасский муниципальный район","05637000"]
["Спасский муниципальный район","Спасское сельское поселение","05637440"]
["Спасский муниципальный район","Хвалынское сельское поселение","05637443"]
["Спасский муниципальный район","Чкаловское сельское поселение","05637446"]
["Тернейский муниципальный район","Амгунское","05640402"]
["Тернейский муниципальный район","Единкинское сельское поселение","05640404"]
["Тернейский муниципальный район","Кемское сельское поселение","05640407"]
["Тернейский муниципальный район","Максимовское сельское поселение","05640413"]
["Тернейский муниципальный район","Межселенные территории Тернейского муниципального района, находящиеся вне границ городских и сельских поселений","05640701"]
["Тернейский муниципальный район","Пластунское городское поселение","05640155"]
["Тернейский муниципальный район","Самаргинское","05640419"]
["Тернейский муниципальный район","Светлое","05640158"]
["Тернейский муниципальный район","Тернейский муниципальный район","05640000"]
["Тернейский муниципальный район","Тернейское городское поселение","05640151"]
["Тернейский муниципальный район","Удэгейское","05640422"]
["Тернейский муниципальный район","Усть-Соболевское","05640416"]
["Уссурийский городской округ","Уссурийский городской округ","05723000"]
["Ханкайский муниципальный район","Ильинское сельское поселение","05646402"]
["Ханкайский муниципальный район","Камень-Рыболовское сельское поселение","05646404"]
["Ханкайский муниципальный район","Межселенные территории Ханкайского муниципального района, находящиеся вне границ сельских поселений","05646701"]
["Ханкайский муниципальный район","Новокачалинское сельское поселение","05646410"]
["Ханкайский муниципальный район","Ханкайский муниципальный район","05646000"]
["Хасанский муниципальный район","Барабашское сельское поселение","05648402"]
["Хасанский муниципальный район","Безверховское сельское поселение","05648404"]
["Хасанский муниципальный район","Зарубинское городское поселение","05648153"]
["Хасанский муниципальный район","Краскинское городское поселение","05648155"]
["Хасанский муниципальный район","Посьетское городское поселение","05648158"]
["Хасанский муниципальный район","Приморское городское поселение","05648161"]
["Хасанский муниципальный район","Славянское городское поселение","05648151"]
["Хасанский муниципальный район","Хасанский муниципальный район","05648000"]
["Хасанский муниципальный район","Хасанское городское поселение","05648170"]
["Хорольский муниципальный район","Благодатненское сельское поселение","05650402"]
["Хорольский муниципальный район","Лучкинское сельское поселение","05650407"]
["Хорольский муниципальный район","Хорольский муниципальный район","05650000"]
["Хорольский муниципальный район","Хорольское сельское поселение","05650425"]
["Хорольский муниципальный район","Ярославское городское поселение","05650156"]
["Черниговский муниципальный район","Дмитриевское сельское поселение","05653410"]
["Черниговский муниципальный район","Межселенные территории Черниговского муниципального района, находящиеся вне границ городского и сельских поселений","05653701"]
["Черниговский муниципальный район","Реттиховское городское поселение","05653422"]
["Черниговский муниципальный район","Сибирцевское городское поселение","05653158"]
["Черниговский муниципальный район","Снегуровское","05653419"]
["Черниговский муниципальный район","Черниговский муниципальный район","05653000"]
["Черниговский муниципальный район","Черниговское сельское поселение","05653425"]
["Чугуевский муниципальный район","Кокшаровское","05655416"]
["Чугуевский муниципальный район","Чугуевский муниципальный район","05655000"]
["Чугуевский муниципальный район","Чугуевское сельское поселение","05655437"]
["Чугуевский муниципальный район","Шумненское","05655440"]
["Шкотовский муниципальный район","Новонежинское сельское поселение","05657413"]
["Шкотовский муниципальный район","Подъяпольское сельское поселение","05657422"]
["Шкотовский муниципальный район","Романовское сельское поселение","05657425"]
["Шкотовский муниципальный район","Смоляниновское городское поселение","05657158"]
["Шкотовский муниципальный район","Центральненское сельское поселение","05657428"]
["Шкотовский муниципальный район","Шкотовский муниципальный район","05657000"]
["Шкотовский муниципальный район","Шкотовское городское поселение","05657165"]
["Шкотовский муниципальный район","Штыковское сельское поселение","05657432"]
["Яковлевский муниципальный район","Варфоломеевское сельское поселение","05659407"]
["Яковлевский муниципальный район","Новосысоевское сельское поселение","05659413"]
["Яковлевский муниципальный район","Покровское сельское поселение","05659416"]
["Яковлевский муниципальный район","Яблоновское","05659419"]
["Яковлевский муниципальный район","Яковлевский муниципальный район","05659000"]
["Яковлевский муниципальный район","Яковлевское сельское поселение","05659422"]
["городской округ Большой Камень","городской округ Большой Камень","05706000"]
["городской округ ЗАТО Фокино","городской округ ЗАТО Фокино","05747000"]

{"sheet":"modfrmRegion","index":31,"n_rows":0,"n_cols":0,"rows_kept":0,"cut":false,"hidden":true,"merged":[]}

{"sheet":"modfrmReestr","index":32,"n_rows":0,"n_cols":0,"rows_kept":0,"cut":false,"hidden":true,"merged":[]}

{"sheet":"modReestr","index":33,"n_rows":0,"n_cols":0,"rows_kept":0,"cut":false,"hidden":true,"merged":[]}

{"sheet":"modUpdTemplMain","index":34,"n_rows":0,"n_cols":0,"rows_kept":0,"cut":false,"hidden":true,"merged":[]}

{"sheet":"modDoubleClick","index":35,"n_rows":0,"n_cols":0,"rows_kept":0,"cut":false,"hidden":true,"merged":[]}

{"sheet":"modHyperlink","index":36,"n_rows":0,"n_cols":0,"rows_kept":0,"cut":false,"hidden":true,"merged":[]}

{"sheet":"modfrmDateChoose","index":37,"n_rows":0,"n_cols":0,"rows_kept":0,"cut":false,"hidden":true,"merged":[]}